{"text_format":"1","workbook":"xlsx","n_sheets":2,"sheets":["計算表","参照表"],"not_rendered":{"charts":0,"images":0,"macros":1,"external_links":0,"defined_names":72,"comments":0,"pivot_tables":0},"unopened":[],"bounds":{"document_bytes":16777216,"sheet_cells":100000,"rows_first":2000,"rows_last":500,"rows_between":2000,"halvings":0,"cell_chars":16384,"cell_head_chars":4096},"cells_cut":0,"cells_raw":0,"read":"whole","date_system":"1900"}

{"sheet":"計算表","index":0,"n_rows":172,"n_cols":91,"rows_kept":172,"cut":false,"hidden":false,"merged":[[0,36,0,46],[20,59,20,69],[0,82,0,99],[6,29,7,31],[10,32,11,32],[10,34,11,34],[6,32,7,32],[19,22,20,22],[21,22,22,22],[34,18,35,18],[36,18,37,18],[41,7,42,7],[41,10,42,10],[43,7,44,7],[43,6,44,6],[42,18,43,18],[10,29,11,31],[0,32,0,34],[8,12,9,21],[30,19,31,19],[30,20,31,20],[30,21,31,21],[33,14,34,14],[33,15,34,15],[33,16,34,16],[38,18,39,18],[40,18,41,18],[35,13,36,13],[35,14,36,14],[35,15,36,15],[11,12,12,21],[43,14,44,14],[41,12,42,12],[29,12,30,12],[31,15,32,15],[31,16,32,16],[31,17,32,17],[17,1,18,1],[17,22,18,22],[48,1,48,2],[19,19,20,21],[21,19,22,21],[26,0,26,2],[17,2,18,18],[17,19,18,21],[19,2,20,18],[21,2,22,18],[19,1,20,1],[21,1,22,1],[43,1,44,5],[29,8,30,8],[41,9,42,9],[43,8,44,8],[30,18,31,18],[32,18,33,18],[43,0,44,0],[37,0,38,0],[29,0,30,0],[31,0,32,0],[33,0,34,0],[35,0,36,0],[56,11,56,12],[29,17,30,17],[41,17,42,17],[43,12,44,12],[29,13,30,13],[29,11,30,11],[43,11,44,11],[43,17,44,17],[43,16,44,16],[41,13,42,13],[43,13,44,13],[41,16,42,16],[41,14,42,14],[41,15,42,15],[29,16,30,16],[41,11,42,11],[29,14,30,14],[29,15,30,15],[54,1,54,26],[51,1,51,26],[8,2,9,3],[8,4,9,9],[8,10,9,11],[29,1,30,5],[41,1,42,5],[41,6,42,6],[29,9,30,9],[29,10,30,10],[11,4,12,9],[28,1,28,5],[11,10,12,11],[41,8,42,8],[11,2,12,3],[16,0,16,2],[29,7,30,7],[29,6,30,6],[41,0,42,0],[33,1,34,5],[33,6,34,6],[33,7,34,7],[33,8,34,8],[33,9,34,9],[37,9,38,9],[37,10,38,10],[52,1,52,26],[53,1,53,26],[30,25,31,26],[49,1,49,26],[50,1,50,26],[30,22,31,22],[30,23,31,23],[43,15,44,15],[31,1,32,5],[43,9,44,9],[37,1,38,5],[37,6,38,6],[33,17,34,17],[35,1,36,5],[35,6,36,6],[35,7,36,7],[35,8,36,8],[35,9,36,9],[35,10,36,10],[35,11,36,11],[35,12,36,12],[43,10,44,10],[35,16,36,16],[35,17,36,17],[37,11,38,11],[37,12,38,12],[37,13,38,13],[37,14,38,14],[37,15,38,15],[33,10,34,10],[33,11,34,11],[33,12,34,12],[33,13,34,13],[31,6,32,6],[31,7,32,7],[31,8,32,8],[31,9,32,9],[31,10,32,10],[31,11,32,11],[31,12,32,12],[31,13,32,13],[31,14,32,14],[34,21,35,21],[34,20,35,20],[34,19,35,19],[34,22,35,22],[34,23,35,23],[34,25,35,26],[37,16,38,16],[37,17,38,17],[39,0,40,0],[39,1,40,5],[39,6,40,6],[39,7,40,7],[39,8,40,8],[39,9,40,9],[39,10,40,10],[39,11,40,11],[39,12,40,12],[39,13,40,13],[39,14,40,14],[39,15,40,15],[39,16,40,16],[39,17,40,17],[37,7,38,7],[37,8,38,8],[38,21,39,21],[38,20,39,20],[38,19,39,19],[38,22,39,22],[38,23,39,23],[38,25,39,26],[42,21,43,21],[42,20,43,20],[42,19,43,19],[42,22,43,22],[42,23,43,23],[42,25,43,26],[40,25,41,26]]}
[null,null,null,null,null,null,"サービス提供体制強化加算計算書　(訪問リハビリテーションを除く)　",null,null,null,null,null,null,null,null,null,null,null,null,null,null,null,null,null,null,null,null,null,null,null,null,"事業所番号",{"$f":"IF(E9=\"\",\"\",E9)","v":""},null,null,"事業所名",{"$f":"IF(M9=\"\",\"\",M9)","v":""}]
[]
[null,null,"◎算定基準をよくご確認の上、管理をお願いします。",null,null,null,null,null,null,null,null,null,null,null,null,null,null,null,null,null,null,null,null,null,null,null,null,null,null,null,null,"◎以下の水色枠部分について、必要事項のご記入をおねがいします.",null,null,null,null,null,null,null,null,null,null,null,null,null,null,null,null,null,null,null,null,null,null,null,null,null,null,"介護職員",{"$f":"SUMIF($BH$23:$BH$172,TRUE,BR$23:BR$172)","v":0},0,0,0,0,0,0,0,0,0,0]
[null,null,"◎以下の水色枠部分について、必要事項のご記入をおねがいします.",null,null,null,null,null,null,null,null,null,null,null,null,null,null,null,null,null,null,null,null,null,null,null,null,null,null,null,null,null,null,null,null,null,null,null,null,null,null,null,null,null,null,null,null,null,null,null,null,null,null,null,null,null,null,null,"訪問介護員",{"$f":"SUMIF($BI$23:$BI$172,TRUE,BR$23:BR$172)","v":0},0,0,0,0,0,0,0,0,0,0]
[null,null,"◎上から順にご記入をお願いします。",null,null,null,null,null,null,null,null,null,null,null,null,null,null,null,null,null,null,null,null,null,null,null,null,null,null,"【事業所情報・職員配置状況】",null,null,null,null,null,null,null,null,null,null,null,null,null,null,null,null,null,null,null,null,null,null,null,null,null,null,null,null,"看護職員及び介護職員",{"$f":"SUMIF($BJ$23:$BJ$172,TRUE,BR$23:BR$172)","v":0},0,0,0,0,0,0,0,0,0,0]
[null,null,"◎加算算定に必要な要件は★印がついた項目です。",null,null,null,null,null,null,null,null,null,null,null,null,null,null,null,null,null,null,null,null,null,null,null,null,null,null,null,null,null,null,null,null,null,"各月の営業日数〔日〕",null,null,null,null,null,null,null,null,null,null,null,null,null,null,null,null,null,null,null,null,null,"従業者",{"$f":"SUMIF($BK$23:$BK$172,TRUE,BR$23:BR$172)","v":0},0,0,0,0,0,0,0,0,0,0]
[null,null,null,null,null,null,null,null,null,null,null,null,null,null,null,null,null,null,null,null,null,null,null,null,null,null,null,null,null,"週当たりの\n営業日数",null,null,null,null,null,null,"4月","5月","6月","7月","8月","9月","10月","11月","12月","1月","2月",null,null,null,null,null,null,null,null,null,null,null,"直接サービスを提供する職員",{"$f":"SUMIF($BL$23:$BL$172,TRUE,BR$23:BR$172)","v":0},0,0,0,0,0,0,0,0,0,0]
[null,null,null,null,null,null,null,null,null,null,null,null,null,null,null,null,null,null,null,null,null,null,null,null,null,null,null,null,null,null,null,null,null,"日間"]
[null,null,"事業所番号",null,null,null,null,null,null,null,"事業所名"]
[null,null,null,null,null,null,null,null,null,null,null,null,null,null,null,null,null,null,null,null,null,null,null,null,null,null,null,null,null,null,null,null,null,null,null,null,"各月の常勤の従業員が勤務すべき時間数〔時間〕"]
[null,null,null,null,null,null,null,null,null,null,null,null,null,null,null,null,null,null,null,null,null,null,null,null,null,null,null,null,null,"常勤の従業員が\n勤務すべき時間数",null,null,null,null,null,null,"4月","5月","6月","7月","8月","9月","10月","11月","12月","1月","2月"]
[null,null,"サービスの種類",null,null,null,null,null,null,null,"算定する\n加算",null,null,null,null,null,null,null,null,null,null,null,null,null,null,null,null,null,null,null,null,null,null,"時間/日",null,"時間/週",{"$f":"ROUND($AI11*AK8/$AG7,0)","v":{"$error":"#DIV/0!"}},{"$error":"#DIV/0!"},{"$error":"#DIV/0!"},{"$error":"#DIV/0!"},{"$error":"#DIV/0!"},{"$error":"#DIV/0!"},{"$error":"#DIV/0!"},{"$error":"#DIV/0!"},{"$error":"#DIV/0!"},{"$error":"#DIV/0!"},{"$error":"#DIV/0!"}]
[]
[null,null,null,null,null,null,null,null,null,null,null,null,null,null,null,null,null,null,null,null,null,null,null,null,null,null,null,null,null,null,null,null,"※保存、印刷前に左の整列ボタンを押して職種ごとに並べ替えた上で保存、印刷してください"]
[]
[]
["【体制要件】",null,null,null,{"$f":"IFERROR(IF(参照表!C11=0,\"\",IF(参照表!C11=1,\"★\",\"★（いずれも満たす）\")),\"\")","v":""}]
[null,"①",{"$f":"参照表!B3","v":{"$error":"#N/A"}},null,null,null,null,null,null,null,null,null,null,null,null,null,null,null,null,null,null,null,{"$f":"IF(C18=\"\",\"\",IF(T18=\"\",\"？\",IF(T18=\"○\",\"○\",\"×\")))","v":{"$error":"#N/A"}}]
[null,null,null,null,null,null,null,null,null,null,null,null,null,null,null,null,null,null,null,null,null,null,null,null,null,null,null,null,null,null,null,"職員確認欄"]
[null,"②",{"$f":"参照表!B4","v":{"$error":"#N/A"}},null,null,null,null,null,null,null,null,null,null,null,null,null,null,null,null,null,null,null,{"$f":"IF(C20=\"\",\"\",IF(T20=\"\",\"？\",IF(T20=\"○\",\"○\",\"×\")))","v":{"$error":"#N/A"}},null,null,null,null,null,null,null,null,{"$f":"IF(COUNTA(AF23:AF172)=0,\"\",COUNTA(AF23:AF172))","v":""},"","","","","","","","","","","","","","",""]
[null,null,null,null,null,null,null,null,null,null,null,null,null,null,null,null,null,null,null,null,null,null,null,null,null,null,null,null,null,null,null,null,null,null,null,null,null,null,null,null,null,null,null,null,null,null,null,null,null,null,null,null,"職種Ｎｏ．",null,null,null,"職種＋資格","職種＋形態","職種＋年数","「常勤専従者(A)の就労時間 = 当月常勤者が勤務すべき時間数」へ変換又は「常勤の就労時間を超えている場合⇒当月の上限値」へ変換",null,null,null,null,null,null,null,null,null,null,"勤続年数３年以上ならば１"]
[null,"③",{"$f":"参照表!B5","v":{"$error":"#N/A"}},null,null,null,null,null,null,null,null,null,null,null,null,null,null,null,null,null,null,null,{"$f":"IF(C22=\"\",\"\",IF(T22=\"\",\"？\",IF(T22=\"○\",\"○\",\"×\")))","v":{"$error":"#N/A"}},null,null,null,null,null,null,null,"職種No.","職種","形態","氏名","資格(介護職の場合)","勤続年数","4月","5月","6月","7月","8月","9月","10月","11月","12月","1月","2月",null,null,null,null,null,null,null,null,null,null,null,null,"介護職員","訪問介護員","看護職員及び介護職員","従業者","直接サービスを提供する職員","介護福祉士","実務者等","3年","7年","10年",null,null,null,null,null,null,{"$f":"COUNTIF(CC23:CC172,1)","v":0},0,0,0,0,0,0,0,0,0,0]
[null,null,null,null,null,null,null,null,null,null,null,null,null,null,null,null,null,null,null,null,null,null,null,null,null,null,null,null,null,1,{"$f":"VLOOKUP(AF23,$BA$23:$BB$44,2,0)","v":{"$error":"#N/A"}},null,null,null,null,null,null,null,null,null,null,null,null,null,null,null,null,null,null,null,null,null,"管理者",1,null,null,{"$f":"AF23&AI23","v":""},{"$f":"AF23&AG23","v":""},{"$f":"AF23&AJ23","v":""},{"$f":"IFERROR(ISNUMBER(MATCH(AF23,参照表!$S$2:$AA$2,0)),FALSE)","v":false},{"$f":"IFERROR(ISNUMBER(MATCH(AF23,参照表!$S$3:$AA$3,0)),FALSE)","v":false},{"$f":"IFERROR(ISNUMBER(MATCH(AF23,参照表!$S$4:$AA$4,0)),FALSE)","v":false},{"$f":"IF(AF23=\"\",FALSE,TRUE)","v":false},{"$f":"IFERROR(ISNUMBER(MATCH(AF23,参照表!$S$6:$AA$6,0)),FALSE)","v":false},{"$f":"IF($AI23=\"介護福祉士\",TRUE,FALSE)","v":false},{"$f":"IF(OR($AI23=\"介護福祉士\",$AI23=\"実務者研修\",$AI23=\"(旧)介護職員基礎研修\"),TRUE,FALSE)","v":false},{"$f":"IF(OR($AJ23=\"3年以上7年未満\",$AJ23=\"7年以上10年未満\",$AJ23=\"10年以上\"),TRUE,FALSE)","v":false},{"$f":"IF(OR($AJ23=\"7年以上10年未満\",$AJ23=\"10年以上\"),TRUE,FALSE)","v":false},{"$f":"IF($AJ23=\"10年以上\",TRUE,FALSE)","v":false},{"$f":"IF(OR(AK23=\"○\",AK23>AK$12),AK$12,AK23)","v":{"$error":"#DIV/0!"}},{"$f":"IF(OR(AL23=\"○\",AL23>AL$12),AL$12,AL23)","v":{"$error":"#DIV/0!"}},{"$f":"IF(OR(AM23=\"○\",AM23>AM$12),AM$12,AM23)","v":{"$error":"#DIV/0!"}},{"$f":"IF(OR(AN23=\"○\",AN23>AN$12),AN$12,AN23)","v":{"$error":"#DIV/0!"}},{"$f":"IF(OR(AO23=\"○\",AO23>AO$12),AO$12,AO23)","v":{"$error":"#DIV/0!"}},{"$f":"IF(OR(AP23=\"○\",AP23>AP$12),AP$12,AP23)","v":{"$error":"#DIV/0!"}},{"$f":"IF(OR(AQ23=\"○\",AQ23>AQ$12),AQ$12,AQ23)","v":{"$error":"#DIV/0!"}},{"$f":"IF(OR(AR23=\"○\",AR23>AR$12),AR$12,AR23)","v":{"$error":"#DIV/0!"}},{"$f":"IF(OR(AS23=\"○\",AS23>AS$12),AS$12,AS23)","v":{"$error":"#DIV/0!"}},{"$f":"IF(OR(AT23=\"○\",AT23>AT$12),AT$12,AT23)","v":{"$error":"#DIV/0!"}},{"$f":"IF(OR(AU23=\"○\",AU23>AU$12),AU$12,AU23)","v":{"$error":"#DIV/0!"}},{"$f":"IF(AND(AK23<>\"\",AK23<>0,$AJ23=\"3年以上\"),1,\"\")","v":""},{"$f":"IF(AND(AL23<>\"\",AL23<>0,$AJ23=\"3年以上\"),1,\"\")","v":""},{"$f":"IF(AND(AM23<>\"\",AM23<>0,$AJ23=\"3年以上\"),1,\"\")","v":""},{"$f":"IF(AND(AN23<>\"\",AN23<>0,$AJ23=\"3年以上\"),1,\"\")","v":""},{"$f":"IF(AND(AO23<>\"\",AO23<>0,$AJ23=\"3年以上\"),1,\"\")","v":""},{"$f":"IF(AND(AP23<>\"\",AP23<>0,$AJ23=\"3年以上\"),1,\"\")","v":""},{"$f":"IF(AND(AQ23<>\"\",AQ23<>0,$AJ23=\"3年以上\"),1,\"\")","v":""},{"$f":"IF(AND(AR23<>\"\",AR23<>0,$AJ23=\"3年以上\"),1,\"\")","v":""},{"$f":"IF(AND(AS23<>\"\",AS23<>0,$AJ23=\"3年以上\"),1,\"\")","v":""},{"$f":"IF(AND(AT23<>\"\",AT23<>0,$AJ23=\"3年以上\"),1,\"\")","v":""},{"$f":"IF(AND(AU23<>\"\",AU23<>0,$AJ23=\"3年以上\"),1,\"\")","v":""}]
[null,null,null,null,null,null,null,null,null,null,null,null,null,null,null,null,null,null,null,null,null,null,null,null,null,null,null,null,null,2,{"$f":"VLOOKUP(AF24,$BA$23:$BB$44,2,0)","v":{"$error":"#N/A"}},null,null,null,null,null,null,null,null,null,null,null,null,null,null,null,null,null,null,null,null,null,"施設長",2,null,null,"","","",{"$f":"IFERROR(ISNUMBER(MATCH(AF24,参照表!$S$2:$AA$2,0)),FALSE)","v":false},{"$f":"IFERROR(ISNUMBER(MATCH(AF24,参照表!$S$3:$AA$3,0)),FALSE)","v":false},{"$f":"IFERROR(ISNUMBER(MATCH(AF24,参照表!$S$4:$AA$4,0)),FALSE)","v":false},{"$f":"IF(AF24=\"\",FALSE,TRUE)","v":false},{"$f":"IFERROR(ISNUMBER(MATCH(AF24,参照表!$S$6:$AA$6,0)),FALSE)","v":false},{"$f":"IF($AI24=\"介護福祉士\",TRUE,FALSE)","v":false},{"$f":"IF(OR($AI24=\"介護福祉士\",$AI24=\"実務者研修\",$AI24=\"(旧)介護職員基礎研修\"),TRUE,FALSE)","v":false},{"$f":"IF(OR($AJ24=\"3年以上7年未満\",$AJ24=\"7年以上10年未満\",$AJ24=\"10年以上\"),TRUE,FALSE)","v":false},{"$f":"IF(OR($AJ24=\"7年以上10年未満\",$AJ24=\"10年以上\"),TRUE,FALSE)","v":false},{"$f":"IF($AJ24=\"10年以上\",TRUE,FALSE)","v":false},{"$error":"#DIV/0!"},{"$error":"#DIV/0!"},{"$error":"#DIV/0!"},{"$error":"#DIV/0!"},{"$error":"#DIV/0!"},{"$error":"#DIV/0!"},{"$error":"#DIV/0!"},{"$error":"#DIV/0!"},{"$error":"#DIV/0!"},{"$error":"#DIV/0!"},{"$error":"#DIV/0!"},"","","","","","","","","","",""]
[null,null,null,null,null,null,null,null,null,null,null,null,null,null,null,null,null,null,null,null,null,null,null,null,null,null,null,null,null,3,{"$f":"VLOOKUP(AF25,$BA$23:$BB$44,2,0)","v":{"$error":"#N/A"}},null,null,null,null,null,null,null,null,null,null,null,null,null,null,null,null,null,null,null,null,null,"医師",3,null,null,"","","",{"$f":"IFERROR(ISNUMBER(MATCH(AF25,参照表!$S$2:$AA$2,0)),FALSE)","v":false},{"$f":"IFERROR(ISNUMBER(MATCH(AF25,参照表!$S$3:$AA$3,0)),FALSE)","v":false},{"$f":"IFERROR(ISNUMBER(MATCH(AF25,参照表!$S$4:$AA$4,0)),FALSE)","v":false},false,{"$f":"IFERROR(ISNUMBER(MATCH(AF25,参照表!$S$6:$AA$6,0)),FALSE)","v":false},false,false,false,false,false,{"$error":"#DIV/0!"},{"$error":"#DIV/0!"},{"$error":"#DIV/0!"},{"$error":"#DIV/0!"},{"$error":"#DIV/0!"},{"$error":"#DIV/0!"},{"$error":"#DIV/0!"},{"$error":"#DIV/0!"},{"$error":"#DIV/0!"},{"$error":"#DIV/0!"},{"$error":"#DIV/0!"},"","","","","","","","","","",""]
[null,null,null,null,null,null,null,null,null,null,null,null,null,null,null,null,null,null,null,null,null,null,null,null,null,null,null,null,null,4,{"$f":"VLOOKUP(AF26,$BA$23:$BB$44,2,0)","v":{"$error":"#N/A"}},null,null,null,null,null,null,null,null,null,null,null,null,null,null,null,null,null,null,null,null,null,"オペレーター",4,null,null,"","","",{"$f":"IFERROR(ISNUMBER(MATCH(AF26,参照表!$S$2:$AA$2,0)),FALSE)","v":false},{"$f":"IFERROR(ISNUMBER(MATCH(AF26,参照表!$S$3:$AA$3,0)),FALSE)","v":false},{"$f":"IFERROR(ISNUMBER(MATCH(AF26,参照表!$S$4:$AA$4,0)),FALSE)","v":false},false,{"$f":"IFERROR(ISNUMBER(MATCH(AF26,参照表!$S$6:$AA$6,0)),FALSE)","v":false},false,false,false,false,false,{"$error":"#DIV/0!"},{"$error":"#DIV/0!"},{"$error":"#DIV/0!"},{"$error":"#DIV/0!"},{"$error":"#DIV/0!"},{"$error":"#DIV/0!"},{"$error":"#DIV/0!"},{"$error":"#DIV/0!"},{"$error":"#DIV/0!"},{"$error":"#DIV/0!"},{"$error":"#DIV/0!"},"","","","","","","","","","",""]
["【人材要件】",null,null,null,null,null,null,null,null,null,null,null,null,null,null,null,null,null,null,null,null,null,null,null,null,null,null,null,null,5,{"$f":"VLOOKUP(AF27,$BA$23:$BB$44,2,0)","v":{"$error":"#N/A"}},null,null,null,null,null,null,null,null,null,null,null,null,null,null,null,null,null,null,null,null,null,"計画作成担当者",5,null,null,"","","",{"$f":"IFERROR(ISNUMBER(MATCH(AF27,参照表!$S$2:$AA$2,0)),FALSE)","v":false},{"$f":"IFERROR(ISNUMBER(MATCH(AF27,参照表!$S$3:$AA$3,0)),FALSE)","v":false},{"$f":"IFERROR(ISNUMBER(MATCH(AF27,参照表!$S$4:$AA$4,0)),FALSE)","v":false},false,{"$f":"IFERROR(ISNUMBER(MATCH(AF27,参照表!$S$6:$AA$6,0)),FALSE)","v":false},false,false,false,false,false,{"$error":"#DIV/0!"},{"$error":"#DIV/0!"},{"$error":"#DIV/0!"},{"$error":"#DIV/0!"},{"$error":"#DIV/0!"},{"$error":"#DIV/0!"},{"$error":"#DIV/0!"},{"$error":"#DIV/0!"},{"$error":"#DIV/0!"},{"$error":"#DIV/0!"},{"$error":"#DIV/0!"},"","","","","","","","","","",""]
[null,null,null,null,{"$f":"IF(B30=\"\",\"\",IF(B34=\"\",\"★\",\"★（いずれか1つ）\"))","v":""},null,null,null,null,null,null,null,null,null,null,null,null,null,null,null,null,null,null,null,null,null,null,null,null,6,{"$f":"VLOOKUP(AF28,$BA$23:$BB$44,2,0)","v":{"$error":"#N/A"}},null,null,null,null,null,null,null,null,null,null,null,null,null,null,null,null,null,null,null,null,null,"薬剤師",6,null,null,"","","",{"$f":"IFERROR(ISNUMBER(MATCH(AF28,参照表!$S$2:$AA$2,0)),FALSE)","v":false},{"$f":"IFERROR(ISNUMBER(MATCH(AF28,参照表!$S$3:$AA$3,0)),FALSE)","v":false},{"$f":"IFERROR(ISNUMBER(MATCH(AF28,参照表!$S$4:$AA$4,0)),FALSE)","v":false},false,{"$f":"IFERROR(ISNUMBER(MATCH(AF28,参照表!$S$6:$AA$6,0)),FALSE)","v":false},false,false,false,false,false,{"$error":"#DIV/0!"},{"$error":"#DIV/0!"},{"$error":"#DIV/0!"},{"$error":"#DIV/0!"},{"$error":"#DIV/0!"},{"$error":"#DIV/0!"},{"$error":"#DIV/0!"},{"$error":"#DIV/0!"},{"$error":"#DIV/0!"},{"$error":"#DIV/0!"},{"$error":"#DIV/0!"},"","","","","","","","","","",""]
[null,null,null,null,null,null,"4月","5月","6月","7月","8月","9月","10月","11月","12月","1月","2月","平均",null,null,null,null,null,null,null,null,null,null,null,7,{"$f":"VLOOKUP(AF29,$BA$23:$BB$44,2,0)","v":{"$error":"#N/A"}},null,null,null,null,null,null,null,null,null,null,null,null,null,null,null,null,null,null,null,null,null,"介護支援専門員",7,null,null,"","","",{"$f":"IFERROR(ISNUMBER(MATCH(AF29,参照表!$S$2:$AA$2,0)),FALSE)","v":false},{"$f":"IFERROR(ISNUMBER(MATCH(AF29,参照表!$S$3:$AA$3,0)),FALSE)","v":false},{"$f":"IFERROR(ISNUMBER(MATCH(AF29,参照表!$S$4:$AA$4,0)),FALSE)","v":false},false,{"$f":"IFERROR(ISNUMBER(MATCH(AF29,参照表!$S$6:$AA$6,0)),FALSE)","v":false},false,false,false,false,false,{"$error":"#DIV/0!"},{"$error":"#DIV/0!"},{"$error":"#DIV/0!"},{"$error":"#DIV/0!"},{"$error":"#DIV/0!"},{"$error":"#DIV/0!"},{"$error":"#DIV/0!"},{"$error":"#DIV/0!"},{"$error":"#DIV/0!"},{"$error":"#DIV/0!"},{"$error":"#DIV/0!"},"","","","","","","","","","",""]
["a",{"$f":"IF(参照表!E3=\"\",\"\",参照表!E3&\"の総数\")","v":""},null,null,null,null,{"$f":"IFERROR(ROUNDDOWN(VLOOKUP(参照表!$D$3,参照表!$D$80:$Z$101,COLUMN()-5,0)/AK$12,1),\"\")","v":""},{"$f":"IFERROR(ROUNDDOWN(VLOOKUP(参照表!$D$3,参照表!$D$80:$Z$101,COLUMN()-5,0)/AL$12,1),\"\")","v":""},{"$f":"IFERROR(ROUNDDOWN(VLOOKUP(参照表!$D$3,参照表!$D$80:$Z$101,COLUMN()-5,0)/AM$12,1),\"\")","v":""},{"$f":"IFERROR(ROUNDDOWN(VLOOKUP(参照表!$D$3,参照表!$D$80:$Z$101,COLUMN()-5,0)/AN$12,1),\"\")","v":""},{"$f":"IFERROR(ROUNDDOWN(VLOOKUP(参照表!$D$3,参照表!$D$80:$Z$101,COLUMN()-5,0)/AO$12,1),\"\")","v":""},{"$f":"IFERROR(ROUNDDOWN(VLOOKUP(参照表!$D$3,参照表!$D$80:$Z$101,COLUMN()-5,0)/AP$12,1),\"\")","v":""},{"$f":"IFERROR(ROUNDDOWN(VLOOKUP(参照表!$D$3,参照表!$D$80:$Z$101,COLUMN()-5,0)/AQ$12,1),\"\")","v":""},{"$f":"IFERROR(ROUNDDOWN(VLOOKUP(参照表!$D$3,参照表!$D$80:$Z$101,COLUMN()-5,0)/AR$12,1),\"\")","v":""},{"$f":"IFERROR(ROUNDDOWN(VLOOKUP(参照表!$D$3,参照表!$D$80:$Z$101,COLUMN()-5,0)/AS$12,1),\"\")","v":""},{"$f":"IFERROR(ROUNDDOWN(VLOOKUP(参照表!$D$3,参照表!$D$80:$Z$101,COLUMN()-5,0)/AT$12,1),\"\")","v":""},{"$f":"IFERROR(ROUNDDOWN(VLOOKUP(参照表!$D$3,参照表!$D$80:$Z$101,COLUMN()-5,0)/AU$12,1),\"\")","v":""},{"$f":"ROUNDDOWN(AVERAGE(G30:Q31),2)","v":{"$error":"#DIV/0!"}},null,"割合計算",null,null,null,null,null,null,null,null,null,8,{"$f":"VLOOKUP(AF30,$BA$23:$BB$44,2,0)","v":{"$error":"#N/A"}},null,null,null,null,null,null,null,null,null,null,null,null,null,null,null,null,null,null,null,null,null,"生活相談員",8,null,null,"","","",{"$f":"IFERROR(ISNUMBER(MATCH(AF30,参照表!$S$2:$AA$2,0)),FALSE)","v":false},{"$f":"IFERROR(ISNUMBER(MATCH(AF30,参照表!$S$3:$AA$3,0)),FALSE)","v":false},{"$f":"IFERROR(ISNUMBER(MATCH(AF30,参照表!$S$4:$AA$4,0)),FALSE)","v":false},false,{"$f":"IFERROR(ISNUMBER(MATCH(AF30,参照表!$S$6:$AA$6,0)),FALSE)","v":false},false,false,false,false,false,{"$error":"#DIV/0!"},{"$error":"#DIV/0!"},{"$error":"#DIV/0!"},{"$error":"#DIV/0!"},{"$error":"#DIV/0!"},{"$error":"#DIV/0!"},{"$error":"#DIV/0!"},{"$error":"#DIV/0!"},{"$error":"#DIV/0!"},{"$error":"#DIV/0!"},{"$error":"#DIV/0!"},"","","","","","","","","","",""]
[null,null,null,null,null,null,null,null,null,null,null,null,null,null,null,null,null,null,"a",{"$f":"ROUNDDOWN(R32,1)","v":{"$error":"#DIV/0!"}},"÷",{"$f":"ROUNDDOWN(R30,1)","v":{"$error":"#DIV/0!"}},"=",{"$f":"ROUNDDOWN(ROUNDDOWN(T31,1)/ROUNDDOWN(V31,1),2)","v":{"$error":"#DIV/0!"}},null,{"$f":"IF(参照表!G3>0,\"≧\"&参照表!G3&\"%\"&IFERROR(IF(X31>=参照表!G3/100,\"○\",\"×\"),\"？\"),\"\")","v":"≧%？"},null,null,null,9,{"$f":"VLOOKUP(AF31,$BA$23:$BB$44,2,0)","v":{"$error":"#N/A"}},null,null,null,null,null,null,null,null,null,null,null,null,null,null,null,null,null,null,null,null,null,"面接相談員",9,null,null,"","","",{"$f":"IFERROR(ISNUMBER(MATCH(AF31,参照表!$S$2:$AA$2,0)),FALSE)","v":false},{"$f":"IFERROR(ISNUMBER(MATCH(AF31,参照表!$S$3:$AA$3,0)),FALSE)","v":false},{"$f":"IFERROR(ISNUMBER(MATCH(AF31,参照表!$S$4:$AA$4,0)),FALSE)","v":false},false,{"$f":"IFERROR(ISNUMBER(MATCH(AF31,参照表!$S$6:$AA$6,0)),FALSE)","v":false},false,false,false,false,false,{"$error":"#DIV/0!"},{"$error":"#DIV/0!"},{"$error":"#DIV/0!"},{"$error":"#DIV/0!"},{"$error":"#DIV/0!"},{"$error":"#DIV/0!"},{"$error":"#DIV/0!"},{"$error":"#DIV/0!"},{"$error":"#DIV/0!"},{"$error":"#DIV/0!"},{"$error":"#DIV/0!"},"","","","","","","","","","",""]
[null,{"$f":"IF(B30=\"\",\"\",\"aのうち、\"&参照表!F3&\"の数\")","v":""},null,null,null,null,{"$f":"IFERROR(ROUNDDOWN(VLOOKUP(参照表!$D$3,参照表!$D$80:$Z$101,COLUMN()+6,0)/AK$12,1),\"\")","v":""},{"$f":"IFERROR(ROUNDDOWN(VLOOKUP(参照表!$D$3,参照表!$D$80:$Z$101,COLUMN()+6,0)/AL$12,1),\"\")","v":""},{"$f":"IFERROR(ROUNDDOWN(VLOOKUP(参照表!$D$3,参照表!$D$80:$Z$101,COLUMN()+6,0)/AM$12,1),\"\")","v":""},{"$f":"IFERROR(ROUNDDOWN(VLOOKUP(参照表!$D$3,参照表!$D$80:$Z$101,COLUMN()+6,0)/AN$12,1),\"\")","v":""},{"$f":"IFERROR(ROUNDDOWN(VLOOKUP(参照表!$D$3,参照表!$D$80:$Z$101,COLUMN()+6,0)/AO$12,1),\"\")","v":""},{"$f":"IFERROR(ROUNDDOWN(VLOOKUP(参照表!$D$3,参照表!$D$80:$Z$101,COLUMN()+6,0)/AP$12,1),\"\")","v":""},{"$f":"IFERROR(ROUNDDOWN(VLOOKUP(参照表!$D$3,参照表!$D$80:$Z$101,COLUMN()+6,0)/AQ$12,1),\"\")","v":""},{"$f":"IFERROR(ROUNDDOWN(VLOOKUP(参照表!$D$3,参照表!$D$80:$Z$101,COLUMN()+6,0)/AR$12,1),\"\")","v":""},{"$f":"IFERROR(ROUNDDOWN(VLOOKUP(参照表!$D$3,参照表!$D$80:$Z$101,COLUMN()+6,0)/AS$12,1),\"\")","v":""},{"$f":"IFERROR(ROUNDDOWN(VLOOKUP(参照表!$D$3,参照表!$D$80:$Z$101,COLUMN()+6,0)/AT$12,1),\"\")","v":""},{"$f":"IFERROR(ROUNDDOWN(VLOOKUP(参照表!$D$3,参照表!$D$80:$Z$101,COLUMN()+6,0)/AU$12,1),\"\")","v":""},{"$f":"ROUNDDOWN(AVERAGE(G32:Q33),2)","v":{"$error":"#DIV/0!"}},null,null,null,null,null,null,null,null,null,null,null,10,{"$f":"VLOOKUP(AF32,$BA$23:$BB$44,2,0)","v":{"$error":"#N/A"}},null,null,null,null,null,null,null,null,null,null,null,null,null,null,null,null,null,null,null,null,null,"介護職員",10,null,null,"","","",{"$f":"IFERROR(ISNUMBER(MATCH(AF32,参照表!$S$2:$AA$2,0)),FALSE)","v":false},{"$f":"IFERROR(ISNUMBER(MATCH(AF32,参照表!$S$3:$AA$3,0)),FALSE)","v":false},{"$f":"IFERROR(ISNUMBER(MATCH(AF32,参照表!$S$4:$AA$4,0)),FALSE)","v":false},false,{"$f":"IFERROR(ISNUMBER(MATCH(AF32,参照表!$S$6:$AA$6,0)),FALSE)","v":false},false,false,false,false,false,{"$error":"#DIV/0!"},{"$error":"#DIV/0!"},{"$error":"#DIV/0!"},{"$error":"#DIV/0!"},{"$error":"#DIV/0!"},{"$error":"#DIV/0!"},{"$error":"#DIV/0!"},{"$error":"#DIV/0!"},{"$error":"#DIV/0!"},{"$error":"#DIV/0!"},{"$error":"#DIV/0!"},"","","","","","","","","","",""]
[null,null,null,null,null,null,null,null,null,null,null,null,null,null,null,null,null,null,null,null,null," ",null,null,null,null,null,null,null,11,{"$f":"VLOOKUP(AF33,$BA$23:$BB$44,2,0)","v":{"$error":"#N/A"}},null,null,null,null,null,null,null,null,null,null,null,null,null,null,null,null,null,null,null,null,null,"訪問介護員",11,null,null,"","","",{"$f":"IFERROR(ISNUMBER(MATCH(AF33,参照表!$S$2:$AA$2,0)),FALSE)","v":false},{"$f":"IFERROR(ISNUMBER(MATCH(AF33,参照表!$S$3:$AA$3,0)),FALSE)","v":false},{"$f":"IFERROR(ISNUMBER(MATCH(AF33,参照表!$S$4:$AA$4,0)),FALSE)","v":false},false,{"$f":"IFERROR(ISNUMBER(MATCH(AF33,参照表!$S$6:$AA$6,0)),FALSE)","v":false},false,false,false,false,false,{"$error":"#DIV/0!"},{"$error":"#DIV/0!"},{"$error":"#DIV/0!"},{"$error":"#DIV/0!"},{"$error":"#DIV/0!"},{"$error":"#DIV/0!"},{"$error":"#DIV/0!"},{"$error":"#DIV/0!"},{"$error":"#DIV/0!"},{"$error":"#DIV/0!"},{"$error":"#DIV/0!"},"","","","","","","","","","",""]
["b",{"$f":"IF(参照表!E4=\"\",\"\",参照表!E4&\"の総数\")","v":""},null,null,null,null,{"$f":"IFERROR(ROUNDDOWN(VLOOKUP(参照表!$D$4,参照表!$D$80:$Z$101,COLUMN()-5,0)/AK$12,1),\"\")","v":""},{"$f":"IFERROR(ROUNDDOWN(VLOOKUP(参照表!$D$4,参照表!$D$80:$Z$101,COLUMN()-5,0)/AL$12,1),\"\")","v":""},{"$f":"IFERROR(ROUNDDOWN(VLOOKUP(参照表!$D$4,参照表!$D$80:$Z$101,COLUMN()-5,0)/AM$12,1),\"\")","v":""},{"$f":"IFERROR(ROUNDDOWN(VLOOKUP(参照表!$D$4,参照表!$D$80:$Z$101,COLUMN()-5,0)/AN$12,1),\"\")","v":""},{"$f":"IFERROR(ROUNDDOWN(VLOOKUP(参照表!$D$4,参照表!$D$80:$Z$101,COLUMN()-5,0)/AO$12,1),\"\")","v":""},{"$f":"IFERROR(ROUNDDOWN(VLOOKUP(参照表!$D$4,参照表!$D$80:$Z$101,COLUMN()-5,0)/AP$12,1),\"\")","v":""},{"$f":"IFERROR(ROUNDDOWN(VLOOKUP(参照表!$D$4,参照表!$D$80:$Z$101,COLUMN()-5,0)/AQ$12,1),\"\")","v":""},{"$f":"IFERROR(ROUNDDOWN(VLOOKUP(参照表!$D$4,参照表!$D$80:$Z$101,COLUMN()-5,0)/AR$12,1),\"\")","v":""},{"$f":"IFERROR(ROUNDDOWN(VLOOKUP(参照表!$D$4,参照表!$D$80:$Z$101,COLUMN()-5,0)/AS$12,1),\"\")","v":""},{"$f":"IFERROR(ROUNDDOWN(VLOOKUP(参照表!$D$4,参照表!$D$80:$Z$101,COLUMN()-5,0)/AT$12,1),\"\")","v":""},{"$f":"IFERROR(ROUNDDOWN(VLOOKUP(参照表!$D$4,参照表!$D$80:$Z$101,COLUMN()-5,0)/AU$12,1),\"\")","v":""},{"$f":"ROUNDDOWN(AVERAGE(G34:Q35),2)","v":{"$error":"#DIV/0!"}},null,null,null,null,null,null,null,null,null,null,null,12,{"$f":"VLOOKUP(AF34,$BA$23:$BB$44,2,0)","v":{"$error":"#N/A"}},null,null,null,null,null,null,null,null,null,null,null,null,null,null,null,null,null,null,null,null,null,"看護職員",12,null,null,"","","",{"$f":"IFERROR(ISNUMBER(MATCH(AF34,参照表!$S$2:$AA$2,0)),FALSE)","v":false},{"$f":"IFERROR(ISNUMBER(MATCH(AF34,参照表!$S$3:$AA$3,0)),FALSE)","v":false},{"$f":"IFERROR(ISNUMBER(MATCH(AF34,参照表!$S$4:$AA$4,0)),FALSE)","v":false},false,{"$f":"IFERROR(ISNUMBER(MATCH(AF34,参照表!$S$6:$AA$6,0)),FALSE)","v":false},false,false,false,false,false,{"$error":"#DIV/0!"},{"$error":"#DIV/0!"},{"$error":"#DIV/0!"},{"$error":"#DIV/0!"},{"$error":"#DIV/0!"},{"$error":"#DIV/0!"},{"$error":"#DIV/0!"},{"$error":"#DIV/0!"},{"$error":"#DIV/0!"},{"$error":"#DIV/0!"},{"$error":"#DIV/0!"},"","","","","","","","","","",""]
[null,null,null,null,null,null,null,null,null,null,null,null,null,null,null,null,null,null,"b",{"$f":"ROUNDDOWN(R36,1)","v":{"$error":"#DIV/0!"}},"÷",{"$f":"ROUNDDOWN(R34,1)","v":{"$error":"#DIV/0!"}},"=",{"$f":"ROUNDDOWN(ROUNDDOWN(T35,1)/ROUNDDOWN(V35,1),2)","v":{"$error":"#DIV/0!"}},null,{"$f":"IF(AND(参照表!G4>0,ISNUMBER(参照表!G4)),\"≧\"&参照表!G4&\"%\"&IFERROR(IF(X35>=参照表!G4/100,\"○\",\"×\"),\"？\"),\"\")","v":""},null,null,null,13,{"$f":"VLOOKUP(AF35,$BA$23:$BB$44,2,0)","v":{"$error":"#N/A"}},null,null,null,null,null,null,null,null,null,null,null,null,null,null,null,null,null,null,null,null,null,"訪問看護員",13,null,null,"","","",{"$f":"IFERROR(ISNUMBER(MATCH(AF35,参照表!$S$2:$AA$2,0)),FALSE)","v":false},{"$f":"IFERROR(ISNUMBER(MATCH(AF35,参照表!$S$3:$AA$3,0)),FALSE)","v":false},{"$f":"IFERROR(ISNUMBER(MATCH(AF35,参照表!$S$4:$AA$4,0)),FALSE)","v":false},false,{"$f":"IFERROR(ISNUMBER(MATCH(AF35,参照表!$S$6:$AA$6,0)),FALSE)","v":false},false,false,false,false,false,{"$error":"#DIV/0!"},{"$error":"#DIV/0!"},{"$error":"#DIV/0!"},{"$error":"#DIV/0!"},{"$error":"#DIV/0!"},{"$error":"#DIV/0!"},{"$error":"#DIV/0!"},{"$error":"#DIV/0!"},{"$error":"#DIV/0!"},{"$error":"#DIV/0!"},{"$error":"#DIV/0!"},"","","","","","","","","","",""]
[null,{"$f":"IF(B34=\"\",\"\",\"bのうち、\"&参照表!F4&\"の数\")","v":""},null,null,null,null,{"$f":"IFERROR(ROUNDDOWN(VLOOKUP(参照表!$D$4,参照表!$D$80:$Z$101,COLUMN()+6,0)/AK$12,1),\"\")","v":""},{"$f":"IFERROR(ROUNDDOWN(VLOOKUP(参照表!$D$4,参照表!$D$80:$Z$101,COLUMN()+6,0)/AL$12,1),\"\")","v":""},{"$f":"IFERROR(ROUNDDOWN(VLOOKUP(参照表!$D$4,参照表!$D$80:$Z$101,COLUMN()+6,0)/AM$12,1),\"\")","v":""},{"$f":"IFERROR(ROUNDDOWN(VLOOKUP(参照表!$D$4,参照表!$D$80:$Z$101,COLUMN()+6,0)/AN$12,1),\"\")","v":""},{"$f":"IFERROR(ROUNDDOWN(VLOOKUP(参照表!$D$4,参照表!$D$80:$Z$101,COLUMN()+6,0)/AO$12,1),\"\")","v":""},{"$f":"IFERROR(ROUNDDOWN(VLOOKUP(参照表!$D$4,参照表!$D$80:$Z$101,COLUMN()+6,0)/AP$12,1),\"\")","v":""},{"$f":"IFERROR(ROUNDDOWN(VLOOKUP(参照表!$D$4,参照表!$D$80:$Z$101,COLUMN()+6,0)/AQ$12,1),\"\")","v":""},{"$f":"IFERROR(ROUNDDOWN(VLOOKUP(参照表!$D$4,参照表!$D$80:$Z$101,COLUMN()+6,0)/AR$12,1),\"\")","v":""},{"$f":"IFERROR(ROUNDDOWN(VLOOKUP(参照表!$D$4,参照表!$D$80:$Z$101,COLUMN()+6,0)/AS$12,1),\"\")","v":""},{"$f":"IFERROR(ROUNDDOWN(VLOOKUP(参照表!$D$4,参照表!$D$80:$Z$101,COLUMN()+6,0)/AT$12,1),\"\")","v":""},{"$f":"IFERROR(ROUNDDOWN(VLOOKUP(参照表!$D$4,参照表!$D$80:$Z$101,COLUMN()+6,0)/AU$12,1),\"\")","v":""},{"$f":"ROUNDDOWN(AVERAGE(G36:Q37),2)","v":{"$error":"#DIV/0!"}},null,null,null,null,null,null,null,null,null,null,null,14,{"$f":"VLOOKUP(AF36,$BA$23:$BB$44,2,0)","v":{"$error":"#N/A"}},null,null,null,null,null,null,null,null,null,null,null,null,null,null,null,null,null,null,null,null,null,"支援相談員",14,null,null,"","","",{"$f":"IFERROR(ISNUMBER(MATCH(AF36,参照表!$S$2:$AA$2,0)),FALSE)","v":false},{"$f":"IFERROR(ISNUMBER(MATCH(AF36,参照表!$S$3:$AA$3,0)),FALSE)","v":false},{"$f":"IFERROR(ISNUMBER(MATCH(AF36,参照表!$S$4:$AA$4,0)),FALSE)","v":false},false,{"$f":"IFERROR(ISNUMBER(MATCH(AF36,参照表!$S$6:$AA$6,0)),FALSE)","v":false},false,false,false,false,false,{"$error":"#DIV/0!"},{"$error":"#DIV/0!"},{"$error":"#DIV/0!"},{"$error":"#DIV/0!"},{"$error":"#DIV/0!"},{"$error":"#DIV/0!"},{"$error":"#DIV/0!"},{"$error":"#DIV/0!"},{"$error":"#DIV/0!"},{"$error":"#DIV/0!"},{"$error":"#DIV/0!"},"","","","","","","","","","",""]
[null,null,null,null,null,null,null,null,null,null,null,null,null,null,null,null,null,null,null,null,null,null,null,null,null,null,null,null,null,15,{"$f":"VLOOKUP(AF37,$BA$23:$BB$44,2,0)","v":{"$error":"#N/A"}},null,null,null,null,null,null,null,null,null,null,null,null,null,null,null,null,null,null,null,null,null,"OT・PT・ST",15,null,null,"","","",{"$f":"IFERROR(ISNUMBER(MATCH(AF37,参照表!$S$2:$AA$2,0)),FALSE)","v":false},{"$f":"IFERROR(ISNUMBER(MATCH(AF37,参照表!$S$3:$AA$3,0)),FALSE)","v":false},{"$f":"IFERROR(ISNUMBER(MATCH(AF37,参照表!$S$4:$AA$4,0)),FALSE)","v":false},false,{"$f":"IFERROR(ISNUMBER(MATCH(AF37,参照表!$S$6:$AA$6,0)),FALSE)","v":false},false,false,false,false,false,{"$error":"#DIV/0!"},{"$error":"#DIV/0!"},{"$error":"#DIV/0!"},{"$error":"#DIV/0!"},{"$error":"#DIV/0!"},{"$error":"#DIV/0!"},{"$error":"#DIV/0!"},{"$error":"#DIV/0!"},{"$error":"#DIV/0!"},{"$error":"#DIV/0!"},{"$error":"#DIV/0!"},"","","","","","","","","","",""]
["c",{"$f":"IF(参照表!E5=\"\",\"\",参照表!E5&\"の総数\")","v":""},null,null,null,null,{"$f":"IFERROR(ROUNDDOWN(VLOOKUP(参照表!$D$5,参照表!$D$80:$Z$101,COLUMN()-5,0)/AK$12,1),\"\")","v":""},{"$f":"IFERROR(ROUNDDOWN(VLOOKUP(参照表!$D$5,参照表!$D$80:$Z$101,COLUMN()-5,0)/AL$12,1),\"\")","v":""},{"$f":"IFERROR(ROUNDDOWN(VLOOKUP(参照表!$D$5,参照表!$D$80:$Z$101,COLUMN()-5,0)/AM$12,1),\"\")","v":""},{"$f":"IFERROR(ROUNDDOWN(VLOOKUP(参照表!$D$5,参照表!$D$80:$Z$101,COLUMN()-5,0)/AN$12,1),\"\")","v":""},{"$f":"IFERROR(ROUNDDOWN(VLOOKUP(参照表!$D$5,参照表!$D$80:$Z$101,COLUMN()-5,0)/AO$12,1),\"\")","v":""},{"$f":"IFERROR(ROUNDDOWN(VLOOKUP(参照表!$D$5,参照表!$D$80:$Z$101,COLUMN()-5,0)/AP$12,1),\"\")","v":""},{"$f":"IFERROR(ROUNDDOWN(VLOOKUP(参照表!$D$5,参照表!$D$80:$Z$101,COLUMN()-5,0)/AQ$12,1),\"\")","v":""},{"$f":"IFERROR(ROUNDDOWN(VLOOKUP(参照表!$D$5,参照表!$D$80:$Z$101,COLUMN()-5,0)/AR$12,1),\"\")","v":""},{"$f":"IFERROR(ROUNDDOWN(VLOOKUP(参照表!$D$5,参照表!$D$80:$Z$101,COLUMN()-5,0)/AS$12,1),\"\")","v":""},{"$f":"IFERROR(ROUNDDOWN(VLOOKUP(参照表!$D$5,参照表!$D$80:$Z$101,COLUMN()-5,0)/AT$12,1),\"\")","v":""},{"$f":"IFERROR(ROUNDDOWN(VLOOKUP(参照表!$D$5,参照表!$D$80:$Z$101,COLUMN()-5,0)/AU$12,1),\"\")","v":""},{"$f":"ROUNDDOWN(AVERAGE(G38:Q39),2)","v":{"$error":"#DIV/0!"}},null,null,null,null,null,null,null,null,null,null,null,16,{"$f":"VLOOKUP(AF38,$BA$23:$BB$44,2,0)","v":{"$error":"#N/A"}},null,null,null,null,null,null,null,null,null,null,null,null,null,null,null,null,null,null,null,null,null,"栄養士",16,null,null,"","","",{"$f":"IFERROR(ISNUMBER(MATCH(AF38,参照表!$S$2:$AA$2,0)),FALSE)","v":false},{"$f":"IFERROR(ISNUMBER(MATCH(AF38,参照表!$S$3:$AA$3,0)),FALSE)","v":false},{"$f":"IFERROR(ISNUMBER(MATCH(AF38,参照表!$S$4:$AA$4,0)),FALSE)","v":false},false,{"$f":"IFERROR(ISNUMBER(MATCH(AF38,参照表!$S$6:$AA$6,0)),FALSE)","v":false},false,false,false,false,false,{"$error":"#DIV/0!"},{"$error":"#DIV/0!"},{"$error":"#DIV/0!"},{"$error":"#DIV/0!"},{"$error":"#DIV/0!"},{"$error":"#DIV/0!"},{"$error":"#DIV/0!"},{"$error":"#DIV/0!"},{"$error":"#DIV/0!"},{"$error":"#DIV/0!"},{"$error":"#DIV/0!"},"","","","","","","","","","",""]
[null,null,null,null,null,null,null,null,null,null,null,null,null,null,null,null,null,null,"c",{"$f":"ROUNDDOWN(R40,1)","v":{"$error":"#DIV/0!"}},"÷",{"$f":"ROUNDDOWN(R38,1)","v":{"$error":"#DIV/0!"}},"=",{"$f":"ROUNDDOWN(ROUNDDOWN(T39,1)/ROUNDDOWN(V39,1),2)","v":{"$error":"#DIV/0!"}},null,{"$f":"IF(AND(参照表!G5>0,ISNUMBER(参照表!G5)),\"≧\"&参照表!G5&\"%\"&IFERROR(IF(X39>=参照表!G5/100,\"○\",\"×\"),\"？\"),\"\")","v":""},null,null,null,17,{"$f":"VLOOKUP(AF39,$BA$23:$BB$44,2,0)","v":{"$error":"#N/A"}},null,null,null,null,null,null,null,null,null,null,null,null,null,null,null,null,null,null,null,null,null,"作業療法士",17,null,null,"","","",{"$f":"IFERROR(ISNUMBER(MATCH(AF39,参照表!$S$2:$AA$2,0)),FALSE)","v":false},{"$f":"IFERROR(ISNUMBER(MATCH(AF39,参照表!$S$3:$AA$3,0)),FALSE)","v":false},{"$f":"IFERROR(ISNUMBER(MATCH(AF39,参照表!$S$4:$AA$4,0)),FALSE)","v":false},false,{"$f":"IFERROR(ISNUMBER(MATCH(AF39,参照表!$S$6:$AA$6,0)),FALSE)","v":false},false,false,false,false,false,{"$error":"#DIV/0!"},{"$error":"#DIV/0!"},{"$error":"#DIV/0!"},{"$error":"#DIV/0!"},{"$error":"#DIV/0!"},{"$error":"#DIV/0!"},{"$error":"#DIV/0!"},{"$error":"#DIV/0!"},{"$error":"#DIV/0!"},{"$error":"#DIV/0!"},{"$error":"#DIV/0!"},"","","","","","","","","","",""]
[null,{"$f":"IF(B38=\"\",\"\",\"cのうち、\"&参照表!F5&\"の数\")","v":""},null,null,null,null,{"$f":"IFERROR(ROUNDDOWN(VLOOKUP(参照表!$D$5,参照表!$D$80:$Z$101,COLUMN()+6,0)/AK$12,1),\"\")","v":""},{"$f":"IFERROR(ROUNDDOWN(VLOOKUP(参照表!$D$5,参照表!$D$80:$Z$101,COLUMN()+6,0)/AL$12,1),\"\")","v":""},{"$f":"IFERROR(ROUNDDOWN(VLOOKUP(参照表!$D$5,参照表!$D$80:$Z$101,COLUMN()+6,0)/AM$12,1),\"\")","v":""},{"$f":"IFERROR(ROUNDDOWN(VLOOKUP(参照表!$D$5,参照表!$D$80:$Z$101,COLUMN()+6,0)/AN$12,1),\"\")","v":""},{"$f":"IFERROR(ROUNDDOWN(VLOOKUP(参照表!$D$5,参照表!$D$80:$Z$101,COLUMN()+6,0)/AO$12,1),\"\")","v":""},{"$f":"IFERROR(ROUNDDOWN(VLOOKUP(参照表!$D$5,参照表!$D$80:$Z$101,COLUMN()+6,0)/AP$12,1),\"\")","v":""},{"$f":"IFERROR(ROUNDDOWN(VLOOKUP(参照表!$D$5,参照表!$D$80:$Z$101,COLUMN()+6,0)/AQ$12,1),\"\")","v":""},{"$f":"IFERROR(ROUNDDOWN(VLOOKUP(参照表!$D$5,参照表!$D$80:$Z$101,COLUMN()+6,0)/AR$12,1),\"\")","v":""},{"$f":"IFERROR(ROUNDDOWN(VLOOKUP(参照表!$D$5,参照表!$D$80:$Z$101,COLUMN()+6,0)/AS$12,1),\"\")","v":""},{"$f":"IFERROR(ROUNDDOWN(VLOOKUP(参照表!$D$5,参照表!$D$80:$Z$101,COLUMN()+6,0)/AT$12,1),\"\")","v":""},{"$f":"IFERROR(ROUNDDOWN(VLOOKUP(参照表!$D$5,参照表!$D$80:$Z$101,COLUMN()+6,0)/AU$12,1),\"\")","v":""},{"$f":"ROUNDDOWN(AVERAGE(G40:Q41),2)","v":{"$error":"#DIV/0!"}},null,null,null,null,null,null,null,null,null,null,null,18,{"$f":"VLOOKUP(AF40,$BA$23:$BB$44,2,0)","v":{"$error":"#N/A"}},null,null,null,null,null,null,null,null,null,null,null,null,null,null,null,null,null,null,null,null,null,"精神保健福祉士",18,null,null,"","","",{"$f":"IFERROR(ISNUMBER(MATCH(AF40,参照表!$S$2:$AA$2,0)),FALSE)","v":false},{"$f":"IFERROR(ISNUMBER(MATCH(AF40,参照表!$S$3:$AA$3,0)),FALSE)","v":false},{"$f":"IFERROR(ISNUMBER(MATCH(AF40,参照表!$S$4:$AA$4,0)),FALSE)","v":false},false,{"$f":"IFERROR(ISNUMBER(MATCH(AF40,参照表!$S$6:$AA$6,0)),FALSE)","v":false},false,false,false,false,false,{"$error":"#DIV/0!"},{"$error":"#DIV/0!"},{"$error":"#DIV/0!"},{"$error":"#DIV/0!"},{"$error":"#DIV/0!"},{"$error":"#DIV/0!"},{"$error":"#DIV/0!"},{"$error":"#DIV/0!"},{"$error":"#DIV/0!"},{"$error":"#DIV/0!"},{"$error":"#DIV/0!"},"","","","","","","","","","",""]
[null,null,null,null,null,null,null,null,null,null,null,null,null,null,null,null,null,null,null,null,null,null,null,null,null,null,null,null,null,19,{"$f":"VLOOKUP(AF41,$BA$23:$BB$44,2,0)","v":{"$error":"#N/A"}},null,null,null,null,null,null,null,null,null,null,null,null,null,null,null,null,null,null,null,null,null,"機能訓練指導員",19,null,null,"","","",{"$f":"IFERROR(ISNUMBER(MATCH(AF41,参照表!$S$2:$AA$2,0)),FALSE)","v":false},{"$f":"IFERROR(ISNUMBER(MATCH(AF41,参照表!$S$3:$AA$3,0)),FALSE)","v":false},{"$f":"IFERROR(ISNUMBER(MATCH(AF41,参照表!$S$4:$AA$4,0)),FALSE)","v":false},false,{"$f":"IFERROR(ISNUMBER(MATCH(AF41,参照表!$S$6:$AA$6,0)),FALSE)","v":false},false,false,false,false,false,{"$error":"#DIV/0!"},{"$error":"#DIV/0!"},{"$error":"#DIV/0!"},{"$error":"#DIV/0!"},{"$error":"#DIV/0!"},{"$error":"#DIV/0!"},{"$error":"#DIV/0!"},{"$error":"#DIV/0!"},{"$error":"#DIV/0!"},{"$error":"#DIV/0!"},{"$error":"#DIV/0!"},"","","","","","","","","","",""]
["ｄ",{"$f":"IF(参照表!E6=\"\",\"\",参照表!E6&\"の総数\")","v":""},null,null,null,null,{"$f":"IFERROR(ROUNDDOWN(VLOOKUP(参照表!$D$6,参照表!$D$80:$Z$101,COLUMN()-5,0)/AK$12,1),\"\")","v":""},{"$f":"IFERROR(ROUNDDOWN(VLOOKUP(参照表!$D$6,参照表!$D$80:$Z$101,COLUMN()-5,0)/AL$12,1),\"\")","v":""},{"$f":"IFERROR(ROUNDDOWN(VLOOKUP(参照表!$D$6,参照表!$D$80:$Z$101,COLUMN()-5,0)/AM$12,1),\"\")","v":""},{"$f":"IFERROR(ROUNDDOWN(VLOOKUP(参照表!$D$6,参照表!$D$80:$Z$101,COLUMN()-5,0)/AN$12,1),\"\")","v":""},{"$f":"IFERROR(ROUNDDOWN(VLOOKUP(参照表!$D$6,参照表!$D$80:$Z$101,COLUMN()-5,0)/AO$12,1),\"\")","v":""},{"$f":"IFERROR(ROUNDDOWN(VLOOKUP(参照表!$D$6,参照表!$D$80:$Z$101,COLUMN()-5,0)/AP$12,1),\"\")","v":""},{"$f":"IFERROR(ROUNDDOWN(VLOOKUP(参照表!$D$6,参照表!$D$80:$Z$101,COLUMN()-5,0)/AQ$12,1),\"\")","v":""},{"$f":"IFERROR(ROUNDDOWN(VLOOKUP(参照表!$D$6,参照表!$D$80:$Z$101,COLUMN()-5,0)/AR$12,1),\"\")","v":""},{"$f":"IFERROR(ROUNDDOWN(VLOOKUP(参照表!$D$6,参照表!$D$80:$Z$101,COLUMN()-5,0)/AS$12,1),\"\")","v":""},{"$f":"IFERROR(ROUNDDOWN(VLOOKUP(参照表!$D$6,参照表!$D$80:$Z$101,COLUMN()-5,0)/AT$12,1),\"\")","v":""},{"$f":"IFERROR(ROUNDDOWN(VLOOKUP(参照表!$D$6,参照表!$D$80:$Z$101,COLUMN()-5,0)/AU$12,1),\"\")","v":""},{"$f":"ROUNDDOWN(AVERAGE(G42:Q43),2)","v":{"$error":"#DIV/0!"}},null,null,null,null,null,null,null,null,null,null,null,20,{"$f":"VLOOKUP(AF42,$BA$23:$BB$44,2,0)","v":{"$error":"#N/A"}},null,null,null,null,null,null,null,null,null,null,null,null,null,null,null,null,null,null,null,null,null,"柔道整復師等",20,null,null,"","","",{"$f":"IFERROR(ISNUMBER(MATCH(AF42,参照表!$S$2:$AA$2,0)),FALSE)","v":false},{"$f":"IFERROR(ISNUMBER(MATCH(AF42,参照表!$S$3:$AA$3,0)),FALSE)","v":false},{"$f":"IFERROR(ISNUMBER(MATCH(AF42,参照表!$S$4:$AA$4,0)),FALSE)","v":false},false,{"$f":"IFERROR(ISNUMBER(MATCH(AF42,参照表!$S$6:$AA$6,0)),FALSE)","v":false},false,false,false,false,false,{"$error":"#DIV/0!"},{"$error":"#DIV/0!"},{"$error":"#DIV/0!"},{"$error":"#DIV/0!"},{"$error":"#DIV/0!"},{"$error":"#DIV/0!"},{"$error":"#DIV/0!"},{"$error":"#DIV/0!"},{"$error":"#DIV/0!"},{"$error":"#DIV/0!"},{"$error":"#DIV/0!"},"","","","","","","","","","",""]
[null,null,null,null,null,null,null,null,null,null,null,null,null,null,null,null,null,null,"d",{"$f":"ROUNDDOWN(R44,1)","v":{"$error":"#DIV/0!"}},"÷",{"$f":"ROUNDDOWN(R42,1)","v":{"$error":"#DIV/0!"}},"=",{"$f":"ROUNDDOWN(ROUNDDOWN(T43,1)/ROUNDDOWN(V43,1),2)","v":{"$error":"#DIV/0!"}},null,{"$f":"IF(AND(参照表!G6>0,ISNUMBER(参照表!G6)),\"≧\"&参照表!G6&\"%\"&IFERROR(IF(X43>=参照表!G6/100,\"○\",\"×\"),\"？\"),\"\")","v":""},null,null,null,21,{"$f":"VLOOKUP(AF43,$BA$23:$BB$44,2,0)","v":{"$error":"#N/A"}},null,null,null,null,null,null,null,null,null,null,null,null,null,null,null,null,null,null,null,null,null,"調理員その他",21,null,null,"","","",{"$f":"IFERROR(ISNUMBER(MATCH(AF43,参照表!$S$2:$AA$2,0)),FALSE)","v":false},{"$f":"IFERROR(ISNUMBER(MATCH(AF43,参照表!$S$3:$AA$3,0)),FALSE)","v":false},{"$f":"IFERROR(ISNUMBER(MATCH(AF43,参照表!$S$4:$AA$4,0)),FALSE)","v":false},false,{"$f":"IFERROR(ISNUMBER(MATCH(AF43,参照表!$S$6:$AA$6,0)),FALSE)","v":false},false,false,false,false,false,{"$error":"#DIV/0!"},{"$error":"#DIV/0!"},{"$error":"#DIV/0!"},{"$error":"#DIV/0!"},{"$error":"#DIV/0!"},{"$error":"#DIV/0!"},{"$error":"#DIV/0!"},{"$error":"#DIV/0!"},{"$error":"#DIV/0!"},{"$error":"#DIV/0!"},{"$error":"#DIV/0!"},"","","","","","","","","","",""]
[null,{"$f":"IF(B42=\"\",\"\",\"dのうち、\"&参照表!F6&\"の数\")","v":""},null,null,null,null,{"$f":"IFERROR(ROUNDDOWN(VLOOKUP(参照表!$D$6,参照表!$D$80:$Z$101,COLUMN()+6,0)/AK$12,1),\"\")","v":""},{"$f":"IFERROR(ROUNDDOWN(VLOOKUP(参照表!$D$6,参照表!$D$80:$Z$101,COLUMN()+6,0)/AL$12,1),\"\")","v":""},{"$f":"IFERROR(ROUNDDOWN(VLOOKUP(参照表!$D$6,参照表!$D$80:$Z$101,COLUMN()+6,0)/AM$12,1),\"\")","v":""},{"$f":"IFERROR(ROUNDDOWN(VLOOKUP(参照表!$D$6,参照表!$D$80:$Z$101,COLUMN()+6,0)/AN$12,1),\"\")","v":""},{"$f":"IFERROR(ROUNDDOWN(VLOOKUP(参照表!$D$6,参照表!$D$80:$Z$101,COLUMN()+6,0)/AO$12,1),\"\")","v":""},{"$f":"IFERROR(ROUNDDOWN(VLOOKUP(参照表!$D$6,参照表!$D$80:$Z$101,COLUMN()+6,0)/AP$12,1),\"\")","v":""},{"$f":"IFERROR(ROUNDDOWN(VLOOKUP(参照表!$D$6,参照表!$D$80:$Z$101,COLUMN()+6,0)/AQ$12,1),\"\")","v":""},{"$f":"IFERROR(ROUNDDOWN(VLOOKUP(参照表!$D$6,参照表!$D$80:$Z$101,COLUMN()+6,0)/AR$12,1),\"\")","v":""},{"$f":"IFERROR(ROUNDDOWN(VLOOKUP(参照表!$D$6,参照表!$D$80:$Z$101,COLUMN()+6,0)/AS$12,1),\"\")","v":""},{"$f":"IFERROR(ROUNDDOWN(VLOOKUP(参照表!$D$6,参照表!$D$80:$Z$101,COLUMN()+6,0)/AT$12,1),\"\")","v":""},{"$f":"IFERROR(ROUNDDOWN(VLOOKUP(参照表!$D$6,参照表!$D$80:$Z$101,COLUMN()+6,0)/AU$12,1),\"\")","v":""},{"$f":"ROUNDDOWN(AVERAGE(G44:Q45),2)","v":{"$error":"#DIV/0!"}},null,null,null,null,null,null,null,null,null,null,null,22,{"$f":"VLOOKUP(AF44,$BA$23:$BB$44,2,0)","v":{"$error":"#N/A"}},null,null,null,null,null,null,null,null,null,null,null,null,null,null,null,null,null,null,null,null,null,"調理員・事務員その他",22,null,null,"","","",{"$f":"IFERROR(ISNUMBER(MATCH(AF44,参照表!$S$2:$AA$2,0)),FALSE)","v":false},{"$f":"IFERROR(ISNUMBER(MATCH(AF44,参照表!$S$3:$AA$3,0)),FALSE)","v":false},{"$f":"IFERROR(ISNUMBER(MATCH(AF44,参照表!$S$4:$AA$4,0)),FALSE)","v":false},false,{"$f":"IFERROR(ISNUMBER(MATCH(AF44,参照表!$S$6:$AA$6,0)),FALSE)","v":false},false,false,false,false,false,{"$error":"#DIV/0!"},{"$error":"#DIV/0!"},{"$error":"#DIV/0!"},{"$error":"#DIV/0!"},{"$error":"#DIV/0!"},{"$error":"#DIV/0!"},{"$error":"#DIV/0!"},{"$error":"#DIV/0!"},{"$error":"#DIV/0!"},{"$error":"#DIV/0!"},{"$error":"#DIV/0!"},"","","","","","","","","","",""]
[null,null,null,null,null,null,null,null,null,null,null,null,null,null,null,null,null,null,null,null,null,null,null,null,null,null,null,null,null,23,{"$f":"VLOOKUP(AF45,$BA$23:$BB$44,2,0)","v":{"$error":"#N/A"}},null,null,null,null,null,null,null,null,null,null,null,null,null,null,null,null,null,null,null,null,null,null,null,null,null,"","","",{"$f":"IFERROR(ISNUMBER(MATCH(AF45,参照表!$S$2:$AA$2,0)),FALSE)","v":false},{"$f":"IFERROR(ISNUMBER(MATCH(AF45,参照表!$S$3:$AA$3,0)),FALSE)","v":false},{"$f":"IFERROR(ISNUMBER(MATCH(AF45,参照表!$S$4:$AA$4,0)),FALSE)","v":false},false,{"$f":"IFERROR(ISNUMBER(MATCH(AF45,参照表!$S$6:$AA$6,0)),FALSE)","v":false},false,false,false,false,false,{"$error":"#DIV/0!"},{"$error":"#DIV/0!"},{"$error":"#DIV/0!"},{"$error":"#DIV/0!"},{"$error":"#DIV/0!"},{"$error":"#DIV/0!"},{"$error":"#DIV/0!"},{"$error":"#DIV/0!"},{"$error":"#DIV/0!"},{"$error":"#DIV/0!"},{"$error":"#DIV/0!"},"","","","","","","","","","",""]
[null,{"$f":"IF(ISERROR(FIND(\"実務者\",B36)),\"\",\"※実務者研修修了者等・・・介護福祉士、実務者研修修了者、(旧)介護職員基礎研修過程修了者\")","v":""},null,null,null,null,null,null,null,null,null,null,null,null,null,null,null,null,null,null,null,null,null,null,null,null,null,null,null,24,{"$f":"VLOOKUP(AF46,$BA$23:$BB$44,2,0)","v":{"$error":"#N/A"}},null,null,null,null,null,null,null,null,null,null,null,null,null,null,null,null,null,null,null,null,null,null,null,null,null,"","","",{"$f":"IFERROR(ISNUMBER(MATCH(AF46,参照表!$S$2:$AA$2,0)),FALSE)","v":false},{"$f":"IFERROR(ISNUMBER(MATCH(AF46,参照表!$S$3:$AA$3,0)),FALSE)","v":false},{"$f":"IFERROR(ISNUMBER(MATCH(AF46,参照表!$S$4:$AA$4,0)),FALSE)","v":false},false,{"$f":"IFERROR(ISNUMBER(MATCH(AF46,参照表!$S$6:$AA$6,0)),FALSE)","v":false},false,false,false,false,false,{"$error":"#DIV/0!"},{"$error":"#DIV/0!"},{"$error":"#DIV/0!"},{"$error":"#DIV/0!"},{"$error":"#DIV/0!"},{"$error":"#DIV/0!"},{"$error":"#DIV/0!"},{"$error":"#DIV/0!"},{"$error":"#DIV/0!"},{"$error":"#DIV/0!"},{"$error":"#DIV/0!"},"","","","","","","","","","",""]
[null,null,null,null,null,null,null,null,null,null,null,null,null,null,null,null,null,null,null,null,null,null,null,null,null,null,null,null,null,25,{"$f":"VLOOKUP(AF47,$BA$23:$BB$44,2,0)","v":{"$error":"#N/A"}},null,null,null,null,null,null,null,null,null,null,null,null,null,null,null,null,null,null,null,null,null,null,null,null,null,"","","",{"$f":"IFERROR(ISNUMBER(MATCH(AF47,参照表!$S$2:$AA$2,0)),FALSE)","v":false},{"$f":"IFERROR(ISNUMBER(MATCH(AF47,参照表!$S$3:$AA$3,0)),FALSE)","v":false},{"$f":"IFERROR(ISNUMBER(MATCH(AF47,参照表!$S$4:$AA$4,0)),FALSE)","v":false},false,{"$f":"IFERROR(ISNUMBER(MATCH(AF47,参照表!$S$6:$AA$6,0)),FALSE)","v":false},false,false,false,false,false,{"$error":"#DIV/0!"},{"$error":"#DIV/0!"},{"$error":"#DIV/0!"},{"$error":"#DIV/0!"},{"$error":"#DIV/0!"},{"$error":"#DIV/0!"},{"$error":"#DIV/0!"},{"$error":"#DIV/0!"},{"$error":"#DIV/0!"},{"$error":"#DIV/0!"},{"$error":"#DIV/0!"},"","","","","","","","","","",""]
[null,null,null,null,null,null,null,null,null,null,null,null,null,null,null,null,null,null,null,null,null,null,null,null,null,null,null,null,null,26,{"$f":"VLOOKUP(AF48,$BA$23:$BB$44,2,0)","v":{"$error":"#N/A"}},null,null,null,null,null,null,null,null,null,null,null,null,null,null,null,null,null,null,null,null,null,null,null,null,null,"","","",{"$f":"IFERROR(ISNUMBER(MATCH(AF48,参照表!$S$2:$AA$2,0)),FALSE)","v":false},{"$f":"IFERROR(ISNUMBER(MATCH(AF48,参照表!$S$3:$AA$3,0)),FALSE)","v":false},{"$f":"IFERROR(ISNUMBER(MATCH(AF48,参照表!$S$4:$AA$4,0)),FALSE)","v":false},false,{"$f":"IFERROR(ISNUMBER(MATCH(AF48,参照表!$S$6:$AA$6,0)),FALSE)","v":false},false,false,false,false,false,{"$error":"#DIV/0!"},{"$error":"#DIV/0!"},{"$error":"#DIV/0!"},{"$error":"#DIV/0!"},{"$error":"#DIV/0!"},{"$error":"#DIV/0!"},{"$error":"#DIV/0!"},{"$error":"#DIV/0!"},{"$error":"#DIV/0!"},{"$error":"#DIV/0!"},{"$error":"#DIV/0!"},"","","","","","","","","","",""]
[null,"備考欄",null,null,null,null,null,null,null,null,null,null,null,null,null,null,null,null,null,null,null,null,null,null,null,null,null,null,null,27,{"$f":"VLOOKUP(AF49,$BA$23:$BB$44,2,0)","v":{"$error":"#N/A"}},null,null,null,null,null,null,null,null,null,null,null,null,null,null,null,null,null,null,null,null,null,null,null,null,null,"","","",{"$f":"IFERROR(ISNUMBER(MATCH(AF49,参照表!$S$2:$AA$2,0)),FALSE)","v":false},{"$f":"IFERROR(ISNUMBER(MATCH(AF49,参照表!$S$3:$AA$3,0)),FALSE)","v":false},{"$f":"IFERROR(ISNUMBER(MATCH(AF49,参照表!$S$4:$AA$4,0)),FALSE)","v":false},false,{"$f":"IFERROR(ISNUMBER(MATCH(AF49,参照表!$S$6:$AA$6,0)),FALSE)","v":false},false,false,false,false,false,{"$error":"#DIV/0!"},{"$error":"#DIV/0!"},{"$error":"#DIV/0!"},{"$error":"#DIV/0!"},{"$error":"#DIV/0!"},{"$error":"#DIV/0!"},{"$error":"#DIV/0!"},{"$error":"#DIV/0!"},{"$error":"#DIV/0!"},{"$error":"#DIV/0!"},{"$error":"#DIV/0!"},"","","","","","","","","","",""]
[null,null,null,null,null,null,null,null,null,null,null,null,null,null,null,null,null,null,null,null,null,null,null,null,null,null,null,null,null,28,{"$f":"VLOOKUP(AF50,$BA$23:$BB$44,2,0)","v":{"$error":"#N/A"}},null,null,null,null,null,null,null,null,null,null,null,null,null,null,null,null,null,null,null,null,null,null,null,null,null,"","","",{"$f":"IFERROR(ISNUMBER(MATCH(AF50,参照表!$S$2:$AA$2,0)),FALSE)","v":false},{"$f":"IFERROR(ISNUMBER(MATCH(AF50,参照表!$S$3:$AA$3,0)),FALSE)","v":false},{"$f":"IFERROR(ISNUMBER(MATCH(AF50,参照表!$S$4:$AA$4,0)),FALSE)","v":false},false,{"$f":"IFERROR(ISNUMBER(MATCH(AF50,参照表!$S$6:$AA$6,0)),FALSE)","v":false},false,false,false,false,false,{"$error":"#DIV/0!"},{"$error":"#DIV/0!"},{"$error":"#DIV/0!"},{"$error":"#DIV/0!"},{"$error":"#DIV/0!"},{"$error":"#DIV/0!"},{"$error":"#DIV/0!"},{"$error":"#DIV/0!"},{"$error":"#DIV/0!"},{"$error":"#DIV/0!"},{"$error":"#DIV/0!"},"","","","","","","","","","",""]
[null,null,null,null,null,null,null,null,null,null,null,null,null,null,null,null,null,null,null,null,null,null,null,null,null,null,null,null,null,29,{"$f":"VLOOKUP(AF51,$BA$23:$BB$44,2,0)","v":{"$error":"#N/A"}},null,null,null,null,null,null,null,null,null,null,null,null,null,null,null,null,null,null,null,null,null,null,null,null,null,"","","",{"$f":"IFERROR(ISNUMBER(MATCH(AF51,参照表!$S$2:$AA$2,0)),FALSE)","v":false},{"$f":"IFERROR(ISNUMBER(MATCH(AF51,参照表!$S$3:$AA$3,0)),FALSE)","v":false},{"$f":"IFERROR(ISNUMBER(MATCH(AF51,参照表!$S$4:$AA$4,0)),FALSE)","v":false},false,{"$f":"IFERROR(ISNUMBER(MATCH(AF51,参照表!$S$6:$AA$6,0)),FALSE)","v":false},false,false,false,false,false,{"$error":"#DIV/0!"},{"$error":"#DIV/0!"},{"$error":"#DIV/0!"},{"$error":"#DIV/0!"},{"$error":"#DIV/0!"},{"$error":"#DIV/0!"},{"$error":"#DIV/0!"},{"$error":"#DIV/0!"},{"$error":"#DIV/0!"},{"$error":"#DIV/0!"},{"$error":"#DIV/0!"},"","","","","","","","","","",""]
[null,null,null,null,null,null,null,null,null,null,null,null,null,null,null,null,null,null,null,null,null,null,null,null,null,null,null,null,null,30,{"$f":"VLOOKUP(AF52,$BA$23:$BB$44,2,0)","v":{"$error":"#N/A"}},null,null,null,null,null,null,null,null,null,null,null,null,null,null,null,null,null,null,null,null,null,null,{"$f":"IF(#REF!=\"\",\"\",IF(#REF!=\"○\",\"○\",\"×\"))","v":{"$error":"#REF!"}},null,null,"","","",{"$f":"IFERROR(ISNUMBER(MATCH(AF52,参照表!$S$2:$AA$2,0)),FALSE)","v":false},{"$f":"IFERROR(ISNUMBER(MATCH(AF52,参照表!$S$3:$AA$3,0)),FALSE)","v":false},{"$f":"IFERROR(ISNUMBER(MATCH(AF52,参照表!$S$4:$AA$4,0)),FALSE)","v":false},false,{"$f":"IFERROR(ISNUMBER(MATCH(AF52,参照表!$S$6:$AA$6,0)),FALSE)","v":false},false,false,false,false,false,{"$error":"#DIV/0!"},{"$error":"#DIV/0!"},{"$error":"#DIV/0!"},{"$error":"#DIV/0!"},{"$error":"#DIV/0!"},{"$error":"#DIV/0!"},{"$error":"#DIV/0!"},{"$error":"#DIV/0!"},{"$error":"#DIV/0!"},{"$error":"#DIV/0!"},{"$error":"#DIV/0!"},"","","","","","","","","","",""]
[null,null,null,null,null,null,null,null,null,null,null,null,null,null,null,null,null,null,null,null,null,null,null,null,null,null,null,null,null,31,{"$f":"VLOOKUP(AF53,$BA$23:$BB$44,2,0)","v":{"$error":"#N/A"}},null,null,null,null,null,null,null,null,null,null,null,null,null,null,null,null,null,null,null,null,null,null,null,null,null,"","","",{"$f":"IFERROR(ISNUMBER(MATCH(AF53,参照表!$S$2:$AA$2,0)),FALSE)","v":false},{"$f":"IFERROR(ISNUMBER(MATCH(AF53,参照表!$S$3:$AA$3,0)),FALSE)","v":false},{"$f":"IFERROR(ISNUMBER(MATCH(AF53,参照表!$S$4:$AA$4,0)),FALSE)","v":false},false,{"$f":"IFERROR(ISNUMBER(MATCH(AF53,参照表!$S$6:$AA$6,0)),FALSE)","v":false},false,false,false,false,false,{"$error":"#DIV/0!"},{"$error":"#DIV/0!"},{"$error":"#DIV/0!"},{"$error":"#DIV/0!"},{"$error":"#DIV/0!"},{"$error":"#DIV/0!"},{"$error":"#DIV/0!"},{"$error":"#DIV/0!"},{"$error":"#DIV/0!"},{"$error":"#DIV/0!"},{"$error":"#DIV/0!"},"","","","","","","","","","",""]
[null,null,null,null,null,null,null,null,null,null,null,null,null,null,null,null,null,null,null,null,null,null,null,null,null,null,null,null,null,32,{"$f":"VLOOKUP(AF54,$BA$23:$BB$44,2,0)","v":{"$error":"#N/A"}},null,null,null,null,null,null,null,null,null,null,null,null,null,null,null,null,null,null,null,null,null,null,null,null,null,"","","",{"$f":"IFERROR(ISNUMBER(MATCH(AF54,参照表!$S$2:$AA$2,0)),FALSE)","v":false},{"$f":"IFERROR(ISNUMBER(MATCH(AF54,参照表!$S$3:$AA$3,0)),FALSE)","v":false},{"$f":"IFERROR(ISNUMBER(MATCH(AF54,参照表!$S$4:$AA$4,0)),FALSE)","v":false},false,{"$f":"IFERROR(ISNUMBER(MATCH(AF54,参照表!$S$6:$AA$6,0)),FALSE)","v":false},false,false,false,false,false,{"$error":"#DIV/0!"},{"$error":"#DIV/0!"},{"$error":"#DIV/0!"},{"$error":"#DIV/0!"},{"$error":"#DIV/0!"},{"$error":"#DIV/0!"},{"$error":"#DIV/0!"},{"$error":"#DIV/0!"},{"$error":"#DIV/0!"},{"$error":"#DIV/0!"},{"$error":"#DIV/0!"},"","","","","","","","","","",""]
[null,null,null,null,null,null,null,null,null,null,null,null,null,null,null,null,null,null,null,null,null,null,null,null,null,null,null,null,null,33,{"$f":"VLOOKUP(AF55,$BA$23:$BB$44,2,0)","v":{"$error":"#N/A"}},null,null,null,null,null,null,null,null,null,null,null,null,null,null,null,null,null,null,null,null,null,null,null,null,null,{"$f":"AF55&AI55","v":""},{"$f":"AF55&AG55","v":""},{"$f":"AF55&AJ55","v":""},{"$f":"IFERROR(ISNUMBER(MATCH(AF55,参照表!$S$2:$AA$2,0)),FALSE)","v":false},{"$f":"IFERROR(ISNUMBER(MATCH(AF55,参照表!$S$3:$AA$3,0)),FALSE)","v":false},{"$f":"IFERROR(ISNUMBER(MATCH(AF55,参照表!$S$4:$AA$4,0)),FALSE)","v":false},false,{"$f":"IFERROR(ISNUMBER(MATCH(AF55,参照表!$S$6:$AA$6,0)),FALSE)","v":false},false,false,false,false,false,{"$f":"IF(OR(AK55=\"○\",AK55>AK$12),AK$12,AK55)","v":{"$error":"#DIV/0!"}},{"$f":"IF(OR(AL55=\"○\",AL55>AL$12),AL$12,AL55)","v":{"$error":"#DIV/0!"}},{"$f":"IF(OR(AM55=\"○\",AM55>AM$12),AM$12,AM55)","v":{"$error":"#DIV/0!"}},{"$f":"IF(OR(AN55=\"○\",AN55>AN$12),AN$12,AN55)","v":{"$error":"#DIV/0!"}},{"$f":"IF(OR(AO55=\"○\",AO55>AO$12),AO$12,AO55)","v":{"$error":"#DIV/0!"}},{"$f":"IF(OR(AP55=\"○\",AP55>AP$12),AP$12,AP55)","v":{"$error":"#DIV/0!"}},{"$f":"IF(OR(AQ55=\"○\",AQ55>AQ$12),AQ$12,AQ55)","v":{"$error":"#DIV/0!"}},{"$f":"IF(OR(AR55=\"○\",AR55>AR$12),AR$12,AR55)","v":{"$error":"#DIV/0!"}},{"$f":"IF(OR(AS55=\"○\",AS55>AS$12),AS$12,AS55)","v":{"$error":"#DIV/0!"}},{"$f":"IF(OR(AT55=\"○\",AT55>AT$12),AT$12,AT55)","v":{"$error":"#DIV/0!"}},{"$f":"IF(OR(AU55=\"○\",AU55>AU$12),AU$12,AU55)","v":{"$error":"#DIV/0!"}},{"$f":"IF(AND(AK55<>\"\",AK55<>0,$AJ55=\"3年以上\"),1,\"\")","v":""},{"$f":"IF(AND(AL55<>\"\",AL55<>0,$AJ55=\"3年以上\"),1,\"\")","v":""},{"$f":"IF(AND(AM55<>\"\",AM55<>0,$AJ55=\"3年以上\"),1,\"\")","v":""},{"$f":"IF(AND(AN55<>\"\",AN55<>0,$AJ55=\"3年以上\"),1,\"\")","v":""},{"$f":"IF(AND(AO55<>\"\",AO55<>0,$AJ55=\"3年以上\"),1,\"\")","v":""},{"$f":"IF(AND(AP55<>\"\",AP55<>0,$AJ55=\"3年以上\"),1,\"\")","v":""},{"$f":"IF(AND(AQ55<>\"\",AQ55<>0,$AJ55=\"3年以上\"),1,\"\")","v":""},{"$f":"IF(AND(AR55<>\"\",AR55<>0,$AJ55=\"3年以上\"),1,\"\")","v":""},{"$f":"IF(AND(AS55<>\"\",AS55<>0,$AJ55=\"3年以上\"),1,\"\")","v":""},{"$f":"IF(AND(AT55<>\"\",AT55<>0,$AJ55=\"3年以上\"),1,\"\")","v":""},{"$f":"IF(AND(AU55<>\"\",AU55<>0,$AJ55=\"3年以上\"),1,\"\")","v":""}]
[null,null,null,null,null,null,null,null,null,null,null,null,null,null,null,null,null,null,null,null,null,null,null,null,null,null,null,null,null,34,{"$f":"VLOOKUP(AF56,$BA$23:$BB$44,2,0)","v":{"$error":"#N/A"}},null,null,null,null,null,null,null,null,null,null,null,null,null,null,null,null,null,null,null,null,null,null,null,null,null,"","","",{"$f":"IFERROR(ISNUMBER(MATCH(AF56,参照表!$S$2:$AA$2,0)),FALSE)","v":false},{"$f":"IFERROR(ISNUMBER(MATCH(AF56,参照表!$S$3:$AA$3,0)),FALSE)","v":false},{"$f":"IFERROR(ISNUMBER(MATCH(AF56,参照表!$S$4:$AA$4,0)),FALSE)","v":false},false,{"$f":"IFERROR(ISNUMBER(MATCH(AF56,参照表!$S$6:$AA$6,0)),FALSE)","v":false},false,false,false,false,false,{"$error":"#DIV/0!"},{"$error":"#DIV/0!"},{"$error":"#DIV/0!"},{"$error":"#DIV/0!"},{"$error":"#DIV/0!"},{"$error":"#DIV/0!"},{"$error":"#DIV/0!"},{"$error":"#DIV/0!"},{"$error":"#DIV/0!"},{"$error":"#DIV/0!"},{"$error":"#DIV/0!"},"","","","","","","","","","",""]
[null,null,null,null,null,null,null,null,null,null,null,null,null,null,null,null,null,null,null,null,null,null,null,null,null,null,null,null,null,35,{"$f":"VLOOKUP(AF57,$BA$23:$BB$44,2,0)","v":{"$error":"#N/A"}},null,null,null,null,null,null,null,null,null,null,null,null,null,null,null,null,null,null,null,null,null,null,null,null,null,"","","",{"$f":"IFERROR(ISNUMBER(MATCH(AF57,参照表!$S$2:$AA$2,0)),FALSE)","v":false},{"$f":"IFERROR(ISNUMBER(MATCH(AF57,参照表!$S$3:$AA$3,0)),FALSE)","v":false},{"$f":"IFERROR(ISNUMBER(MATCH(AF57,参照表!$S$4:$AA$4,0)),FALSE)","v":false},false,{"$f":"IFERROR(ISNUMBER(MATCH(AF57,参照表!$S$6:$AA$6,0)),FALSE)","v":false},false,false,false,false,false,{"$error":"#DIV/0!"},{"$error":"#DIV/0!"},{"$error":"#DIV/0!"},{"$error":"#DIV/0!"},{"$error":"#DIV/0!"},{"$error":"#DIV/0!"},{"$error":"#DIV/0!"},{"$error":"#DIV/0!"},{"$error":"#DIV/0!"},{"$error":"#DIV/0!"},{"$error":"#DIV/0!"},"","","","","","","","","","",""]
[null,null,null,null,null,null,null,null,null,null,null,null,null,null,null,null,null,null,null,null,null,null,null,null,null,null,null,null,null,36,{"$f":"VLOOKUP(AF58,$BA$23:$BB$44,2,0)","v":{"$error":"#N/A"}},null,null,null,null,null,null,null,null,null,null,null,null,null,null,null,null,null,null,null,null,null,null,null,null,null,"","","",{"$f":"IFERROR(ISNUMBER(MATCH(AF58,参照表!$S$2:$AA$2,0)),FALSE)","v":false},{"$f":"IFERROR(ISNUMBER(MATCH(AF58,参照表!$S$3:$AA$3,0)),FALSE)","v":false},{"$f":"IFERROR(ISNUMBER(MATCH(AF58,参照表!$S$4:$AA$4,0)),FALSE)","v":false},false,{"$f":"IFERROR(ISNUMBER(MATCH(AF58,参照表!$S$6:$AA$6,0)),FALSE)","v":false},false,false,false,false,false,{"$error":"#DIV/0!"},{"$error":"#DIV/0!"},{"$error":"#DIV/0!"},{"$error":"#DIV/0!"},{"$error":"#DIV/0!"},{"$error":"#DIV/0!"},{"$error":"#DIV/0!"},{"$error":"#DIV/0!"},{"$error":"#DIV/0!"},{"$error":"#DIV/0!"},{"$error":"#DIV/0!"},"","","","","","","","","","",""]
[null,null,null,null,null,null,null,null,null,null,null,null,null,null,null,null,null,null,null,null,null,null,null,null,null,null,null,null,null,37,{"$f":"VLOOKUP(AF59,$BA$23:$BB$44,2,0)","v":{"$error":"#N/A"}},null,null,null,null,null,null,null,null,null,null,null,null,null,null,null,null,null,null,null,null,null,null,null,null,null,"","","",{"$f":"IFERROR(ISNUMBER(MATCH(AF59,参照表!$S$2:$AA$2,0)),FALSE)","v":false},{"$f":"IFERROR(ISNUMBER(MATCH(AF59,参照表!$S$3:$AA$3,0)),FALSE)","v":false},{"$f":"IFERROR(ISNUMBER(MATCH(AF59,参照表!$S$4:$AA$4,0)),FALSE)","v":false},false,{"$f":"IFERROR(ISNUMBER(MATCH(AF59,参照表!$S$6:$AA$6,0)),FALSE)","v":false},false,false,false,false,false,{"$error":"#DIV/0!"},{"$error":"#DIV/0!"},{"$error":"#DIV/0!"},{"$error":"#DIV/0!"},{"$error":"#DIV/0!"},{"$error":"#DIV/0!"},{"$error":"#DIV/0!"},{"$error":"#DIV/0!"},{"$error":"#DIV/0!"},{"$error":"#DIV/0!"},{"$error":"#DIV/0!"},"","","","","","","","","","",""]
[null,null,null,null,null,null,null,null,null,null,null,null,null,null,null,null,null,null,null,null,null,null,null,null,null,null,null,null,null,38,{"$f":"VLOOKUP(AF60,$BA$23:$BB$44,2,0)","v":{"$error":"#N/A"}},null,null,null,null,null,null,null,null,null,null,null,null,null,null,null,null,null,null,null,null,null,null,null,null,null,"","","",{"$f":"IFERROR(ISNUMBER(MATCH(AF60,参照表!$S$2:$AA$2,0)),FALSE)","v":false},{"$f":"IFERROR(ISNUMBER(MATCH(AF60,参照表!$S$3:$AA$3,0)),FALSE)","v":false},{"$f":"IFERROR(ISNUMBER(MATCH(AF60,参照表!$S$4:$AA$4,0)),FALSE)","v":false},false,{"$f":"IFERROR(ISNUMBER(MATCH(AF60,参照表!$S$6:$AA$6,0)),FALSE)","v":false},false,false,false,false,false,{"$error":"#DIV/0!"},{"$error":"#DIV/0!"},{"$error":"#DIV/0!"},{"$error":"#DIV/0!"},{"$error":"#DIV/0!"},{"$error":"#DIV/0!"},{"$error":"#DIV/0!"},{"$error":"#DIV/0!"},{"$error":"#DIV/0!"},{"$error":"#DIV/0!"},{"$error":"#DIV/0!"},"","","","","","","","","","",""]
[null,null,null,null,null,null,null,null,null,null,null,null,null,null,null,null,null,null,null,null,null,null,null,null,null,null,null,null,null,39,{"$f":"VLOOKUP(AF61,$BA$23:$BB$44,2,0)","v":{"$error":"#N/A"}},null,null,null,null,null,null,null,null,null,null,null,null,null,null,null,null,null,null,null,null,null,null,null,null,null,"","","",{"$f":"IFERROR(ISNUMBER(MATCH(AF61,参照表!$S$2:$AA$2,0)),FALSE)","v":false},{"$f":"IFERROR(ISNUMBER(MATCH(AF61,参照表!$S$3:$AA$3,0)),FALSE)","v":false},{"$f":"IFERROR(ISNUMBER(MATCH(AF61,参照表!$S$4:$AA$4,0)),FALSE)","v":false},false,{"$f":"IFERROR(ISNUMBER(MATCH(AF61,参照表!$S$6:$AA$6,0)),FALSE)","v":false},false,false,false,false,false,{"$error":"#DIV/0!"},{"$error":"#DIV/0!"},{"$error":"#DIV/0!"},{"$error":"#DIV/0!"},{"$error":"#DIV/0!"},{"$error":"#DIV/0!"},{"$error":"#DIV/0!"},{"$error":"#DIV/0!"},{"$error":"#DIV/0!"},{"$error":"#DIV/0!"},{"$error":"#DIV/0!"},"","","","","","","","","","",""]
[null,null,null,null,null,null,null,null,null,null,null,null,null,null,null,null,null,null,null,null,null,null,null,null,null,null,null,null,null,40,{"$f":"VLOOKUP(AF62,$BA$23:$BB$44,2,0)","v":{"$error":"#N/A"}},null,null,null,null,null,null,null,null,null,null,null,null,null,null,null,null,null,null,null,null,null,null,null,null,null,"","","",{"$f":"IFERROR(ISNUMBER(MATCH(AF62,参照表!$S$2:$AA$2,0)),FALSE)","v":false},{"$f":"IFERROR(ISNUMBER(MATCH(AF62,参照表!$S$3:$AA$3,0)),FALSE)","v":false},{"$f":"IFERROR(ISNUMBER(MATCH(AF62,参照表!$S$4:$AA$4,0)),FALSE)","v":false},false,{"$f":"IFERROR(ISNUMBER(MATCH(AF62,参照表!$S$6:$AA$6,0)),FALSE)","v":false},false,false,false,false,false,{"$error":"#DIV/0!"},{"$error":"#DIV/0!"},{"$error":"#DIV/0!"},{"$error":"#DIV/0!"},{"$error":"#DIV/0!"},{"$error":"#DIV/0!"},{"$error":"#DIV/0!"},{"$error":"#DIV/0!"},{"$error":"#DIV/0!"},{"$error":"#DIV/0!"},{"$error":"#DIV/0!"},"","","","","","","","","","",""]
[null,null,null,null,null,null,null,null,null,null,null,null,null,null,null,null,null,null,null,null,null,null,null,null,null,null,null,null,null,41,{"$f":"VLOOKUP(AF63,$BA$23:$BB$44,2,0)","v":{"$error":"#N/A"}},null,null,null,null,null,null,null,null,null,null,null,null,null,null,null,null,null,null,null,null,null,null,null,null,null,"","","",{"$f":"IFERROR(ISNUMBER(MATCH(AF63,参照表!$S$2:$AA$2,0)),FALSE)","v":false},{"$f":"IFERROR(ISNUMBER(MATCH(AF63,参照表!$S$3:$AA$3,0)),FALSE)","v":false},{"$f":"IFERROR(ISNUMBER(MATCH(AF63,参照表!$S$4:$AA$4,0)),FALSE)","v":false},false,{"$f":"IFERROR(ISNUMBER(MATCH(AF63,参照表!$S$6:$AA$6,0)),FALSE)","v":false},false,false,false,false,false,{"$error":"#DIV/0!"},{"$error":"#DIV/0!"},{"$error":"#DIV/0!"},{"$error":"#DIV/0!"},{"$error":"#DIV/0!"},{"$error":"#DIV/0!"},{"$error":"#DIV/0!"},{"$error":"#DIV/0!"},{"$error":"#DIV/0!"},{"$error":"#DIV/0!"},{"$error":"#DIV/0!"},"","","","","","","","","","",""]
[null,null,null,null,null,null,null,null,null,null,null,null,null,null,null,null,null,null,null,null,null,null,null,null,null,null,null,null,null,42,{"$f":"VLOOKUP(AF64,$BA$23:$BB$44,2,0)","v":{"$error":"#N/A"}},null,null,null,null,null,null,null,null,null,null,null,null,null,null,null,null,null,null,null,null,null,null,null,null,null,"","","",{"$f":"IFERROR(ISNUMBER(MATCH(AF64,参照表!$S$2:$AA$2,0)),FALSE)","v":false},{"$f":"IFERROR(ISNUMBER(MATCH(AF64,参照表!$S$3:$AA$3,0)),FALSE)","v":false},{"$f":"IFERROR(ISNUMBER(MATCH(AF64,参照表!$S$4:$AA$4,0)),FALSE)","v":false},false,{"$f":"IFERROR(ISNUMBER(MATCH(AF64,参照表!$S$6:$AA$6,0)),FALSE)","v":false},false,false,false,false,false,{"$error":"#DIV/0!"},{"$error":"#DIV/0!"},{"$error":"#DIV/0!"},{"$error":"#DIV/0!"},{"$error":"#DIV/0!"},{"$error":"#DIV/0!"},{"$error":"#DIV/0!"},{"$error":"#DIV/0!"},{"$error":"#DIV/0!"},{"$error":"#DIV/0!"},{"$error":"#DIV/0!"},"","","","","","","","","","",""]
[null,null,null,null,null,null,null,null,null,null,null,null,null,null,null,null,null,null,null,null,null,null,null,null,null,null,null,null,null,43,{"$f":"VLOOKUP(AF65,$BA$23:$BB$44,2,0)","v":{"$error":"#N/A"}},null,null,null,null,null,null,null,null,null,null,null,null,null,null,null,null,null,null,null,null,null,null,null,null,null,"","","",{"$f":"IFERROR(ISNUMBER(MATCH(AF65,参照表!$S$2:$AA$2,0)),FALSE)","v":false},{"$f":"IFERROR(ISNUMBER(MATCH(AF65,参照表!$S$3:$AA$3,0)),FALSE)","v":false},{"$f":"IFERROR(ISNUMBER(MATCH(AF65,参照表!$S$4:$AA$4,0)),FALSE)","v":false},false,{"$f":"IFERROR(ISNUMBER(MATCH(AF65,参照表!$S$6:$AA$6,0)),FALSE)","v":false},false,false,false,false,false,{"$error":"#DIV/0!"},{"$error":"#DIV/0!"},{"$error":"#DIV/0!"},{"$error":"#DIV/0!"},{"$error":"#DIV/0!"},{"$error":"#DIV/0!"},{"$error":"#DIV/0!"},{"$error":"#DIV/0!"},{"$error":"#DIV/0!"},{"$error":"#DIV/0!"},{"$error":"#DIV/0!"},"","","","","","","","","","",""]
[null,null,null,null,null,null,null,null,null,null,null,null,null,null,null,null,null,null,null,null,null,null,null,null,null,null,null,null,null,44,{"$f":"VLOOKUP(AF66,$BA$23:$BB$44,2,0)","v":{"$error":"#N/A"}},null,null,null,null,null,null,null,null,null,null,null,null,null,null,null,null,null,null,null,null,null,null,null,null,null,"","","",{"$f":"IFERROR(ISNUMBER(MATCH(AF66,参照表!$S$2:$AA$2,0)),FALSE)","v":false},{"$f":"IFERROR(ISNUMBER(MATCH(AF66,参照表!$S$3:$AA$3,0)),FALSE)","v":false},{"$f":"IFERROR(ISNUMBER(MATCH(AF66,参照表!$S$4:$AA$4,0)),FALSE)","v":false},false,{"$f":"IFERROR(ISNUMBER(MATCH(AF66,参照表!$S$6:$AA$6,0)),FALSE)","v":false},false,false,false,false,false,{"$error":"#DIV/0!"},{"$error":"#DIV/0!"},{"$error":"#DIV/0!"},{"$error":"#DIV/0!"},{"$error":"#DIV/0!"},{"$error":"#DIV/0!"},{"$error":"#DIV/0!"},{"$error":"#DIV/0!"},{"$error":"#DIV/0!"},{"$error":"#DIV/0!"},{"$error":"#DIV/0!"},"","","","","","","","","","",""]
[null,null,null,null,null,null,null,null,null,null,null,null,null,null,null,null,null,null,null,null,null,null,null,null,null,null,null,null,null,45,{"$f":"VLOOKUP(AF67,$BA$23:$BB$44,2,0)","v":{"$error":"#N/A"}},null,null,null,null,null,null,null,null,null,null,null,null,null,null,null,null,null,null,null,null,null,null,null,null,null,"","","",{"$f":"IFERROR(ISNUMBER(MATCH(AF67,参照表!$S$2:$AA$2,0)),FALSE)","v":false},{"$f":"IFERROR(ISNUMBER(MATCH(AF67,参照表!$S$3:$AA$3,0)),FALSE)","v":false},{"$f":"IFERROR(ISNUMBER(MATCH(AF67,参照表!$S$4:$AA$4,0)),FALSE)","v":false},false,{"$f":"IFERROR(ISNUMBER(MATCH(AF67,参照表!$S$6:$AA$6,0)),FALSE)","v":false},false,false,false,false,false,{"$error":"#DIV/0!"},{"$error":"#DIV/0!"},{"$error":"#DIV/0!"},{"$error":"#DIV/0!"},{"$error":"#DIV/0!"},{"$error":"#DIV/0!"},{"$error":"#DIV/0!"},{"$error":"#DIV/0!"},{"$error":"#DIV/0!"},{"$error":"#DIV/0!"},{"$error":"#DIV/0!"},"","","","","","","","","","",""]
[null,null,null,null,null,null,null,null,null,null,null,null,null,null,null,null,null,null,null,null,null,null,null,null,null,null,null,null,null,46,{"$f":"VLOOKUP(AF68,$BA$23:$BB$44,2,0)","v":{"$error":"#N/A"}},null,null,null,null,null,null,null,null,null,null,null,null,null,null,null,null,null,null,null,null,null,null,null,null,null,"","","",{"$f":"IFERROR(ISNUMBER(MATCH(AF68,参照表!$S$2:$AA$2,0)),FALSE)","v":false},{"$f":"IFERROR(ISNUMBER(MATCH(AF68,参照表!$S$3:$AA$3,0)),FALSE)","v":false},{"$f":"IFERROR(ISNUMBER(MATCH(AF68,参照表!$S$4:$AA$4,0)),FALSE)","v":false},false,{"$f":"IFERROR(ISNUMBER(MATCH(AF68,参照表!$S$6:$AA$6,0)),FALSE)","v":false},false,false,false,false,false,{"$error":"#DIV/0!"},{"$error":"#DIV/0!"},{"$error":"#DIV/0!"},{"$error":"#DIV/0!"},{"$error":"#DIV/0!"},{"$error":"#DIV/0!"},{"$error":"#DIV/0!"},{"$error":"#DIV/0!"},{"$error":"#DIV/0!"},{"$error":"#DIV/0!"},{"$error":"#DIV/0!"},"","","","","","","","","","",""]
[null,null,null,null,null,null,null,null,null,null,null,null,null,null,null,null,null,null,null,null,null,null,null,null,null,null,null,null,null,47,{"$f":"VLOOKUP(AF69,$BA$23:$BB$44,2,0)","v":{"$error":"#N/A"}},null,null,null,null,null,null,null,null,null,null,null,null,null,null,null,null,null,null,null,null,null,null,null,null,null,"","","",{"$f":"IFERROR(ISNUMBER(MATCH(AF69,参照表!$S$2:$AA$2,0)),FALSE)","v":false},{"$f":"IFERROR(ISNUMBER(MATCH(AF69,参照表!$S$3:$AA$3,0)),FALSE)","v":false},{"$f":"IFERROR(ISNUMBER(MATCH(AF69,参照表!$S$4:$AA$4,0)),FALSE)","v":false},false,{"$f":"IFERROR(ISNUMBER(MATCH(AF69,参照表!$S$6:$AA$6,0)),FALSE)","v":false},false,false,false,false,false,{"$error":"#DIV/0!"},{"$error":"#DIV/0!"},{"$error":"#DIV/0!"},{"$error":"#DIV/0!"},{"$error":"#DIV/0!"},{"$error":"#DIV/0!"},{"$error":"#DIV/0!"},{"$error":"#DIV/0!"},{"$error":"#DIV/0!"},{"$error":"#DIV/0!"},{"$error":"#DIV/0!"},"","","","","","","","","","",""]
[null,null,null,null,null,null,null,null,null,null,null,null,null,null,null,null,null,null,null,null,null,null,null,null,null,null,null,null,null,48,{"$f":"VLOOKUP(AF70,$BA$23:$BB$44,2,0)","v":{"$error":"#N/A"}},null,null,null,null,null,null,null,null,null,null,null,null,null,null,null,null,null,null,null,null,null,null,null,null,null,"","","",{"$f":"IFERROR(ISNUMBER(MATCH(AF70,参照表!$S$2:$AA$2,0)),FALSE)","v":false},{"$f":"IFERROR(ISNUMBER(MATCH(AF70,参照表!$S$3:$AA$3,0)),FALSE)","v":false},{"$f":"IFERROR(ISNUMBER(MATCH(AF70,参照表!$S$4:$AA$4,0)),FALSE)","v":false},false,{"$f":"IFERROR(ISNUMBER(MATCH(AF70,参照表!$S$6:$AA$6,0)),FALSE)","v":false},false,false,false,false,false,{"$error":"#DIV/0!"},{"$error":"#DIV/0!"},{"$error":"#DIV/0!"},{"$error":"#DIV/0!"},{"$error":"#DIV/0!"},{"$error":"#DIV/0!"},{"$error":"#DIV/0!"},{"$error":"#DIV/0!"},{"$error":"#DIV/0!"},{"$error":"#DIV/0!"},{"$error":"#DIV/0!"},"","","","","","","","","","",""]
[null,null,null,null,null,null,null,null,null,null,null,null,null,null,null,null,null,null,null,null,null,null,null,null,null,null,null,null,null,49,{"$f":"VLOOKUP(AF71,$BA$23:$BB$44,2,0)","v":{"$error":"#N/A"}},null,null,null,null,null,null,null,null,null,null,null,null,null,null,null,null,null,null,null,null,null,null,null,null,null,"","","",{"$f":"IFERROR(ISNUMBER(MATCH(AF71,参照表!$S$2:$AA$2,0)),FALSE)","v":false},{"$f":"IFERROR(ISNUMBER(MATCH(AF71,参照表!$S$3:$AA$3,0)),FALSE)","v":false},{"$f":"IFERROR(ISNUMBER(MATCH(AF71,参照表!$S$4:$AA$4,0)),FALSE)","v":false},false,{"$f":"IFERROR(ISNUMBER(MATCH(AF71,参照表!$S$6:$AA$6,0)),FALSE)","v":false},false,false,false,false,false,{"$error":"#DIV/0!"},{"$error":"#DIV/0!"},{"$error":"#DIV/0!"},{"$error":"#DIV/0!"},{"$error":"#DIV/0!"},{"$error":"#DIV/0!"},{"$error":"#DIV/0!"},{"$error":"#DIV/0!"},{"$error":"#DIV/0!"},{"$error":"#DIV/0!"},{"$error":"#DIV/0!"},"","","","","","","","","","",""]
[null,null,null,null,null,null,null,null,null,null,null,null,null,null,null,null,null,null,null,null,null,null,null,null,null,null,null,null,null,50,{"$f":"VLOOKUP(AF72,$BA$23:$BB$44,2,0)","v":{"$error":"#N/A"}},null,null,null,null,null,null,null,null,null,null,null,null,null,null,null,null,null,null,null,null,null,null,null,null,null,"","","",{"$f":"IFERROR(ISNUMBER(MATCH(AF72,参照表!$S$2:$AA$2,0)),FALSE)","v":false},{"$f":"IFERROR(ISNUMBER(MATCH(AF72,参照表!$S$3:$AA$3,0)),FALSE)","v":false},{"$f":"IFERROR(ISNUMBER(MATCH(AF72,参照表!$S$4:$AA$4,0)),FALSE)","v":false},false,{"$f":"IFERROR(ISNUMBER(MATCH(AF72,参照表!$S$6:$AA$6,0)),FALSE)","v":false},false,false,false,false,false,{"$error":"#DIV/0!"},{"$error":"#DIV/0!"},{"$error":"#DIV/0!"},{"$error":"#DIV/0!"},{"$error":"#DIV/0!"},{"$error":"#DIV/0!"},{"$error":"#DIV/0!"},{"$error":"#DIV/0!"},{"$error":"#DIV/0!"},{"$error":"#DIV/0!"},{"$error":"#DIV/0!"},"","","","","","","","","","",""]
[null,null,null,null,null,null,null,null,null,null,null,null,null,null,null,null,null,null,null,null,null,null,null,null,null,null,null,null,null,51,{"$f":"VLOOKUP(AF73,$BA$23:$BB$44,2,0)","v":{"$error":"#N/A"}},null,null,null,null,null,null,null,null,null,null,null,null,null,null,null,null,null,null,null,null,null,null,null,null,null,"","","",{"$f":"IFERROR(ISNUMBER(MATCH(AF73,参照表!$S$2:$AA$2,0)),FALSE)","v":false},{"$f":"IFERROR(ISNUMBER(MATCH(AF73,参照表!$S$3:$AA$3,0)),FALSE)","v":false},{"$f":"IFERROR(ISNUMBER(MATCH(AF73,参照表!$S$4:$AA$4,0)),FALSE)","v":false},false,{"$f":"IFERROR(ISNUMBER(MATCH(AF73,参照表!$S$6:$AA$6,0)),FALSE)","v":false},false,false,false,false,false,{"$error":"#DIV/0!"},{"$error":"#DIV/0!"},{"$error":"#DIV/0!"},{"$error":"#DIV/0!"},{"$error":"#DIV/0!"},{"$error":"#DIV/0!"},{"$error":"#DIV/0!"},{"$error":"#DIV/0!"},{"$error":"#DIV/0!"},{"$error":"#DIV/0!"},{"$error":"#DIV/0!"},"","","","","","","","","","",""]
[null,null,null,null,null,null,null,null,null,null,null,null,null,null,null,null,null,null,null,null,null,null,null,null,null,null,null,null,null,52,{"$f":"VLOOKUP(AF74,$BA$23:$BB$44,2,0)","v":{"$error":"#N/A"}},null,null,null,null,null,null,null,null,null,null,null,null,null,null,null,null,null,null,null,null,null,null,null,null,null,"","","",{"$f":"IFERROR(ISNUMBER(MATCH(AF74,参照表!$S$2:$AA$2,0)),FALSE)","v":false},{"$f":"IFERROR(ISNUMBER(MATCH(AF74,参照表!$S$3:$AA$3,0)),FALSE)","v":false},{"$f":"IFERROR(ISNUMBER(MATCH(AF74,参照表!$S$4:$AA$4,0)),FALSE)","v":false},false,{"$f":"IFERROR(ISNUMBER(MATCH(AF74,参照表!$S$6:$AA$6,0)),FALSE)","v":false},false,false,false,false,false,{"$error":"#DIV/0!"},{"$error":"#DIV/0!"},{"$error":"#DIV/0!"},{"$error":"#DIV/0!"},{"$error":"#DIV/0!"},{"$error":"#DIV/0!"},{"$error":"#DIV/0!"},{"$error":"#DIV/0!"},{"$error":"#DIV/0!"},{"$error":"#DIV/0!"},{"$error":"#DIV/0!"},"","","","","","","","","","",""]
[null,null,null,null,null,null,null,null,null,null,null,null,null,null,null,null,null,null,null,null,null,null,null,null,null,null,null,null,null,53,{"$f":"VLOOKUP(AF75,$BA$23:$BB$44,2,0)","v":{"$error":"#N/A"}},null,null,null,null,null,null,null,null,null,null,null,null,null,null,null,null,null,null,null,null,null,null,null,null,null,"","","",{"$f":"IFERROR(ISNUMBER(MATCH(AF75,参照表!$S$2:$AA$2,0)),FALSE)","v":false},{"$f":"IFERROR(ISNUMBER(MATCH(AF75,参照表!$S$3:$AA$3,0)),FALSE)","v":false},{"$f":"IFERROR(ISNUMBER(MATCH(AF75,参照表!$S$4:$AA$4,0)),FALSE)","v":false},false,{"$f":"IFERROR(ISNUMBER(MATCH(AF75,参照表!$S$6:$AA$6,0)),FALSE)","v":false},false,false,false,false,false,{"$error":"#DIV/0!"},{"$error":"#DIV/0!"},{"$error":"#DIV/0!"},{"$error":"#DIV/0!"},{"$error":"#DIV/0!"},{"$error":"#DIV/0!"},{"$error":"#DIV/0!"},{"$error":"#DIV/0!"},{"$error":"#DIV/0!"},{"$error":"#DIV/0!"},{"$error":"#DIV/0!"},"","","","","","","","","","",""]
[null,null,null,null,null,null,null,null,null,null,null,null,null,null,null,null,null,null,null,null,null,null,null,null,null,null,null,null,null,54,{"$f":"VLOOKUP(AF76,$BA$23:$BB$44,2,0)","v":{"$error":"#N/A"}},null,null,null,null,null,null,null,null,null,null,null,null,null,null,null,null,null,null,null,null,null,null,null,null,null,"","","",{"$f":"IFERROR(ISNUMBER(MATCH(AF76,参照表!$S$2:$AA$2,0)),FALSE)","v":false},{"$f":"IFERROR(ISNUMBER(MATCH(AF76,参照表!$S$3:$AA$3,0)),FALSE)","v":false},{"$f":"IFERROR(ISNUMBER(MATCH(AF76,参照表!$S$4:$AA$4,0)),FALSE)","v":false},false,{"$f":"IFERROR(ISNUMBER(MATCH(AF76,参照表!$S$6:$AA$6,0)),FALSE)","v":false},false,false,false,false,false,{"$error":"#DIV/0!"},{"$error":"#DIV/0!"},{"$error":"#DIV/0!"},{"$error":"#DIV/0!"},{"$error":"#DIV/0!"},{"$error":"#DIV/0!"},{"$error":"#DIV/0!"},{"$error":"#DIV/0!"},{"$error":"#DIV/0!"},{"$error":"#DIV/0!"},{"$error":"#DIV/0!"},"","","","","","","","","","",""]
[null,null,null,null,null,null,null,null,null,null,null,null,null,null,null,null,null,null,null,null,null,null,null,null,null,null,null,null,null,55,{"$f":"VLOOKUP(AF77,$BA$23:$BB$44,2,0)","v":{"$error":"#N/A"}},null,null,null,null,null,null,null,null,null,null,null,null,null,null,null,null,null,null,null,null,null,null,null,null,null,"","","",{"$f":"IFERROR(ISNUMBER(MATCH(AF77,参照表!$S$2:$AA$2,0)),FALSE)","v":false},{"$f":"IFERROR(ISNUMBER(MATCH(AF77,参照表!$S$3:$AA$3,0)),FALSE)","v":false},{"$f":"IFERROR(ISNUMBER(MATCH(AF77,参照表!$S$4:$AA$4,0)),FALSE)","v":false},false,{"$f":"IFERROR(ISNUMBER(MATCH(AF77,参照表!$S$6:$AA$6,0)),FALSE)","v":false},false,false,false,false,false,{"$error":"#DIV/0!"},{"$error":"#DIV/0!"},{"$error":"#DIV/0!"},{"$error":"#DIV/0!"},{"$error":"#DIV/0!"},{"$error":"#DIV/0!"},{"$error":"#DIV/0!"},{"$error":"#DIV/0!"},{"$error":"#DIV/0!"},{"$error":"#DIV/0!"},{"$error":"#DIV/0!"},"","","","","","","","","","",""]
[null,null,null,null,null,null,null,null,null,null,null,null,null,null,null,null,null,null,null,null,null,null,null,null,null,null,null,null,null,56,{"$f":"VLOOKUP(AF78,$BA$23:$BB$44,2,0)","v":{"$error":"#N/A"}},null,null,null,null,null,null,null,null,null,null,null,null,null,null,null,null,null,null,null,null,null,null,null,null,null,"","","",{"$f":"IFERROR(ISNUMBER(MATCH(AF78,参照表!$S$2:$AA$2,0)),FALSE)","v":false},{"$f":"IFERROR(ISNUMBER(MATCH(AF78,参照表!$S$3:$AA$3,0)),FALSE)","v":false},{"$f":"IFERROR(ISNUMBER(MATCH(AF78,参照表!$S$4:$AA$4,0)),FALSE)","v":false},false,{"$f":"IFERROR(ISNUMBER(MATCH(AF78,参照表!$S$6:$AA$6,0)),FALSE)","v":false},false,false,false,false,false,{"$error":"#DIV/0!"},{"$error":"#DIV/0!"},{"$error":"#DIV/0!"},{"$error":"#DIV/0!"},{"$error":"#DIV/0!"},{"$error":"#DIV/0!"},{"$error":"#DIV/0!"},{"$error":"#DIV/0!"},{"$error":"#DIV/0!"},{"$error":"#DIV/0!"},{"$error":"#DIV/0!"},"","","","","","","","","","",""]
[null,null,null,null,null,null,null,null,null,null,null,null,null,null,null,null,null,null,null,null,null,null,null,null,null,null,null,null,null,57,{"$f":"VLOOKUP(AF79,$BA$23:$BB$44,2,0)","v":{"$error":"#N/A"}},null,null,null,null,null,null,null,null,null,null,null,null,null,null,null,null,null,null,null,null,null,null,null,null,null,"","","",{"$f":"IFERROR(ISNUMBER(MATCH(AF79,参照表!$S$2:$AA$2,0)),FALSE)","v":false},{"$f":"IFERROR(ISNUMBER(MATCH(AF79,参照表!$S$3:$AA$3,0)),FALSE)","v":false},{"$f":"IFERROR(ISNUMBER(MATCH(AF79,参照表!$S$4:$AA$4,0)),FALSE)","v":false},false,{"$f":"IFERROR(ISNUMBER(MATCH(AF79,参照表!$S$6:$AA$6,0)),FALSE)","v":false},false,false,false,false,false,{"$error":"#DIV/0!"},{"$error":"#DIV/0!"},{"$error":"#DIV/0!"},{"$error":"#DIV/0!"},{"$error":"#DIV/0!"},{"$error":"#DIV/0!"},{"$error":"#DIV/0!"},{"$error":"#DIV/0!"},{"$error":"#DIV/0!"},{"$error":"#DIV/0!"},{"$error":"#DIV/0!"},"","","","","","","","","","",""]
[null,null,null,null,null,null,null,null,null,null,null,null,null,null,null,null,null,null,null,null,null,null,null,null,null,null,null,null,null,58,{"$f":"VLOOKUP(AF80,$BA$23:$BB$44,2,0)","v":{"$error":"#N/A"}},null,null,null,null,null,null,null,null,null,null,null,null,null,null,null,null,null,null,null,null,null,null,null,null,null,"","","",{"$f":"IFERROR(ISNUMBER(MATCH(AF80,参照表!$S$2:$AA$2,0)),FALSE)","v":false},{"$f":"IFERROR(ISNUMBER(MATCH(AF80,参照表!$S$3:$AA$3,0)),FALSE)","v":false},{"$f":"IFERROR(ISNUMBER(MATCH(AF80,参照表!$S$4:$AA$4,0)),FALSE)","v":false},false,{"$f":"IFERROR(ISNUMBER(MATCH(AF80,参照表!$S$6:$AA$6,0)),FALSE)","v":false},false,false,false,false,false,{"$error":"#DIV/0!"},{"$error":"#DIV/0!"},{"$error":"#DIV/0!"},{"$error":"#DIV/0!"},{"$error":"#DIV/0!"},{"$error":"#DIV/0!"},{"$error":"#DIV/0!"},{"$error":"#DIV/0!"},{"$error":"#DIV/0!"},{"$error":"#DIV/0!"},{"$error":"#DIV/0!"},"","","","","","","","","","",""]
[null,null,null,null,null,null,null,null,null,null,null,null,null,null,null,null,null,null,null,null,null,null,null,null,null,null,null,null,null,59,{"$f":"VLOOKUP(AF81,$BA$23:$BB$44,2,0)","v":{"$error":"#N/A"}},null,null,null,null,null,null,null,null,null,null,null,null,null,null,null,null,null,null,null,null,null,null,null,null,null,"","","",{"$f":"IFERROR(ISNUMBER(MATCH(AF81,参照表!$S$2:$AA$2,0)),FALSE)","v":false},{"$f":"IFERROR(ISNUMBER(MATCH(AF81,参照表!$S$3:$AA$3,0)),FALSE)","v":false},{"$f":"IFERROR(ISNUMBER(MATCH(AF81,参照表!$S$4:$AA$4,0)),FALSE)","v":false},false,{"$f":"IFERROR(ISNUMBER(MATCH(AF81,参照表!$S$6:$AA$6,0)),FALSE)","v":false},false,false,false,false,false,{"$error":"#DIV/0!"},{"$error":"#DIV/0!"},{"$error":"#DIV/0!"},{"$error":"#DIV/0!"},{"$error":"#DIV/0!"},{"$error":"#DIV/0!"},{"$error":"#DIV/0!"},{"$error":"#DIV/0!"},{"$error":"#DIV/0!"},{"$error":"#DIV/0!"},{"$error":"#DIV/0!"},"","","","","","","","","","",""]
[null,null,null,null,null,null,null,null,null,null,null,null,null,null,null,null,null,null,null,null,null,null,null,null,null,null,null,null,null,60,{"$f":"VLOOKUP(AF82,$BA$23:$BB$44,2,0)","v":{"$error":"#N/A"}},null,null,null,null,null,null,null,null,null,null,null,null,null,null,null,null,null,null,null,null,null,null,null,null,null,"","","",{"$f":"IFERROR(ISNUMBER(MATCH(AF82,参照表!$S$2:$AA$2,0)),FALSE)","v":false},{"$f":"IFERROR(ISNUMBER(MATCH(AF82,参照表!$S$3:$AA$3,0)),FALSE)","v":false},{"$f":"IFERROR(ISNUMBER(MATCH(AF82,参照表!$S$4:$AA$4,0)),FALSE)","v":false},false,{"$f":"IFERROR(ISNUMBER(MATCH(AF82,参照表!$S$6:$AA$6,0)),FALSE)","v":false},false,false,false,false,false,{"$error":"#DIV/0!"},{"$error":"#DIV/0!"},{"$error":"#DIV/0!"},{"$error":"#DIV/0!"},{"$error":"#DIV/0!"},{"$error":"#DIV/0!"},{"$error":"#DIV/0!"},{"$error":"#DIV/0!"},{"$error":"#DIV/0!"},{"$error":"#DIV/0!"},{"$error":"#DIV/0!"},"","","","","","","","","","",""]
[null,null,null,null,null,null,null,null,null,null,null,null,null,null,null,null,null,null,null,null,null,null,null,null,null,null,null,null,null,61,{"$f":"VLOOKUP(AF83,$BA$23:$BB$44,2,0)","v":{"$error":"#N/A"}},null,null,null,null,null,null,null,null,null,null,null,null,null,null,null,null,null,null,null,null,null,null,null,null,null,"","","",{"$f":"IFERROR(ISNUMBER(MATCH(AF83,参照表!$S$2:$AA$2,0)),FALSE)","v":false},{"$f":"IFERROR(ISNUMBER(MATCH(AF83,参照表!$S$3:$AA$3,0)),FALSE)","v":false},{"$f":"IFERROR(ISNUMBER(MATCH(AF83,参照表!$S$4:$AA$4,0)),FALSE)","v":false},false,{"$f":"IFERROR(ISNUMBER(MATCH(AF83,参照表!$S$6:$AA$6,0)),FALSE)","v":false},false,false,false,false,false,{"$error":"#DIV/0!"},{"$error":"#DIV/0!"},{"$error":"#DIV/0!"},{"$error":"#DIV/0!"},{"$error":"#DIV/0!"},{"$error":"#DIV/0!"},{"$error":"#DIV/0!"},{"$error":"#DIV/0!"},{"$error":"#DIV/0!"},{"$error":"#DIV/0!"},{"$error":"#DIV/0!"},"","","","","","","","","","",""]
[null,null,null,null,null,null,null,null,null,null,null,null,null,null,null,null,null,null,null,null,null,null,null,null,null,null,null,null,null,62,{"$f":"VLOOKUP(AF84,$BA$23:$BB$44,2,0)","v":{"$error":"#N/A"}},null,null,null,null,null,null,null,null,null,null,null,null,null,null,null,null,null,null,null,null,null,null,null,null,null,"","","",{"$f":"IFERROR(ISNUMBER(MATCH(AF84,参照表!$S$2:$AA$2,0)),FALSE)","v":false},{"$f":"IFERROR(ISNUMBER(MATCH(AF84,参照表!$S$3:$AA$3,0)),FALSE)","v":false},{"$f":"IFERROR(ISNUMBER(MATCH(AF84,参照表!$S$4:$AA$4,0)),FALSE)","v":false},false,{"$f":"IFERROR(ISNUMBER(MATCH(AF84,参照表!$S$6:$AA$6,0)),FALSE)","v":false},false,false,false,false,false,{"$error":"#DIV/0!"},{"$error":"#DIV/0!"},{"$error":"#DIV/0!"},{"$error":"#DIV/0!"},{"$error":"#DIV/0!"},{"$error":"#DIV/0!"},{"$error":"#DIV/0!"},{"$error":"#DIV/0!"},{"$error":"#DIV/0!"},{"$error":"#DIV/0!"},{"$error":"#DIV/0!"},"","","","","","","","","","",""]
[null,null,null,null,null,null,null,null,null,null,null,null,null,null,null,null,null,null,null,null,null,null,null,null,null,null,null,null,null,63,{"$f":"VLOOKUP(AF85,$BA$23:$BB$44,2,0)","v":{"$error":"#N/A"}},null,null,null,null,null,null,null,null,null,null,null,null,null,null,null,null,null,null,null,null,null,null,null,null,null,"","","",{"$f":"IFERROR(ISNUMBER(MATCH(AF85,参照表!$S$2:$AA$2,0)),FALSE)","v":false},{"$f":"IFERROR(ISNUMBER(MATCH(AF85,参照表!$S$3:$AA$3,0)),FALSE)","v":false},{"$f":"IFERROR(ISNUMBER(MATCH(AF85,参照表!$S$4:$AA$4,0)),FALSE)","v":false},false,{"$f":"IFERROR(ISNUMBER(MATCH(AF85,参照表!$S$6:$AA$6,0)),FALSE)","v":false},false,false,false,false,false,{"$error":"#DIV/0!"},{"$error":"#DIV/0!"},{"$error":"#DIV/0!"},{"$error":"#DIV/0!"},{"$error":"#DIV/0!"},{"$error":"#DIV/0!"},{"$error":"#DIV/0!"},{"$error":"#DIV/0!"},{"$error":"#DIV/0!"},{"$error":"#DIV/0!"},{"$error":"#DIV/0!"},"","","","","","","","","","",""]
[null,null,null,null,null,null,null,null,null,null,null,null,null,null,null,null,null,null,null,null,null,null,null,null,null,null,null,null,null,64,{"$f":"VLOOKUP(AF86,$BA$23:$BB$44,2,0)","v":{"$error":"#N/A"}},null,null,null,null,null,null,null,null,null,null,null,null,null,null,null,null,null,null,null,null,null,null,null,null,null,"","","",{"$f":"IFERROR(ISNUMBER(MATCH(AF86,参照表!$S$2:$AA$2,0)),FALSE)","v":false},{"$f":"IFERROR(ISNUMBER(MATCH(AF86,参照表!$S$3:$AA$3,0)),FALSE)","v":false},{"$f":"IFERROR(ISNUMBER(MATCH(AF86,参照表!$S$4:$AA$4,0)),FALSE)","v":false},false,{"$f":"IFERROR(ISNUMBER(MATCH(AF86,参照表!$S$6:$AA$6,0)),FALSE)","v":false},false,false,false,false,false,{"$error":"#DIV/0!"},{"$error":"#DIV/0!"},{"$error":"#DIV/0!"},{"$error":"#DIV/0!"},{"$error":"#DIV/0!"},{"$error":"#DIV/0!"},{"$error":"#DIV/0!"},{"$error":"#DIV/0!"},{"$error":"#DIV/0!"},{"$error":"#DIV/0!"},{"$error":"#DIV/0!"},"","","","","","","","","","",""]
[null,null,null,null,null,null,null,null,null,null,null,null,null,null,null,null,null,null,null,null,null,null,null,null,null,null,null,null,null,65,{"$f":"VLOOKUP(AF87,$BA$23:$BB$44,2,0)","v":{"$error":"#N/A"}},null,null,null,null,null,null,null,null,null,null,null,null,null,null,null,null,null,null,null,null,null,null,null,null,null,{"$f":"AF87&AI87","v":""},{"$f":"AF87&AG87","v":""},{"$f":"AF87&AJ87","v":""},{"$f":"IFERROR(ISNUMBER(MATCH(AF87,参照表!$S$2:$AA$2,0)),FALSE)","v":false},{"$f":"IFERROR(ISNUMBER(MATCH(AF87,参照表!$S$3:$AA$3,0)),FALSE)","v":false},{"$f":"IFERROR(ISNUMBER(MATCH(AF87,参照表!$S$4:$AA$4,0)),FALSE)","v":false},false,{"$f":"IFERROR(ISNUMBER(MATCH(AF87,参照表!$S$6:$AA$6,0)),FALSE)","v":false},false,false,false,false,false,{"$f":"IF(OR(AK87=\"○\",AK87>AK$12),AK$12,AK87)","v":{"$error":"#DIV/0!"}},{"$f":"IF(OR(AL87=\"○\",AL87>AL$12),AL$12,AL87)","v":{"$error":"#DIV/0!"}},{"$f":"IF(OR(AM87=\"○\",AM87>AM$12),AM$12,AM87)","v":{"$error":"#DIV/0!"}},{"$f":"IF(OR(AN87=\"○\",AN87>AN$12),AN$12,AN87)","v":{"$error":"#DIV/0!"}},{"$f":"IF(OR(AO87=\"○\",AO87>AO$12),AO$12,AO87)","v":{"$error":"#DIV/0!"}},{"$f":"IF(OR(AP87=\"○\",AP87>AP$12),AP$12,AP87)","v":{"$error":"#DIV/0!"}},{"$f":"IF(OR(AQ87=\"○\",AQ87>AQ$12),AQ$12,AQ87)","v":{"$error":"#DIV/0!"}},{"$f":"IF(OR(AR87=\"○\",AR87>AR$12),AR$12,AR87)","v":{"$error":"#DIV/0!"}},{"$f":"IF(OR(AS87=\"○\",AS87>AS$12),AS$12,AS87)","v":{"$error":"#DIV/0!"}},{"$f":"IF(OR(AT87=\"○\",AT87>AT$12),AT$12,AT87)","v":{"$error":"#DIV/0!"}},{"$f":"IF(OR(AU87=\"○\",AU87>AU$12),AU$12,AU87)","v":{"$error":"#DIV/0!"}},{"$f":"IF(AND(AK87<>\"\",AK87<>0,$AJ87=\"3年以上\"),1,\"\")","v":""},{"$f":"IF(AND(AL87<>\"\",AL87<>0,$AJ87=\"3年以上\"),1,\"\")","v":""},{"$f":"IF(AND(AM87<>\"\",AM87<>0,$AJ87=\"3年以上\"),1,\"\")","v":""},{"$f":"IF(AND(AN87<>\"\",AN87<>0,$AJ87=\"3年以上\"),1,\"\")","v":""},{"$f":"IF(AND(AO87<>\"\",AO87<>0,$AJ87=\"3年以上\"),1,\"\")","v":""},{"$f":"IF(AND(AP87<>\"\",AP87<>0,$AJ87=\"3年以上\"),1,\"\")","v":""},{"$f":"IF(AND(AQ87<>\"\",AQ87<>0,$AJ87=\"3年以上\"),1,\"\")","v":""},{"$f":"IF(AND(AR87<>\"\",AR87<>0,$AJ87=\"3年以上\"),1,\"\")","v":""},{"$f":"IF(AND(AS87<>\"\",AS87<>0,$AJ87=\"3年以上\"),1,\"\")","v":""},{"$f":"IF(AND(AT87<>\"\",AT87<>0,$AJ87=\"3年以上\"),1,\"\")","v":""},{"$f":"IF(AND(AU87<>\"\",AU87<>0,$AJ87=\"3年以上\"),1,\"\")","v":""}]
[null,null,null,null,null,null,null,null,null,null,null,null,null,null,null,null,null,null,null,null,null,null,null,null,null,null,null,null,null,66,{"$f":"VLOOKUP(AF88,$BA$23:$BB$44,2,0)","v":{"$error":"#N/A"}},null,null,null,null,null,null,null,null,null,null,null,null,null,null,null,null,null,null,null,null,null,null,null,null,null,"","","",{"$f":"IFERROR(ISNUMBER(MATCH(AF88,参照表!$S$2:$AA$2,0)),FALSE)","v":false},{"$f":"IFERROR(ISNUMBER(MATCH(AF88,参照表!$S$3:$AA$3,0)),FALSE)","v":false},{"$f":"IFERROR(ISNUMBER(MATCH(AF88,参照表!$S$4:$AA$4,0)),FALSE)","v":false},{"$f":"IF(AF88=\"\",FALSE,TRUE)","v":false},{"$f":"IFERROR(ISNUMBER(MATCH(AF88,参照表!$S$6:$AA$6,0)),FALSE)","v":false},{"$f":"IF($AI88=\"介護福祉士\",TRUE,FALSE)","v":false},{"$f":"IF(OR($AI88=\"介護福祉士\",$AI88=\"実務者研修\",$AI88=\"(旧)介護職員基礎研修\"),TRUE,FALSE)","v":false},{"$f":"IF(OR($AJ88=\"3年以上7年未満\",$AJ88=\"7年以上10年未満\",$AJ88=\"10年以上\"),TRUE,FALSE)","v":false},{"$f":"IF(OR($AJ88=\"7年以上10年未満\",$AJ88=\"10年以上\"),TRUE,FALSE)","v":false},{"$f":"IF($AJ88=\"10年以上\",TRUE,FALSE)","v":false},{"$error":"#DIV/0!"},{"$error":"#DIV/0!"},{"$error":"#DIV/0!"},{"$error":"#DIV/0!"},{"$error":"#DIV/0!"},{"$error":"#DIV/0!"},{"$error":"#DIV/0!"},{"$error":"#DIV/0!"},{"$error":"#DIV/0!"},{"$error":"#DIV/0!"},{"$error":"#DIV/0!"},"","","","","","","","","","",""]
[null,null,null,null,null,null,null,null,null,null,null,null,null,null,null,null,null,null,null,null,null,null,null,null,null,null,null,null,null,67,{"$f":"VLOOKUP(AF89,$BA$23:$BB$44,2,0)","v":{"$error":"#N/A"}},null,null,null,null,null,null,null,null,null,null,null,null,null,null,null,null,null,null,null,null,null,null,null,null,null,"","","",{"$f":"IFERROR(ISNUMBER(MATCH(AF89,参照表!$S$2:$AA$2,0)),FALSE)","v":false},{"$f":"IFERROR(ISNUMBER(MATCH(AF89,参照表!$S$3:$AA$3,0)),FALSE)","v":false},{"$f":"IFERROR(ISNUMBER(MATCH(AF89,参照表!$S$4:$AA$4,0)),FALSE)","v":false},false,{"$f":"IFERROR(ISNUMBER(MATCH(AF89,参照表!$S$6:$AA$6,0)),FALSE)","v":false},false,false,false,false,false,{"$error":"#DIV/0!"},{"$error":"#DIV/0!"},{"$error":"#DIV/0!"},{"$error":"#DIV/0!"},{"$error":"#DIV/0!"},{"$error":"#DIV/0!"},{"$error":"#DIV/0!"},{"$error":"#DIV/0!"},{"$error":"#DIV/0!"},{"$error":"#DIV/0!"},{"$error":"#DIV/0!"},"","","","","","","","","","",""]
[null,null,null,null,null,null,null,null,null,null,null,null,null,null,null,null,null,null,null,null,null,null,null,null,null,null,null,null,null,68,{"$f":"VLOOKUP(AF90,$BA$23:$BB$44,2,0)","v":{"$error":"#N/A"}},null,null,null,null,null,null,null,null,null,null,null,null,null,null,null,null,null,null,null,null,null,null,null,null,null,"","","",{"$f":"IFERROR(ISNUMBER(MATCH(AF90,参照表!$S$2:$AA$2,0)),FALSE)","v":false},{"$f":"IFERROR(ISNUMBER(MATCH(AF90,参照表!$S$3:$AA$3,0)),FALSE)","v":false},{"$f":"IFERROR(ISNUMBER(MATCH(AF90,参照表!$S$4:$AA$4,0)),FALSE)","v":false},false,{"$f":"IFERROR(ISNUMBER(MATCH(AF90,参照表!$S$6:$AA$6,0)),FALSE)","v":false},false,false,false,false,false,{"$error":"#DIV/0!"},{"$error":"#DIV/0!"},{"$error":"#DIV/0!"},{"$error":"#DIV/0!"},{"$error":"#DIV/0!"},{"$error":"#DIV/0!"},{"$error":"#DIV/0!"},{"$error":"#DIV/0!"},{"$error":"#DIV/0!"},{"$error":"#DIV/0!"},{"$error":"#DIV/0!"},"","","","","","","","","","",""]
[null,null,null,null,null,null,null,null,null,null,null,null,null,null,null,null,null,null,null,null,null,null,null,null,null,null,null,null,null,69,{"$f":"VLOOKUP(AF91,$BA$23:$BB$44,2,0)","v":{"$error":"#N/A"}},null,null,null,null,null,null,null,null,null,null,null,null,null,null,null,null,null,null,null,null,null,null,null,null,null,"","","",{"$f":"IFERROR(ISNUMBER(MATCH(AF91,参照表!$S$2:$AA$2,0)),FALSE)","v":false},{"$f":"IFERROR(ISNUMBER(MATCH(AF91,参照表!$S$3:$AA$3,0)),FALSE)","v":false},{"$f":"IFERROR(ISNUMBER(MATCH(AF91,参照表!$S$4:$AA$4,0)),FALSE)","v":false},false,{"$f":"IFERROR(ISNUMBER(MATCH(AF91,参照表!$S$6:$AA$6,0)),FALSE)","v":false},false,false,false,false,false,{"$error":"#DIV/0!"},{"$error":"#DIV/0!"},{"$error":"#DIV/0!"},{"$error":"#DIV/0!"},{"$error":"#DIV/0!"},{"$error":"#DIV/0!"},{"$error":"#DIV/0!"},{"$error":"#DIV/0!"},{"$error":"#DIV/0!"},{"$error":"#DIV/0!"},{"$error":"#DIV/0!"},"","","","","","","","","","",""]
[null,null,null,null,null,null,null,null,null,null,null,null,null,null,null,null,null,null,null,null,null,null,null,null,null,null,null,null,null,70,{"$f":"VLOOKUP(AF92,$BA$23:$BB$44,2,0)","v":{"$error":"#N/A"}},null,null,null,null,null,null,null,null,null,null,null,null,null,null,null,null,null,null,null,null,null,null,null,null,null,"","","",{"$f":"IFERROR(ISNUMBER(MATCH(AF92,参照表!$S$2:$AA$2,0)),FALSE)","v":false},{"$f":"IFERROR(ISNUMBER(MATCH(AF92,参照表!$S$3:$AA$3,0)),FALSE)","v":false},{"$f":"IFERROR(ISNUMBER(MATCH(AF92,参照表!$S$4:$AA$4,0)),FALSE)","v":false},false,{"$f":"IFERROR(ISNUMBER(MATCH(AF92,参照表!$S$6:$AA$6,0)),FALSE)","v":false},false,false,false,false,false,{"$error":"#DIV/0!"},{"$error":"#DIV/0!"},{"$error":"#DIV/0!"},{"$error":"#DIV/0!"},{"$error":"#DIV/0!"},{"$error":"#DIV/0!"},{"$error":"#DIV/0!"},{"$error":"#DIV/0!"},{"$error":"#DIV/0!"},{"$error":"#DIV/0!"},{"$error":"#DIV/0!"},"","","","","","","","","","",""]
[null,null,null,null,null,null,null,null,null,null,null,null,null,null,null,null,null,null,null,null,null,null,null,null,null,null,null,null,null,71,{"$f":"VLOOKUP(AF93,$BA$23:$BB$44,2,0)","v":{"$error":"#N/A"}},null,null,null,null,null,null,null,null,null,null,null,null,null,null,null,null,null,null,null,null,null,null,null,null,null,"","","",{"$f":"IFERROR(ISNUMBER(MATCH(AF93,参照表!$S$2:$AA$2,0)),FALSE)","v":false},{"$f":"IFERROR(ISNUMBER(MATCH(AF93,参照表!$S$3:$AA$3,0)),FALSE)","v":false},{"$f":"IFERROR(ISNUMBER(MATCH(AF93,参照表!$S$4:$AA$4,0)),FALSE)","v":false},false,{"$f":"IFERROR(ISNUMBER(MATCH(AF93,参照表!$S$6:$AA$6,0)),FALSE)","v":false},false,false,false,false,false,{"$error":"#DIV/0!"},{"$error":"#DIV/0!"},{"$error":"#DIV/0!"},{"$error":"#DIV/0!"},{"$error":"#DIV/0!"},{"$error":"#DIV/0!"},{"$error":"#DIV/0!"},{"$error":"#DIV/0!"},{"$error":"#DIV/0!"},{"$error":"#DIV/0!"},{"$error":"#DIV/0!"},"","","","","","","","","","",""]
[null,null,null,null,null,null,null,null,null,null,null,null,null,null,null,null,null,null,null,null,null,null,null,null,null,null,null,null,null,72,{"$f":"VLOOKUP(AF94,$BA$23:$BB$44,2,0)","v":{"$error":"#N/A"}},null,null,null,null,null,null,null,null,null,null,null,null,null,null,null,null,null,null,null,null,null,null,null,null,null,"","","",{"$f":"IFERROR(ISNUMBER(MATCH(AF94,参照表!$S$2:$AA$2,0)),FALSE)","v":false},{"$f":"IFERROR(ISNUMBER(MATCH(AF94,参照表!$S$3:$AA$3,0)),FALSE)","v":false},{"$f":"IFERROR(ISNUMBER(MATCH(AF94,参照表!$S$4:$AA$4,0)),FALSE)","v":false},false,{"$f":"IFERROR(ISNUMBER(MATCH(AF94,参照表!$S$6:$AA$6,0)),FALSE)","v":false},false,false,false,false,false,{"$error":"#DIV/0!"},{"$error":"#DIV/0!"},{"$error":"#DIV/0!"},{"$error":"#DIV/0!"},{"$error":"#DIV/0!"},{"$error":"#DIV/0!"},{"$error":"#DIV/0!"},{"$error":"#DIV/0!"},{"$error":"#DIV/0!"},{"$error":"#DIV/0!"},{"$error":"#DIV/0!"},"","","","","","","","","","",""]
[null,null,null,null,null,null,null,null,null,null,null,null,null,null,null,null,null,null,null,null,null,null,null,null,null,null,null,null,null,73,{"$f":"VLOOKUP(AF95,$BA$23:$BB$44,2,0)","v":{"$error":"#N/A"}},null,null,null,null,null,null,null,null,null,null,null,null,null,null,null,null,null,null,null,null,null,null,null,null,null,"","","",{"$f":"IFERROR(ISNUMBER(MATCH(AF95,参照表!$S$2:$AA$2,0)),FALSE)","v":false},{"$f":"IFERROR(ISNUMBER(MATCH(AF95,参照表!$S$3:$AA$3,0)),FALSE)","v":false},{"$f":"IFERROR(ISNUMBER(MATCH(AF95,参照表!$S$4:$AA$4,0)),FALSE)","v":false},false,{"$f":"IFERROR(ISNUMBER(MATCH(AF95,参照表!$S$6:$AA$6,0)),FALSE)","v":false},false,false,false,false,false,{"$error":"#DIV/0!"},{"$error":"#DIV/0!"},{"$error":"#DIV/0!"},{"$error":"#DIV/0!"},{"$error":"#DIV/0!"},{"$error":"#DIV/0!"},{"$error":"#DIV/0!"},{"$error":"#DIV/0!"},{"$error":"#DIV/0!"},{"$error":"#DIV/0!"},{"$error":"#DIV/0!"},"","","","","","","","","","",""]
[null,null,null,null,null,null,null,null,null,null,null,null,null,null,null,null,null,null,null,null,null,null,null,null,null,null,null,null,null,74,{"$f":"VLOOKUP(AF96,$BA$23:$BB$44,2,0)","v":{"$error":"#N/A"}},null,null,null,null,null,null,null,null,null,null,null,null,null,null,null,null,null,null,null,null,null,null,null,null,null,"","","",{"$f":"IFERROR(ISNUMBER(MATCH(AF96,参照表!$S$2:$AA$2,0)),FALSE)","v":false},{"$f":"IFERROR(ISNUMBER(MATCH(AF96,参照表!$S$3:$AA$3,0)),FALSE)","v":false},{"$f":"IFERROR(ISNUMBER(MATCH(AF96,参照表!$S$4:$AA$4,0)),FALSE)","v":false},false,{"$f":"IFERROR(ISNUMBER(MATCH(AF96,参照表!$S$6:$AA$6,0)),FALSE)","v":false},false,false,false,false,false,{"$error":"#DIV/0!"},{"$error":"#DIV/0!"},{"$error":"#DIV/0!"},{"$error":"#DIV/0!"},{"$error":"#DIV/0!"},{"$error":"#DIV/0!"},{"$error":"#DIV/0!"},{"$error":"#DIV/0!"},{"$error":"#DIV/0!"},{"$error":"#DIV/0!"},{"$error":"#DIV/0!"},"","","","","","","","","","",""]
[null,null,null,null,null,null,null,null,null,null,null,null,null,null,null,null,null,null,null,null,null,null,null,null,null,null,null,null,null,75,{"$f":"VLOOKUP(AF97,$BA$23:$BB$44,2,0)","v":{"$error":"#N/A"}},null,null,null,null,null,null,null,null,null,null,null,null,null,null,null,null,null,null,null,null,null,null,null,null,null,"","","",{"$f":"IFERROR(ISNUMBER(MATCH(AF97,参照表!$S$2:$AA$2,0)),FALSE)","v":false},{"$f":"IFERROR(ISNUMBER(MATCH(AF97,参照表!$S$3:$AA$3,0)),FALSE)","v":false},{"$f":"IFERROR(ISNUMBER(MATCH(AF97,参照表!$S$4:$AA$4,0)),FALSE)","v":false},false,{"$f":"IFERROR(ISNUMBER(MATCH(AF97,参照表!$S$6:$AA$6,0)),FALSE)","v":false},false,false,false,false,false,{"$error":"#DIV/0!"},{"$error":"#DIV/0!"},{"$error":"#DIV/0!"},{"$error":"#DIV/0!"},{"$error":"#DIV/0!"},{"$error":"#DIV/0!"},{"$error":"#DIV/0!"},{"$error":"#DIV/0!"},{"$error":"#DIV/0!"},{"$error":"#DIV/0!"},{"$error":"#DIV/0!"},"","","","","","","","","","",""]
[null,null,null,null,null,null,null,null,null,null,null,null,null,null,null,null,null,null,null,null,null,null,null,null,null,null,null,null,null,76,{"$f":"VLOOKUP(AF98,$BA$23:$BB$44,2,0)","v":{"$error":"#N/A"}},null,null,null,null,null,null,null,null,null,null,null,null,null,null,null,null,null,null,null,null,null,null,null,null,null,"","","",{"$f":"IFERROR(ISNUMBER(MATCH(AF98,参照表!$S$2:$AA$2,0)),FALSE)","v":false},{"$f":"IFERROR(ISNUMBER(MATCH(AF98,参照表!$S$3:$AA$3,0)),FALSE)","v":false},{"$f":"IFERROR(ISNUMBER(MATCH(AF98,参照表!$S$4:$AA$4,0)),FALSE)","v":false},false,{"$f":"IFERROR(ISNUMBER(MATCH(AF98,参照表!$S$6:$AA$6,0)),FALSE)","v":false},false,false,false,false,false,{"$error":"#DIV/0!"},{"$error":"#DIV/0!"},{"$error":"#DIV/0!"},{"$error":"#DIV/0!"},{"$error":"#DIV/0!"},{"$error":"#DIV/0!"},{"$error":"#DIV/0!"},{"$error":"#DIV/0!"},{"$error":"#DIV/0!"},{"$error":"#DIV/0!"},{"$error":"#DIV/0!"},"","","","","","","","","","",""]
[null,null,null,null,null,null,null,null,null,null,null,null,null,null,null,null,null,null,null,null,null,null,null,null,null,null,null,null,null,77,{"$f":"VLOOKUP(AF99,$BA$23:$BB$44,2,0)","v":{"$error":"#N/A"}},null,null,null,null,null,null,null,null,null,null,null,null,null,null,null,null,null,null,null,null,null,null,null,null,null,"","","",{"$f":"IFERROR(ISNUMBER(MATCH(AF99,参照表!$S$2:$AA$2,0)),FALSE)","v":false},{"$f":"IFERROR(ISNUMBER(MATCH(AF99,参照表!$S$3:$AA$3,0)),FALSE)","v":false},{"$f":"IFERROR(ISNUMBER(MATCH(AF99,参照表!$S$4:$AA$4,0)),FALSE)","v":false},false,{"$f":"IFERROR(ISNUMBER(MATCH(AF99,参照表!$S$6:$AA$6,0)),FALSE)","v":false},false,false,false,false,false,{"$error":"#DIV/0!"},{"$error":"#DIV/0!"},{"$error":"#DIV/0!"},{"$error":"#DIV/0!"},{"$error":"#DIV/0!"},{"$error":"#DIV/0!"},{"$error":"#DIV/0!"},{"$error":"#DIV/0!"},{"$error":"#DIV/0!"},{"$error":"#DIV/0!"},{"$error":"#DIV/0!"},"","","","","","","","","","",""]
[null,null,null,null,null,null,null,null,null,null,null,null,null,null,null,null,null,null,null,null,null,null,null,null,null,null,null,null,null,78,{"$f":"VLOOKUP(AF100,$BA$23:$BB$44,2,0)","v":{"$error":"#N/A"}},null,null,null,null,null,null,null,null,null,null,null,null,null,null,null,null,null,null,null,null,null,null,null,null,null,"","","",{"$f":"IFERROR(ISNUMBER(MATCH(AF100,参照表!$S$2:$AA$2,0)),FALSE)","v":false},{"$f":"IFERROR(ISNUMBER(MATCH(AF100,参照表!$S$3:$AA$3,0)),FALSE)","v":false},{"$f":"IFERROR(ISNUMBER(MATCH(AF100,参照表!$S$4:$AA$4,0)),FALSE)","v":false},false,{"$f":"IFERROR(ISNUMBER(MATCH(AF100,参照表!$S$6:$AA$6,0)),FALSE)","v":false},false,false,false,false,false,{"$error":"#DIV/0!"},{"$error":"#DIV/0!"},{"$error":"#DIV/0!"},{"$error":"#DIV/0!"},{"$error":"#DIV/0!"},{"$error":"#DIV/0!"},{"$error":"#DIV/0!"},{"$error":"#DIV/0!"},{"$error":"#DIV/0!"},{"$error":"#DIV/0!"},{"$error":"#DIV/0!"},"","","","","","","","","","",""]
[null,null,null,null,null,null,null,null,null,null,null,null,null,null,null,null,null,null,null,null,null,null,null,null,null,null,null,null,null,79,{"$f":"VLOOKUP(AF101,$BA$23:$BB$44,2,0)","v":{"$error":"#N/A"}},null,null,null,null,null,null,null,null,null,null,null,null,null,null,null,null,null,null,null,null,null,null,null,null,null,"","","",{"$f":"IFERROR(ISNUMBER(MATCH(AF101,参照表!$S$2:$AA$2,0)),FALSE)","v":false},{"$f":"IFERROR(ISNUMBER(MATCH(AF101,参照表!$S$3:$AA$3,0)),FALSE)","v":false},{"$f":"IFERROR(ISNUMBER(MATCH(AF101,参照表!$S$4:$AA$4,0)),FALSE)","v":false},false,{"$f":"IFERROR(ISNUMBER(MATCH(AF101,参照表!$S$6:$AA$6,0)),FALSE)","v":false},false,false,false,false,false,{"$error":"#DIV/0!"},{"$error":"#DIV/0!"},{"$error":"#DIV/0!"},{"$error":"#DIV/0!"},{"$error":"#DIV/0!"},{"$error":"#DIV/0!"},{"$error":"#DIV/0!"},{"$error":"#DIV/0!"},{"$error":"#DIV/0!"},{"$error":"#DIV/0!"},{"$error":"#DIV/0!"},"","","","","","","","","","",""]
[null,null,null,null,null,null,null,null,null,null,null,null,null,null,null,null,null,null,null,null,null,null,null,null,null,null,null,null,null,80,{"$f":"VLOOKUP(AF102,$BA$23:$BB$44,2,0)","v":{"$error":"#N/A"}},null,null,null,null,null,null,null,null,null,null,null,null,null,null,null,null,null,null,null,null,null,null,null,null,null,"","","",{"$f":"IFERROR(ISNUMBER(MATCH(AF102,参照表!$S$2:$AA$2,0)),FALSE)","v":false},{"$f":"IFERROR(ISNUMBER(MATCH(AF102,参照表!$S$3:$AA$3,0)),FALSE)","v":false},{"$f":"IFERROR(ISNUMBER(MATCH(AF102,参照表!$S$4:$AA$4,0)),FALSE)","v":false},false,{"$f":"IFERROR(ISNUMBER(MATCH(AF102,参照表!$S$6:$AA$6,0)),FALSE)","v":false},false,false,false,false,false,{"$error":"#DIV/0!"},{"$error":"#DIV/0!"},{"$error":"#DIV/0!"},{"$error":"#DIV/0!"},{"$error":"#DIV/0!"},{"$error":"#DIV/0!"},{"$error":"#DIV/0!"},{"$error":"#DIV/0!"},{"$error":"#DIV/0!"},{"$error":"#DIV/0!"},{"$error":"#DIV/0!"},"","","","","","","","","","",""]
[null,null,null,null,null,null,null,null,null,null,null,null,null,null,null,null,null,null,null,null,null,null,null,null,null,null,null,null,null,81,{"$f":"VLOOKUP(AF103,$BA$23:$BB$44,2,0)","v":{"$error":"#N/A"}},null,null,null,null,null,null,null,null,null,null,null,null,null,null,null,null,null,null,null,null,null,null,null,null,null,"","","",{"$f":"IFERROR(ISNUMBER(MATCH(AF103,参照表!$S$2:$AA$2,0)),FALSE)","v":false},{"$f":"IFERROR(ISNUMBER(MATCH(AF103,参照表!$S$3:$AA$3,0)),FALSE)","v":false},{"$f":"IFERROR(ISNUMBER(MATCH(AF103,参照表!$S$4:$AA$4,0)),FALSE)","v":false},false,{"$f":"IFERROR(ISNUMBER(MATCH(AF103,参照表!$S$6:$AA$6,0)),FALSE)","v":false},false,false,false,false,false,{"$error":"#DIV/0!"},{"$error":"#DIV/0!"},{"$error":"#DIV/0!"},{"$error":"#DIV/0!"},{"$error":"#DIV/0!"},{"$error":"#DIV/0!"},{"$error":"#DIV/0!"},{"$error":"#DIV/0!"},{"$error":"#DIV/0!"},{"$error":"#DIV/0!"},{"$error":"#DIV/0!"},"","","","","","","","","","",""]
[null,null,null,null,null,null,null,null,null,null,null,null,null,null,null,null,null,null,null,null,null,null,null,null,null,null,null,null,null,82,{"$f":"VLOOKUP(AF104,$BA$23:$BB$44,2,0)","v":{"$error":"#N/A"}},null,null,null,null,null,null,null,null,null,null,null,null,null,null,null,null,null,null,null,null,null,null,null,null,null,"","","",{"$f":"IFERROR(ISNUMBER(MATCH(AF104,参照表!$S$2:$AA$2,0)),FALSE)","v":false},{"$f":"IFERROR(ISNUMBER(MATCH(AF104,参照表!$S$3:$AA$3,0)),FALSE)","v":false},{"$f":"IFERROR(ISNUMBER(MATCH(AF104,参照表!$S$4:$AA$4,0)),FALSE)","v":false},false,{"$f":"IFERROR(ISNUMBER(MATCH(AF104,参照表!$S$6:$AA$6,0)),FALSE)","v":false},false,false,false,false,false,{"$error":"#DIV/0!"},{"$error":"#DIV/0!"},{"$error":"#DIV/0!"},{"$error":"#DIV/0!"},{"$error":"#DIV/0!"},{"$error":"#DIV/0!"},{"$error":"#DIV/0!"},{"$error":"#DIV/0!"},{"$error":"#DIV/0!"},{"$error":"#DIV/0!"},{"$error":"#DIV/0!"},"","","","","","","","","","",""]
[null,null,null,null,null,null,null,null,null,null,null,null,null,null,null,null,null,null,null,null,null,null,null,null,null,null,null,null,null,83,{"$f":"VLOOKUP(AF105,$BA$23:$BB$44,2,0)","v":{"$error":"#N/A"}},null,null,null,null,null,null,null,null,null,null,null,null,null,null,null,null,null,null,null,null,null,null,null,null,null,"","","",{"$f":"IFERROR(ISNUMBER(MATCH(AF105,参照表!$S$2:$AA$2,0)),FALSE)","v":false},{"$f":"IFERROR(ISNUMBER(MATCH(AF105,参照表!$S$3:$AA$3,0)),FALSE)","v":false},{"$f":"IFERROR(ISNUMBER(MATCH(AF105,参照表!$S$4:$AA$4,0)),FALSE)","v":false},false,{"$f":"IFERROR(ISNUMBER(MATCH(AF105,参照表!$S$6:$AA$6,0)),FALSE)","v":false},false,false,false,false,false,{"$error":"#DIV/0!"},{"$error":"#DIV/0!"},{"$error":"#DIV/0!"},{"$error":"#DIV/0!"},{"$error":"#DIV/0!"},{"$error":"#DIV/0!"},{"$error":"#DIV/0!"},{"$error":"#DIV/0!"},{"$error":"#DIV/0!"},{"$error":"#DIV/0!"},{"$error":"#DIV/0!"},"","","","","","","","","","",""]
[null,null,null,null,null,null,null,null,null,null,null,null,null,null,null,null,null,null,null,null,null,null,null,null,null,null,null,null,null,84,{"$f":"VLOOKUP(AF106,$BA$23:$BB$44,2,0)","v":{"$error":"#N/A"}},null,null,null,null,null,null,null,null,null,null,null,null,null,null,null,null,null,null,null,null,null,null,null,null,null,"","","",{"$f":"IFERROR(ISNUMBER(MATCH(AF106,参照表!$S$2:$AA$2,0)),FALSE)","v":false},{"$f":"IFERROR(ISNUMBER(MATCH(AF106,参照表!$S$3:$AA$3,0)),FALSE)","v":false},{"$f":"IFERROR(ISNUMBER(MATCH(AF106,参照表!$S$4:$AA$4,0)),FALSE)","v":false},false,{"$f":"IFERROR(ISNUMBER(MATCH(AF106,参照表!$S$6:$AA$6,0)),FALSE)","v":false},false,false,false,false,false,{"$error":"#DIV/0!"},{"$error":"#DIV/0!"},{"$error":"#DIV/0!"},{"$error":"#DIV/0!"},{"$error":"#DIV/0!"},{"$error":"#DIV/0!"},{"$error":"#DIV/0!"},{"$error":"#DIV/0!"},{"$error":"#DIV/0!"},{"$error":"#DIV/0!"},{"$error":"#DIV/0!"},"","","","","","","","","","",""]
[null,null,null,null,null,null,null,null,null,null,null,null,null,null,null,null,null,null,null,null,null,null,null,null,null,null,null,null,null,85,{"$f":"VLOOKUP(AF107,$BA$23:$BB$44,2,0)","v":{"$error":"#N/A"}},null,null,null,null,null,null,null,null,null,null,null,null,null,null,null,null,null,null,null,null,null,null,null,null,null,"","","",{"$f":"IFERROR(ISNUMBER(MATCH(AF107,参照表!$S$2:$AA$2,0)),FALSE)","v":false},{"$f":"IFERROR(ISNUMBER(MATCH(AF107,参照表!$S$3:$AA$3,0)),FALSE)","v":false},{"$f":"IFERROR(ISNUMBER(MATCH(AF107,参照表!$S$4:$AA$4,0)),FALSE)","v":false},false,{"$f":"IFERROR(ISNUMBER(MATCH(AF107,参照表!$S$6:$AA$6,0)),FALSE)","v":false},false,false,false,false,false,{"$error":"#DIV/0!"},{"$error":"#DIV/0!"},{"$error":"#DIV/0!"},{"$error":"#DIV/0!"},{"$error":"#DIV/0!"},{"$error":"#DIV/0!"},{"$error":"#DIV/0!"},{"$error":"#DIV/0!"},{"$error":"#DIV/0!"},{"$error":"#DIV/0!"},{"$error":"#DIV/0!"},"","","","","","","","","","",""]
[null,null,null,null,null,null,null,null,null,null,null,null,null,null,null,null,null,null,null,null,null,null,null,null,null,null,null,null,null,86,{"$f":"VLOOKUP(AF108,$BA$23:$BB$44,2,0)","v":{"$error":"#N/A"}},null,null,null,null,null,null,null,null,null,null,null,null,null,null,null,null,null,null,null,null,null,null,null,null,null,"","","",{"$f":"IFERROR(ISNUMBER(MATCH(AF108,参照表!$S$2:$AA$2,0)),FALSE)","v":false},{"$f":"IFERROR(ISNUMBER(MATCH(AF108,参照表!$S$3:$AA$3,0)),FALSE)","v":false},{"$f":"IFERROR(ISNUMBER(MATCH(AF108,参照表!$S$4:$AA$4,0)),FALSE)","v":false},false,{"$f":"IFERROR(ISNUMBER(MATCH(AF108,参照表!$S$6:$AA$6,0)),FALSE)","v":false},false,false,false,false,false,{"$error":"#DIV/0!"},{"$error":"#DIV/0!"},{"$error":"#DIV/0!"},{"$error":"#DIV/0!"},{"$error":"#DIV/0!"},{"$error":"#DIV/0!"},{"$error":"#DIV/0!"},{"$error":"#DIV/0!"},{"$error":"#DIV/0!"},{"$error":"#DIV/0!"},{"$error":"#DIV/0!"},"","","","","","","","","","",""]
[null,null,null,null,null,null,null,null,null,null,null,null,null,null,null,null,null,null,null,null,null,null,null,null,null,null,null,null,null,87,{"$f":"VLOOKUP(AF109,$BA$23:$BB$44,2,0)","v":{"$error":"#N/A"}},null,null,null,null,null,null,null,null,null,null,null,null,null,null,null,null,null,null,null,null,null,null,null,null,null,"","","",{"$f":"IFERROR(ISNUMBER(MATCH(AF109,参照表!$S$2:$AA$2,0)),FALSE)","v":false},{"$f":"IFERROR(ISNUMBER(MATCH(AF109,参照表!$S$3:$AA$3,0)),FALSE)","v":false},{"$f":"IFERROR(ISNUMBER(MATCH(AF109,参照表!$S$4:$AA$4,0)),FALSE)","v":false},false,{"$f":"IFERROR(ISNUMBER(MATCH(AF109,参照表!$S$6:$AA$6,0)),FALSE)","v":false},false,false,false,false,false,{"$error":"#DIV/0!"},{"$error":"#DIV/0!"},{"$error":"#DIV/0!"},{"$error":"#DIV/0!"},{"$error":"#DIV/0!"},{"$error":"#DIV/0!"},{"$error":"#DIV/0!"},{"$error":"#DIV/0!"},{"$error":"#DIV/0!"},{"$error":"#DIV/0!"},{"$error":"#DIV/0!"},"","","","","","","","","","",""]
[null,null,null,null,null,null,null,null,null,null,null,null,null,null,null,null,null,null,null,null,null,null,null,null,null,null,null,null,null,88,{"$f":"VLOOKUP(AF110,$BA$23:$BB$44,2,0)","v":{"$error":"#N/A"}},null,null,null,null,null,null,null,null,null,null,null,null,null,null,null,null,null,null,null,null,null,null,null,null,null,"","","",{"$f":"IFERROR(ISNUMBER(MATCH(AF110,参照表!$S$2:$AA$2,0)),FALSE)","v":false},{"$f":"IFERROR(ISNUMBER(MATCH(AF110,参照表!$S$3:$AA$3,0)),FALSE)","v":false},{"$f":"IFERROR(ISNUMBER(MATCH(AF110,参照表!$S$4:$AA$4,0)),FALSE)","v":false},false,{"$f":"IFERROR(ISNUMBER(MATCH(AF110,参照表!$S$6:$AA$6,0)),FALSE)","v":false},false,false,false,false,false,{"$error":"#DIV/0!"},{"$error":"#DIV/0!"},{"$error":"#DIV/0!"},{"$error":"#DIV/0!"},{"$error":"#DIV/0!"},{"$error":"#DIV/0!"},{"$error":"#DIV/0!"},{"$error":"#DIV/0!"},{"$error":"#DIV/0!"},{"$error":"#DIV/0!"},{"$error":"#DIV/0!"},"","","","","","","","","","",""]
[null,null,null,null,null,null,null,null,null,null,null,null,null,null,null,null,null,null,null,null,null,null,null,null,null,null,null,null,null,89,{"$f":"VLOOKUP(AF111,$BA$23:$BB$44,2,0)","v":{"$error":"#N/A"}},null,null,null,null,null,null,null,null,null,null,null,null,null,null,null,null,null,null,null,null,null,null,null,null,null,"","","",{"$f":"IFERROR(ISNUMBER(MATCH(AF111,参照表!$S$2:$AA$2,0)),FALSE)","v":false},{"$f":"IFERROR(ISNUMBER(MATCH(AF111,参照表!$S$3:$AA$3,0)),FALSE)","v":false},{"$f":"IFERROR(ISNUMBER(MATCH(AF111,参照表!$S$4:$AA$4,0)),FALSE)","v":false},false,{"$f":"IFERROR(ISNUMBER(MATCH(AF111,参照表!$S$6:$AA$6,0)),FALSE)","v":false},false,false,false,false,false,{"$error":"#DIV/0!"},{"$error":"#DIV/0!"},{"$error":"#DIV/0!"},{"$error":"#DIV/0!"},{"$error":"#DIV/0!"},{"$error":"#DIV/0!"},{"$error":"#DIV/0!"},{"$error":"#DIV/0!"},{"$error":"#DIV/0!"},{"$error":"#DIV/0!"},{"$error":"#DIV/0!"},"","","","","","","","","","",""]
[null,null,null,null,null,null,null,null,null,null,null,null,null,null,null,null,null,null,null,null,null,null,null,null,null,null,null,null,null,90,{"$f":"VLOOKUP(AF112,$BA$23:$BB$44,2,0)","v":{"$error":"#N/A"}},null,null,null,null,null,null,null,null,null,null,null,null,null,null,null,null,null,null,null,null,null,null,null,null,null,"","","",{"$f":"IFERROR(ISNUMBER(MATCH(AF112,参照表!$S$2:$AA$2,0)),FALSE)","v":false},{"$f":"IFERROR(ISNUMBER(MATCH(AF112,参照表!$S$3:$AA$3,0)),FALSE)","v":false},{"$f":"IFERROR(ISNUMBER(MATCH(AF112,参照表!$S$4:$AA$4,0)),FALSE)","v":false},false,{"$f":"IFERROR(ISNUMBER(MATCH(AF112,参照表!$S$6:$AA$6,0)),FALSE)","v":false},false,false,false,false,false,{"$error":"#DIV/0!"},{"$error":"#DIV/0!"},{"$error":"#DIV/0!"},{"$error":"#DIV/0!"},{"$error":"#DIV/0!"},{"$error":"#DIV/0!"},{"$error":"#DIV/0!"},{"$error":"#DIV/0!"},{"$error":"#DIV/0!"},{"$error":"#DIV/0!"},{"$error":"#DIV/0!"},"","","","","","","","","","",""]
[null,null,null,null,null,null,null,null,null,null,null,null,null,null,null,null,null,null,null,null,null,null,null,null,null,null,null,null,null,91,{"$f":"VLOOKUP(AF113,$BA$23:$BB$44,2,0)","v":{"$error":"#N/A"}},null,null,null,null,null,null,null,null,null,null,null,null,null,null,null,null,null,null,null,null,null,null,null,null,null,"","","",{"$f":"IFERROR(ISNUMBER(MATCH(AF113,参照表!$S$2:$AA$2,0)),FALSE)","v":false},{"$f":"IFERROR(ISNUMBER(MATCH(AF113,参照表!$S$3:$AA$3,0)),FALSE)","v":false},{"$f":"IFERROR(ISNUMBER(MATCH(AF113,参照表!$S$4:$AA$4,0)),FALSE)","v":false},false,{"$f":"IFERROR(ISNUMBER(MATCH(AF113,参照表!$S$6:$AA$6,0)),FALSE)","v":false},false,false,false,false,false,{"$error":"#DIV/0!"},{"$error":"#DIV/0!"},{"$error":"#DIV/0!"},{"$error":"#DIV/0!"},{"$error":"#DIV/0!"},{"$error":"#DIV/0!"},{"$error":"#DIV/0!"},{"$error":"#DIV/0!"},{"$error":"#DIV/0!"},{"$error":"#DIV/0!"},{"$error":"#DIV/0!"},"","","","","","","","","","",""]
[null,null,null,null,null,null,null,null,null,null,null,null,null,null,null,null,null,null,null,null,null,null,null,null,null,null,null,null,null,92,{"$f":"VLOOKUP(AF114,$BA$23:$BB$44,2,0)","v":{"$error":"#N/A"}},null,null,null,null,null,null,null,null,null,null,null,null,null,null,null,null,null,null,null,null,null,null,null,null,null,"","","",{"$f":"IFERROR(ISNUMBER(MATCH(AF114,参照表!$S$2:$AA$2,0)),FALSE)","v":false},{"$f":"IFERROR(ISNUMBER(MATCH(AF114,参照表!$S$3:$AA$3,0)),FALSE)","v":false},{"$f":"IFERROR(ISNUMBER(MATCH(AF114,参照表!$S$4:$AA$4,0)),FALSE)","v":false},false,{"$f":"IFERROR(ISNUMBER(MATCH(AF114,参照表!$S$6:$AA$6,0)),FALSE)","v":false},false,false,false,false,false,{"$error":"#DIV/0!"},{"$error":"#DIV/0!"},{"$error":"#DIV/0!"},{"$error":"#DIV/0!"},{"$error":"#DIV/0!"},{"$error":"#DIV/0!"},{"$error":"#DIV/0!"},{"$error":"#DIV/0!"},{"$error":"#DIV/0!"},{"$error":"#DIV/0!"},{"$error":"#DIV/0!"},"","","","","","","","","","",""]
[null,null,null,null,null,null,null,null,null,null,null,null,null,null,null,null,null,null,null,null,null,null,null,null,null,null,null,null,null,93,{"$f":"VLOOKUP(AF115,$BA$23:$BB$44,2,0)","v":{"$error":"#N/A"}},null,null,null,null,null,null,null,null,null,null,null,null,null,null,null,null,null,null,null,null,null,null,null,null,null,"","","",{"$f":"IFERROR(ISNUMBER(MATCH(AF115,参照表!$S$2:$AA$2,0)),FALSE)","v":false},{"$f":"IFERROR(ISNUMBER(MATCH(AF115,参照表!$S$3:$AA$3,0)),FALSE)","v":false},{"$f":"IFERROR(ISNUMBER(MATCH(AF115,参照表!$S$4:$AA$4,0)),FALSE)","v":false},false,{"$f":"IFERROR(ISNUMBER(MATCH(AF115,参照表!$S$6:$AA$6,0)),FALSE)","v":false},false,false,false,false,false,{"$error":"#DIV/0!"},{"$error":"#DIV/0!"},{"$error":"#DIV/0!"},{"$error":"#DIV/0!"},{"$error":"#DIV/0!"},{"$error":"#DIV/0!"},{"$error":"#DIV/0!"},{"$error":"#DIV/0!"},{"$error":"#DIV/0!"},{"$error":"#DIV/0!"},{"$error":"#DIV/0!"},"","","","","","","","","","",""]
[null,null,null,null,null,null,null,null,null,null,null,null,null,null,null,null,null,null,null,null,null,null,null,null,null,null,null,null,null,94,{"$f":"VLOOKUP(AF116,$BA$23:$BB$44,2,0)","v":{"$error":"#N/A"}},null,null,null,null,null,null,null,null,null,null,null,null,null,null,null,null,null,null,null,null,null,null,null,null,null,"","","",{"$f":"IFERROR(ISNUMBER(MATCH(AF116,参照表!$S$2:$AA$2,0)),FALSE)","v":false},{"$f":"IFERROR(ISNUMBER(MATCH(AF116,参照表!$S$3:$AA$3,0)),FALSE)","v":false},{"$f":"IFERROR(ISNUMBER(MATCH(AF116,参照表!$S$4:$AA$4,0)),FALSE)","v":false},false,{"$f":"IFERROR(ISNUMBER(MATCH(AF116,参照表!$S$6:$AA$6,0)),FALSE)","v":false},false,false,false,false,false,{"$error":"#DIV/0!"},{"$error":"#DIV/0!"},{"$error":"#DIV/0!"},{"$error":"#DIV/0!"},{"$error":"#DIV/0!"},{"$error":"#DIV/0!"},{"$error":"#DIV/0!"},{"$error":"#DIV/0!"},{"$error":"#DIV/0!"},{"$error":"#DIV/0!"},{"$error":"#DIV/0!"},"","","","","","","","","","",""]
[null,null,null,null,null,null,null,null,null,null,null,null,null,null,null,null,null,null,null,null,null,null,null,null,null,null,null,null,null,95,{"$f":"VLOOKUP(AF117,$BA$23:$BB$44,2,0)","v":{"$error":"#N/A"}},null,null,null,null,null,null,null,null,null,null,null,null,null,null,null,null,null,null,null,null,null,null,null,null,null,"","","",{"$f":"IFERROR(ISNUMBER(MATCH(AF117,参照表!$S$2:$AA$2,0)),FALSE)","v":false},{"$f":"IFERROR(ISNUMBER(MATCH(AF117,参照表!$S$3:$AA$3,0)),FALSE)","v":false},{"$f":"IFERROR(ISNUMBER(MATCH(AF117,参照表!$S$4:$AA$4,0)),FALSE)","v":false},false,{"$f":"IFERROR(ISNUMBER(MATCH(AF117,参照表!$S$6:$AA$6,0)),FALSE)","v":false},false,false,false,false,false,{"$error":"#DIV/0!"},{"$error":"#DIV/0!"},{"$error":"#DIV/0!"},{"$error":"#DIV/0!"},{"$error":"#DIV/0!"},{"$error":"#DIV/0!"},{"$error":"#DIV/0!"},{"$error":"#DIV/0!"},{"$error":"#DIV/0!"},{"$error":"#DIV/0!"},{"$error":"#DIV/0!"},"","","","","","","","","","",""]
[null,null,null,null,null,null,null,null,null,null,null,null,null,null,null,null,null,null,null,null,null,null,null,null,null,null,null,null,null,96,{"$f":"VLOOKUP(AF118,$BA$23:$BB$44,2,0)","v":{"$error":"#N/A"}},null,null,null,null,null,null,null,null,null,null,null,null,null,null,null,null,null,null,null,null,null,null,null,null,null,"","","",{"$f":"IFERROR(ISNUMBER(MATCH(AF118,参照表!$S$2:$AA$2,0)),FALSE)","v":false},{"$f":"IFERROR(ISNUMBER(MATCH(AF118,参照表!$S$3:$AA$3,0)),FALSE)","v":false},{"$f":"IFERROR(ISNUMBER(MATCH(AF118,参照表!$S$4:$AA$4,0)),FALSE)","v":false},false,{"$f":"IFERROR(ISNUMBER(MATCH(AF118,参照表!$S$6:$AA$6,0)),FALSE)","v":false},false,false,false,false,false,{"$error":"#DIV/0!"},{"$error":"#DIV/0!"},{"$error":"#DIV/0!"},{"$error":"#DIV/0!"},{"$error":"#DIV/0!"},{"$error":"#DIV/0!"},{"$error":"#DIV/0!"},{"$error":"#DIV/0!"},{"$error":"#DIV/0!"},{"$error":"#DIV/0!"},{"$error":"#DIV/0!"},"","","","","","","","","","",""]
[null,null,null,null,null,null,null,null,null,null,null,null,null,null,null,null,null,null,null,null,null,null,null,null,null,null,null,null,null,97,{"$f":"VLOOKUP(AF119,$BA$23:$BB$44,2,0)","v":{"$error":"#N/A"}},null,null,null,null,null,null,null,null,null,null,null,null,null,null,null,null,null,null,null,null,null,null,null,null,null,{"$f":"AF119&AI119","v":""},{"$f":"AF119&AG119","v":""},{"$f":"AF119&AJ119","v":""},{"$f":"IFERROR(ISNUMBER(MATCH(AF119,参照表!$S$2:$AA$2,0)),FALSE)","v":false},{"$f":"IFERROR(ISNUMBER(MATCH(AF119,参照表!$S$3:$AA$3,0)),FALSE)","v":false},{"$f":"IFERROR(ISNUMBER(MATCH(AF119,参照表!$S$4:$AA$4,0)),FALSE)","v":false},false,{"$f":"IFERROR(ISNUMBER(MATCH(AF119,参照表!$S$6:$AA$6,0)),FALSE)","v":false},false,false,false,false,false,{"$f":"IF(OR(AK119=\"○\",AK119>AK$12),AK$12,AK119)","v":{"$error":"#DIV/0!"}},{"$f":"IF(OR(AL119=\"○\",AL119>AL$12),AL$12,AL119)","v":{"$error":"#DIV/0!"}},{"$f":"IF(OR(AM119=\"○\",AM119>AM$12),AM$12,AM119)","v":{"$error":"#DIV/0!"}},{"$f":"IF(OR(AN119=\"○\",AN119>AN$12),AN$12,AN119)","v":{"$error":"#DIV/0!"}},{"$f":"IF(OR(AO119=\"○\",AO119>AO$12),AO$12,AO119)","v":{"$error":"#DIV/0!"}},{"$f":"IF(OR(AP119=\"○\",AP119>AP$12),AP$12,AP119)","v":{"$error":"#DIV/0!"}},{"$f":"IF(OR(AQ119=\"○\",AQ119>AQ$12),AQ$12,AQ119)","v":{"$error":"#DIV/0!"}},{"$f":"IF(OR(AR119=\"○\",AR119>AR$12),AR$12,AR119)","v":{"$error":"#DIV/0!"}},{"$f":"IF(OR(AS119=\"○\",AS119>AS$12),AS$12,AS119)","v":{"$error":"#DIV/0!"}},{"$f":"IF(OR(AT119=\"○\",AT119>AT$12),AT$12,AT119)","v":{"$error":"#DIV/0!"}},{"$f":"IF(OR(AU119=\"○\",AU119>AU$12),AU$12,AU119)","v":{"$error":"#DIV/0!"}},{"$f":"IF(AND(AK119<>\"\",AK119<>0,$AJ119=\"3年以上\"),1,\"\")","v":""},{"$f":"IF(AND(AL119<>\"\",AL119<>0,$AJ119=\"3年以上\"),1,\"\")","v":""},{"$f":"IF(AND(AM119<>\"\",AM119<>0,$AJ119=\"3年以上\"),1,\"\")","v":""},{"$f":"IF(AND(AN119<>\"\",AN119<>0,$AJ119=\"3年以上\"),1,\"\")","v":""},{"$f":"IF(AND(AO119<>\"\",AO119<>0,$AJ119=\"3年以上\"),1,\"\")","v":""},{"$f":"IF(AND(AP119<>\"\",AP119<>0,$AJ119=\"3年以上\"),1,\"\")","v":""},{"$f":"IF(AND(AQ119<>\"\",AQ119<>0,$AJ119=\"3年以上\"),1,\"\")","v":""},{"$f":"IF(AND(AR119<>\"\",AR119<>0,$AJ119=\"3年以上\"),1,\"\")","v":""},{"$f":"IF(AND(AS119<>\"\",AS119<>0,$AJ119=\"3年以上\"),1,\"\")","v":""},{"$f":"IF(AND(AT119<>\"\",AT119<>0,$AJ119=\"3年以上\"),1,\"\")","v":""},{"$f":"IF(AND(AU119<>\"\",AU119<>0,$AJ119=\"3年以上\"),1,\"\")","v":""}]
[null,null,null,null,null,null,null,null,null,null,null,null,null,null,null,null,null,null,null,null,null,null,null,null,null,null,null,null,null,98,{"$f":"VLOOKUP(AF120,$BA$23:$BB$44,2,0)","v":{"$error":"#N/A"}},null,null,null,null,null,null,null,null,null,null,null,null,null,null,null,null,null,null,null,null,null,null,null,null,null,"","","",{"$f":"IFERROR(ISNUMBER(MATCH(AF120,参照表!$S$2:$AA$2,0)),FALSE)","v":false},{"$f":"IFERROR(ISNUMBER(MATCH(AF120,参照表!$S$3:$AA$3,0)),FALSE)","v":false},{"$f":"IFERROR(ISNUMBER(MATCH(AF120,参照表!$S$4:$AA$4,0)),FALSE)","v":false},false,{"$f":"IFERROR(ISNUMBER(MATCH(AF120,参照表!$S$6:$AA$6,0)),FALSE)","v":false},false,false,false,false,false,{"$error":"#DIV/0!"},{"$error":"#DIV/0!"},{"$error":"#DIV/0!"},{"$error":"#DIV/0!"},{"$error":"#DIV/0!"},{"$error":"#DIV/0!"},{"$error":"#DIV/0!"},{"$error":"#DIV/0!"},{"$error":"#DIV/0!"},{"$error":"#DIV/0!"},{"$error":"#DIV/0!"},"","","","","","","","","","",""]
[null,null,null,null,null,null,null,null,null,null,null,null,null,null,null,null,null,null,null,null,null,null,null,null,null,null,null,null,null,99,{"$f":"VLOOKUP(AF121,$BA$23:$BB$44,2,0)","v":{"$error":"#N/A"}},null,null,null,null,null,null,null,null,null,null,null,null,null,null,null,null,null,null,null,null,null,null,null,null,null,"","","",{"$f":"IFERROR(ISNUMBER(MATCH(AF121,参照表!$S$2:$AA$2,0)),FALSE)","v":false},{"$f":"IFERROR(ISNUMBER(MATCH(AF121,参照表!$S$3:$AA$3,0)),FALSE)","v":false},{"$f":"IFERROR(ISNUMBER(MATCH(AF121,参照表!$S$4:$AA$4,0)),FALSE)","v":false},false,{"$f":"IFERROR(ISNUMBER(MATCH(AF121,参照表!$S$6:$AA$6,0)),FALSE)","v":false},false,false,false,false,false,{"$error":"#DIV/0!"},{"$error":"#DIV/0!"},{"$error":"#DIV/0!"},{"$error":"#DIV/0!"},{"$error":"#DIV/0!"},{"$error":"#DIV/0!"},{"$error":"#DIV/0!"},{"$error":"#DIV/0!"},{"$error":"#DIV/0!"},{"$error":"#DIV/0!"},{"$error":"#DIV/0!"},"","","","","","","","","","",""]
[null,null,null,null,null,null,null,null,null,null,null,null,null,null,null,null,null,null,null,null,null,null,null,null,null,null,null,null,null,100,{"$f":"VLOOKUP(AF122,$BA$23:$BB$44,2,0)","v":{"$error":"#N/A"}},null,null,null,null,null,null,null,null,null,null,null,null,null,null,null,null,null,null,null,null,null,null,null,null,null,"","","",{"$f":"IFERROR(ISNUMBER(MATCH(AF122,参照表!$S$2:$AA$2,0)),FALSE)","v":false},{"$f":"IFERROR(ISNUMBER(MATCH(AF122,参照表!$S$3:$AA$3,0)),FALSE)","v":false},{"$f":"IFERROR(ISNUMBER(MATCH(AF122,参照表!$S$4:$AA$4,0)),FALSE)","v":false},false,{"$f":"IFERROR(ISNUMBER(MATCH(AF122,参照表!$S$6:$AA$6,0)),FALSE)","v":false},false,false,false,false,false,{"$error":"#DIV/0!"},{"$error":"#DIV/0!"},{"$error":"#DIV/0!"},{"$error":"#DIV/0!"},{"$error":"#DIV/0!"},{"$error":"#DIV/0!"},{"$error":"#DIV/0!"},{"$error":"#DIV/0!"},{"$error":"#DIV/0!"},{"$error":"#DIV/0!"},{"$error":"#DIV/0!"},"","","","","","","","","","",""]
[null,null,null,null,null,null,null,null,null,null,null,null,null,null,null,null,null,null,null,null,null,null,null,null,null,null,null,null,null,101,{"$f":"VLOOKUP(AF123,$BA$23:$BB$44,2,0)","v":{"$error":"#N/A"}},null,null,null,null,null,null,null,null,null,null,null,null,null,null,null,null,null,null,null,null,null,null,null,null,null,"","","",{"$f":"IFERROR(ISNUMBER(MATCH(AF123,参照表!$S$2:$AA$2,0)),FALSE)","v":false},{"$f":"IFERROR(ISNUMBER(MATCH(AF123,参照表!$S$3:$AA$3,0)),FALSE)","v":false},{"$f":"IFERROR(ISNUMBER(MATCH(AF123,参照表!$S$4:$AA$4,0)),FALSE)","v":false},false,{"$f":"IFERROR(ISNUMBER(MATCH(AF123,参照表!$S$6:$AA$6,0)),FALSE)","v":false},false,false,false,false,false,{"$error":"#DIV/0!"},{"$error":"#DIV/0!"},{"$error":"#DIV/0!"},{"$error":"#DIV/0!"},{"$error":"#DIV/0!"},{"$error":"#DIV/0!"},{"$error":"#DIV/0!"},{"$error":"#DIV/0!"},{"$error":"#DIV/0!"},{"$error":"#DIV/0!"},{"$error":"#DIV/0!"},"","","","","","","","","","",""]
[null,null,null,null,null,null,null,null,null,null,null,null,null,null,null,null,null,null,null,null,null,null,null,null,null,null,null,null,null,102,{"$f":"VLOOKUP(AF124,$BA$23:$BB$44,2,0)","v":{"$error":"#N/A"}},null,null,null,null,null,null,null,null,null,null,null,null,null,null,null,null,null,null,null,null,null,null,null,null,null,"","","",{"$f":"IFERROR(ISNUMBER(MATCH(AF124,参照表!$S$2:$AA$2,0)),FALSE)","v":false},{"$f":"IFERROR(ISNUMBER(MATCH(AF124,参照表!$S$3:$AA$3,0)),FALSE)","v":false},{"$f":"IFERROR(ISNUMBER(MATCH(AF124,参照表!$S$4:$AA$4,0)),FALSE)","v":false},false,{"$f":"IFERROR(ISNUMBER(MATCH(AF124,参照表!$S$6:$AA$6,0)),FALSE)","v":false},false,false,false,false,false,{"$error":"#DIV/0!"},{"$error":"#DIV/0!"},{"$error":"#DIV/0!"},{"$error":"#DIV/0!"},{"$error":"#DIV/0!"},{"$error":"#DIV/0!"},{"$error":"#DIV/0!"},{"$error":"#DIV/0!"},{"$error":"#DIV/0!"},{"$error":"#DIV/0!"},{"$error":"#DIV/0!"},"","","","","","","","","","",""]
[null,null,null,null,null,null,null,null,null,null,null,null,null,null,null,null,null,null,null,null,null,null,null,null,null,null,null,null,null,103,{"$f":"VLOOKUP(AF125,$BA$23:$BB$44,2,0)","v":{"$error":"#N/A"}},null,null,null,null,null,null,null,null,null,null,null,null,null,null,null,null,null,null,null,null,null,null,null,null,null,"","","",{"$f":"IFERROR(ISNUMBER(MATCH(AF125,参照表!$S$2:$AA$2,0)),FALSE)","v":false},{"$f":"IFERROR(ISNUMBER(MATCH(AF125,参照表!$S$3:$AA$3,0)),FALSE)","v":false},{"$f":"IFERROR(ISNUMBER(MATCH(AF125,参照表!$S$4:$AA$4,0)),FALSE)","v":false},false,{"$f":"IFERROR(ISNUMBER(MATCH(AF125,参照表!$S$6:$AA$6,0)),FALSE)","v":false},false,false,false,false,false,{"$error":"#DIV/0!"},{"$error":"#DIV/0!"},{"$error":"#DIV/0!"},{"$error":"#DIV/0!"},{"$error":"#DIV/0!"},{"$error":"#DIV/0!"},{"$error":"#DIV/0!"},{"$error":"#DIV/0!"},{"$error":"#DIV/0!"},{"$error":"#DIV/0!"},{"$error":"#DIV/0!"},"","","","","","","","","","",""]
[null,null,null,null,null,null,null,null,null,null,null,null,null,null,null,null,null,null,null,null,null,null,null,null,null,null,null,null,null,104,{"$f":"VLOOKUP(AF126,$BA$23:$BB$44,2,0)","v":{"$error":"#N/A"}},null,null,null,null,null,null,null,null,null,null,null,null,null,null,null,null,null,null,null,null,null,null,null,null,null,"","","",{"$f":"IFERROR(ISNUMBER(MATCH(AF126,参照表!$S$2:$AA$2,0)),FALSE)","v":false},{"$f":"IFERROR(ISNUMBER(MATCH(AF126,参照表!$S$3:$AA$3,0)),FALSE)","v":false},{"$f":"IFERROR(ISNUMBER(MATCH(AF126,参照表!$S$4:$AA$4,0)),FALSE)","v":false},false,{"$f":"IFERROR(ISNUMBER(MATCH(AF126,参照表!$S$6:$AA$6,0)),FALSE)","v":false},false,false,false,false,false,{"$error":"#DIV/0!"},{"$error":"#DIV/0!"},{"$error":"#DIV/0!"},{"$error":"#DIV/0!"},{"$error":"#DIV/0!"},{"$error":"#DIV/0!"},{"$error":"#DIV/0!"},{"$error":"#DIV/0!"},{"$error":"#DIV/0!"},{"$error":"#DIV/0!"},{"$error":"#DIV/0!"},"","","","","","","","","","",""]
[null,null,null,null,null,null,null,null,null,null,null,null,null,null,null,null,null,null,null,null,null,null,null,null,null,null,null,null,null,105,{"$f":"VLOOKUP(AF127,$BA$23:$BB$44,2,0)","v":{"$error":"#N/A"}},null,null,null,null,null,null,null,null,null,null,null,null,null,null,null,null,null,null,null,null,null,null,null,null,null,"","","",{"$f":"IFERROR(ISNUMBER(MATCH(AF127,参照表!$S$2:$AA$2,0)),FALSE)","v":false},{"$f":"IFERROR(ISNUMBER(MATCH(AF127,参照表!$S$3:$AA$3,0)),FALSE)","v":false},{"$f":"IFERROR(ISNUMBER(MATCH(AF127,参照表!$S$4:$AA$4,0)),FALSE)","v":false},false,{"$f":"IFERROR(ISNUMBER(MATCH(AF127,参照表!$S$6:$AA$6,0)),FALSE)","v":false},false,false,false,false,false,{"$error":"#DIV/0!"},{"$error":"#DIV/0!"},{"$error":"#DIV/0!"},{"$error":"#DIV/0!"},{"$error":"#DIV/0!"},{"$error":"#DIV/0!"},{"$error":"#DIV/0!"},{"$error":"#DIV/0!"},{"$error":"#DIV/0!"},{"$error":"#DIV/0!"},{"$error":"#DIV/0!"},"","","","","","","","","","",""]
[null,null,null,null,null,null,null,null,null,null,null,null,null,null,null,null,null,null,null,null,null,null,null,null,null,null,null,null,null,106,{"$f":"VLOOKUP(AF128,$BA$23:$BB$44,2,0)","v":{"$error":"#N/A"}},null,null,null,null,null,null,null,null,null,null,null,null,null,null,null,null,null,null,null,null,null,null,null,null,null,"","","",{"$f":"IFERROR(ISNUMBER(MATCH(AF128,参照表!$S$2:$AA$2,0)),FALSE)","v":false},{"$f":"IFERROR(ISNUMBER(MATCH(AF128,参照表!$S$3:$AA$3,0)),FALSE)","v":false},{"$f":"IFERROR(ISNUMBER(MATCH(AF128,参照表!$S$4:$AA$4,0)),FALSE)","v":false},false,{"$f":"IFERROR(ISNUMBER(MATCH(AF128,参照表!$S$6:$AA$6,0)),FALSE)","v":false},false,false,false,false,false,{"$error":"#DIV/0!"},{"$error":"#DIV/0!"},{"$error":"#DIV/0!"},{"$error":"#DIV/0!"},{"$error":"#DIV/0!"},{"$error":"#DIV/0!"},{"$error":"#DIV/0!"},{"$error":"#DIV/0!"},{"$error":"#DIV/0!"},{"$error":"#DIV/0!"},{"$error":"#DIV/0!"},"","","","","","","","","","",""]
[null,null,null,null,null,null,null,null,null,null,null,null,null,null,null,null,null,null,null,null,null,null,null,null,null,null,null,null,null,107,{"$f":"VLOOKUP(AF129,$BA$23:$BB$44,2,0)","v":{"$error":"#N/A"}},null,null,null,null,null,null,null,null,null,null,null,null,null,null,null,null,null,null,null,null,null,null,null,null,null,"","","",{"$f":"IFERROR(ISNUMBER(MATCH(AF129,参照表!$S$2:$AA$2,0)),FALSE)","v":false},{"$f":"IFERROR(ISNUMBER(MATCH(AF129,参照表!$S$3:$AA$3,0)),FALSE)","v":false},{"$f":"IFERROR(ISNUMBER(MATCH(AF129,参照表!$S$4:$AA$4,0)),FALSE)","v":false},false,{"$f":"IFERROR(ISNUMBER(MATCH(AF129,参照表!$S$6:$AA$6,0)),FALSE)","v":false},false,false,false,false,false,{"$error":"#DIV/0!"},{"$error":"#DIV/0!"},{"$error":"#DIV/0!"},{"$error":"#DIV/0!"},{"$error":"#DIV/0!"},{"$error":"#DIV/0!"},{"$error":"#DIV/0!"},{"$error":"#DIV/0!"},{"$error":"#DIV/0!"},{"$error":"#DIV/0!"},{"$error":"#DIV/0!"},"","","","","","","","","","",""]
[null,null,null,null,null,null,null,null,null,null,null,null,null,null,null,null,null,null,null,null,null,null,null,null,null,null,null,null,null,108,{"$f":"VLOOKUP(AF130,$BA$23:$BB$44,2,0)","v":{"$error":"#N/A"}},null,null,null,null,null,null,null,null,null,null,null,null,null,null,null,null,null,null,null,null,null,null,null,null,null,"","","",{"$f":"IFERROR(ISNUMBER(MATCH(AF130,参照表!$S$2:$AA$2,0)),FALSE)","v":false},{"$f":"IFERROR(ISNUMBER(MATCH(AF130,参照表!$S$3:$AA$3,0)),FALSE)","v":false},{"$f":"IFERROR(ISNUMBER(MATCH(AF130,参照表!$S$4:$AA$4,0)),FALSE)","v":false},false,{"$f":"IFERROR(ISNUMBER(MATCH(AF130,参照表!$S$6:$AA$6,0)),FALSE)","v":false},false,false,false,false,false,{"$error":"#DIV/0!"},{"$error":"#DIV/0!"},{"$error":"#DIV/0!"},{"$error":"#DIV/0!"},{"$error":"#DIV/0!"},{"$error":"#DIV/0!"},{"$error":"#DIV/0!"},{"$error":"#DIV/0!"},{"$error":"#DIV/0!"},{"$error":"#DIV/0!"},{"$error":"#DIV/0!"},"","","","","","","","","","",""]
[null,null,null,null,null,null,null,null,null,null,null,null,null,null,null,null,null,null,null,null,null,null,null,null,null,null,null,null,null,109,{"$f":"VLOOKUP(AF131,$BA$23:$BB$44,2,0)","v":{"$error":"#N/A"}},null,null,null,null,null,null,null,null,null,null,null,null,null,null,null,null,null,null,null,null,null,null,null,null,null,"","","",{"$f":"IFERROR(ISNUMBER(MATCH(AF131,参照表!$S$2:$AA$2,0)),FALSE)","v":false},{"$f":"IFERROR(ISNUMBER(MATCH(AF131,参照表!$S$3:$AA$3,0)),FALSE)","v":false},{"$f":"IFERROR(ISNUMBER(MATCH(AF131,参照表!$S$4:$AA$4,0)),FALSE)","v":false},false,{"$f":"IFERROR(ISNUMBER(MATCH(AF131,参照表!$S$6:$AA$6,0)),FALSE)","v":false},false,false,false,false,false,{"$error":"#DIV/0!"},{"$error":"#DIV/0!"},{"$error":"#DIV/0!"},{"$error":"#DIV/0!"},{"$error":"#DIV/0!"},{"$error":"#DIV/0!"},{"$error":"#DIV/0!"},{"$error":"#DIV/0!"},{"$error":"#DIV/0!"},{"$error":"#DIV/0!"},{"$error":"#DIV/0!"},"","","","","","","","","","",""]
[null,null,null,null,null,null,null,null,null,null,null,null,null,null,null,null,null,null,null,null,null,null,null,null,null,null,null,null,null,110,{"$f":"VLOOKUP(AF132,$BA$23:$BB$44,2,0)","v":{"$error":"#N/A"}},null,null,null,null,null,null,null,null,null,null,null,null,null,null,null,null,null,null,null,null,null,null,null,null,null,"","","",{"$f":"IFERROR(ISNUMBER(MATCH(AF132,参照表!$S$2:$AA$2,0)),FALSE)","v":false},{"$f":"IFERROR(ISNUMBER(MATCH(AF132,参照表!$S$3:$AA$3,0)),FALSE)","v":false},{"$f":"IFERROR(ISNUMBER(MATCH(AF132,参照表!$S$4:$AA$4,0)),FALSE)","v":false},false,{"$f":"IFERROR(ISNUMBER(MATCH(AF132,参照表!$S$6:$AA$6,0)),FALSE)","v":false},false,false,false,false,false,{"$error":"#DIV/0!"},{"$error":"#DIV/0!"},{"$error":"#DIV/0!"},{"$error":"#DIV/0!"},{"$error":"#DIV/0!"},{"$error":"#DIV/0!"},{"$error":"#DIV/0!"},{"$error":"#DIV/0!"},{"$error":"#DIV/0!"},{"$error":"#DIV/0!"},{"$error":"#DIV/0!"},"","","","","","","","","","",""]
[null,null,null,null,null,null,null,null,null,null,null,null,null,null,null,null,null,null,null,null,null,null,null,null,null,null,null,null,null,111,{"$f":"VLOOKUP(AF133,$BA$23:$BB$44,2,0)","v":{"$error":"#N/A"}},null,null,null,null,null,null,null,null,null,null,null,null,null,null,null,null,null,null,null,null,null,null,null,null,null,"","","",{"$f":"IFERROR(ISNUMBER(MATCH(AF133,参照表!$S$2:$AA$2,0)),FALSE)","v":false},{"$f":"IFERROR(ISNUMBER(MATCH(AF133,参照表!$S$3:$AA$3,0)),FALSE)","v":false},{"$f":"IFERROR(ISNUMBER(MATCH(AF133,参照表!$S$4:$AA$4,0)),FALSE)","v":false},false,{"$f":"IFERROR(ISNUMBER(MATCH(AF133,参照表!$S$6:$AA$6,0)),FALSE)","v":false},false,false,false,false,false,{"$error":"#DIV/0!"},{"$error":"#DIV/0!"},{"$error":"#DIV/0!"},{"$error":"#DIV/0!"},{"$error":"#DIV/0!"},{"$error":"#DIV/0!"},{"$error":"#DIV/0!"},{"$error":"#DIV/0!"},{"$error":"#DIV/0!"},{"$error":"#DIV/0!"},{"$error":"#DIV/0!"},"","","","","","","","","","",""]
[null,null,null,null,null,null,null,null,null,null,null,null,null,null,null,null,null,null,null,null,null,null,null,null,null,null,null,null,null,112,{"$f":"VLOOKUP(AF134,$BA$23:$BB$44,2,0)","v":{"$error":"#N/A"}},null,null,null,null,null,null,null,null,null,null,null,null,null,null,null,null,null,null,null,null,null,null,null,null,null,"","","",{"$f":"IFERROR(ISNUMBER(MATCH(AF134,参照表!$S$2:$AA$2,0)),FALSE)","v":false},{"$f":"IFERROR(ISNUMBER(MATCH(AF134,参照表!$S$3:$AA$3,0)),FALSE)","v":false},{"$f":"IFERROR(ISNUMBER(MATCH(AF134,参照表!$S$4:$AA$4,0)),FALSE)","v":false},false,{"$f":"IFERROR(ISNUMBER(MATCH(AF134,参照表!$S$6:$AA$6,0)),FALSE)","v":false},false,false,false,false,false,{"$error":"#DIV/0!"},{"$error":"#DIV/0!"},{"$error":"#DIV/0!"},{"$error":"#DIV/0!"},{"$error":"#DIV/0!"},{"$error":"#DIV/0!"},{"$error":"#DIV/0!"},{"$error":"#DIV/0!"},{"$error":"#DIV/0!"},{"$error":"#DIV/0!"},{"$error":"#DIV/0!"},"","","","","","","","","","",""]
[null,null,null,null,null,null,null,null,null,null,null,null,null,null,null,null,null,null,null,null,null,null,null,null,null,null,null,null,null,113,{"$f":"VLOOKUP(AF135,$BA$23:$BB$44,2,0)","v":{"$error":"#N/A"}},null,null,null,null,null,null,null,null,null,null,null,null,null,null,null,null,null,null,null,null,null,null,null,null,null,"","","",{"$f":"IFERROR(ISNUMBER(MATCH(AF135,参照表!$S$2:$AA$2,0)),FALSE)","v":false},{"$f":"IFERROR(ISNUMBER(MATCH(AF135,参照表!$S$3:$AA$3,0)),FALSE)","v":false},{"$f":"IFERROR(ISNUMBER(MATCH(AF135,参照表!$S$4:$AA$4,0)),FALSE)","v":false},false,{"$f":"IFERROR(ISNUMBER(MATCH(AF135,参照表!$S$6:$AA$6,0)),FALSE)","v":false},false,false,false,false,false,{"$error":"#DIV/0!"},{"$error":"#DIV/0!"},{"$error":"#DIV/0!"},{"$error":"#DIV/0!"},{"$error":"#DIV/0!"},{"$error":"#DIV/0!"},{"$error":"#DIV/0!"},{"$error":"#DIV/0!"},{"$error":"#DIV/0!"},{"$error":"#DIV/0!"},{"$error":"#DIV/0!"},"","","","","","","","","","",""]
[null,null,null,null,null,null,null,null,null,null,null,null,null,null,null,null,null,null,null,null,null,null,null,null,null,null,null,null,null,114,{"$f":"VLOOKUP(AF136,$BA$23:$BB$44,2,0)","v":{"$error":"#N/A"}},null,null,null,null,null,null,null,null,null,null,null,null,null,null,null,null,null,null,null,null,null,null,null,null,null,"","","",{"$f":"IFERROR(ISNUMBER(MATCH(AF136,参照表!$S$2:$AA$2,0)),FALSE)","v":false},{"$f":"IFERROR(ISNUMBER(MATCH(AF136,参照表!$S$3:$AA$3,0)),FALSE)","v":false},{"$f":"IFERROR(ISNUMBER(MATCH(AF136,参照表!$S$4:$AA$4,0)),FALSE)","v":false},false,{"$f":"IFERROR(ISNUMBER(MATCH(AF136,参照表!$S$6:$AA$6,0)),FALSE)","v":false},false,false,false,false,false,{"$error":"#DIV/0!"},{"$error":"#DIV/0!"},{"$error":"#DIV/0!"},{"$error":"#DIV/0!"},{"$error":"#DIV/0!"},{"$error":"#DIV/0!"},{"$error":"#DIV/0!"},{"$error":"#DIV/0!"},{"$error":"#DIV/0!"},{"$error":"#DIV/0!"},{"$error":"#DIV/0!"},"","","","","","","","","","",""]
[null,null,null,null,null,null,null,null,null,null,null,null,null,null,null,null,null,null,null,null,null,null,null,null,null,null,null,null,null,115,{"$f":"VLOOKUP(AF137,$BA$23:$BB$44,2,0)","v":{"$error":"#N/A"}},null,null,null,null,null,null,null,null,null,null,null,null,null,null,null,null,null,null,null,null,null,null,null,null,null,"","","",{"$f":"IFERROR(ISNUMBER(MATCH(AF137,参照表!$S$2:$AA$2,0)),FALSE)","v":false},{"$f":"IFERROR(ISNUMBER(MATCH(AF137,参照表!$S$3:$AA$3,0)),FALSE)","v":false},{"$f":"IFERROR(ISNUMBER(MATCH(AF137,参照表!$S$4:$AA$4,0)),FALSE)","v":false},false,{"$f":"IFERROR(ISNUMBER(MATCH(AF137,参照表!$S$6:$AA$6,0)),FALSE)","v":false},false,false,false,false,false,{"$error":"#DIV/0!"},{"$error":"#DIV/0!"},{"$error":"#DIV/0!"},{"$error":"#DIV/0!"},{"$error":"#DIV/0!"},{"$error":"#DIV/0!"},{"$error":"#DIV/0!"},{"$error":"#DIV/0!"},{"$error":"#DIV/0!"},{"$error":"#DIV/0!"},{"$error":"#DIV/0!"},"","","","","","","","","","",""]
[null,null,null,null,null,null,null,null,null,null,null,null,null,null,null,null,null,null,null,null,null,null,null,null,null,null,null,null,null,116,{"$f":"VLOOKUP(AF138,$BA$23:$BB$44,2,0)","v":{"$error":"#N/A"}},null,null,null,null,null,null,null,null,null,null,null,null,null,null,null,null,null,null,null,null,null,null,null,null,null,"","","",{"$f":"IFERROR(ISNUMBER(MATCH(AF138,参照表!$S$2:$AA$2,0)),FALSE)","v":false},{"$f":"IFERROR(ISNUMBER(MATCH(AF138,参照表!$S$3:$AA$3,0)),FALSE)","v":false},{"$f":"IFERROR(ISNUMBER(MATCH(AF138,参照表!$S$4:$AA$4,0)),FALSE)","v":false},false,{"$f":"IFERROR(ISNUMBER(MATCH(AF138,参照表!$S$6:$AA$6,0)),FALSE)","v":false},false,false,false,false,false,{"$error":"#DIV/0!"},{"$error":"#DIV/0!"},{"$error":"#DIV/0!"},{"$error":"#DIV/0!"},{"$error":"#DIV/0!"},{"$error":"#DIV/0!"},{"$error":"#DIV/0!"},{"$error":"#DIV/0!"},{"$error":"#DIV/0!"},{"$error":"#DIV/0!"},{"$error":"#DIV/0!"},"","","","","","","","","","",""]
[null,null,null,null,null,null,null,null,null,null,null,null,null,null,null,null,null,null,null,null,null,null,null,null,null,null,null,null,null,117,{"$f":"VLOOKUP(AF139,$BA$23:$BB$44,2,0)","v":{"$error":"#N/A"}},null,null,null,null,null,null,null,null,null,null,null,null,null,null,null,null,null,null,null,null,null,null,null,null,null,"","","",{"$f":"IFERROR(ISNUMBER(MATCH(AF139,参照表!$S$2:$AA$2,0)),FALSE)","v":false},{"$f":"IFERROR(ISNUMBER(MATCH(AF139,参照表!$S$3:$AA$3,0)),FALSE)","v":false},{"$f":"IFERROR(ISNUMBER(MATCH(AF139,参照表!$S$4:$AA$4,0)),FALSE)","v":false},false,{"$f":"IFERROR(ISNUMBER(MATCH(AF139,参照表!$S$6:$AA$6,0)),FALSE)","v":false},false,false,false,false,false,{"$error":"#DIV/0!"},{"$error":"#DIV/0!"},{"$error":"#DIV/0!"},{"$error":"#DIV/0!"},{"$error":"#DIV/0!"},{"$error":"#DIV/0!"},{"$error":"#DIV/0!"},{"$error":"#DIV/0!"},{"$error":"#DIV/0!"},{"$error":"#DIV/0!"},{"$error":"#DIV/0!"},"","","","","","","","","","",""]
[null,null,null,null,null,null,null,null,null,null,null,null,null,null,null,null,null,null,null,null,null,null,null,null,null,null,null,null,null,118,{"$f":"VLOOKUP(AF140,$BA$23:$BB$44,2,0)","v":{"$error":"#N/A"}},null,null,null,null,null,null,null,null,null,null,null,null,null,null,null,null,null,null,null,null,null,null,null,null,null,"","","",{"$f":"IFERROR(ISNUMBER(MATCH(AF140,参照表!$S$2:$AA$2,0)),FALSE)","v":false},{"$f":"IFERROR(ISNUMBER(MATCH(AF140,参照表!$S$3:$AA$3,0)),FALSE)","v":false},{"$f":"IFERROR(ISNUMBER(MATCH(AF140,参照表!$S$4:$AA$4,0)),FALSE)","v":false},false,{"$f":"IFERROR(ISNUMBER(MATCH(AF140,参照表!$S$6:$AA$6,0)),FALSE)","v":false},false,false,false,false,false,{"$error":"#DIV/0!"},{"$error":"#DIV/0!"},{"$error":"#DIV/0!"},{"$error":"#DIV/0!"},{"$error":"#DIV/0!"},{"$error":"#DIV/0!"},{"$error":"#DIV/0!"},{"$error":"#DIV/0!"},{"$error":"#DIV/0!"},{"$error":"#DIV/0!"},{"$error":"#DIV/0!"},"","","","","","","","","","",""]
[null,null,null,null,null,null,null,null,null,null,null,null,null,null,null,null,null,null,null,null,null,null,null,null,null,null,null,null,null,119,{"$f":"VLOOKUP(AF141,$BA$23:$BB$44,2,0)","v":{"$error":"#N/A"}},null,null,null,null,null,null,null,null,null,null,null,null,null,null,null,null,null,null,null,null,null,null,null,null,null,"","","",{"$f":"IFERROR(ISNUMBER(MATCH(AF141,参照表!$S$2:$AA$2,0)),FALSE)","v":false},{"$f":"IFERROR(ISNUMBER(MATCH(AF141,参照表!$S$3:$AA$3,0)),FALSE)","v":false},{"$f":"IFERROR(ISNUMBER(MATCH(AF141,参照表!$S$4:$AA$4,0)),FALSE)","v":false},false,{"$f":"IFERROR(ISNUMBER(MATCH(AF141,参照表!$S$6:$AA$6,0)),FALSE)","v":false},false,false,false,false,false,{"$error":"#DIV/0!"},{"$error":"#DIV/0!"},{"$error":"#DIV/0!"},{"$error":"#DIV/0!"},{"$error":"#DIV/0!"},{"$error":"#DIV/0!"},{"$error":"#DIV/0!"},{"$error":"#DIV/0!"},{"$error":"#DIV/0!"},{"$error":"#DIV/0!"},{"$error":"#DIV/0!"},"","","","","","","","","","",""]
[null,null,null,null,null,null,null,null,null,null,null,null,null,null,null,null,null,null,null,null,null,null,null,null,null,null,null,null,null,120,{"$f":"VLOOKUP(AF142,$BA$23:$BB$44,2,0)","v":{"$error":"#N/A"}},null,null,null,null,null,null,null,null,null,null,null,null,null,null,null,null,null,null,null,null,null,null,null,null,null,"","","",{"$f":"IFERROR(ISNUMBER(MATCH(AF142,参照表!$S$2:$AA$2,0)),FALSE)","v":false},{"$f":"IFERROR(ISNUMBER(MATCH(AF142,参照表!$S$3:$AA$3,0)),FALSE)","v":false},{"$f":"IFERROR(ISNUMBER(MATCH(AF142,参照表!$S$4:$AA$4,0)),FALSE)","v":false},false,{"$f":"IFERROR(ISNUMBER(MATCH(AF142,参照表!$S$6:$AA$6,0)),FALSE)","v":false},false,false,false,false,false,{"$error":"#DIV/0!"},{"$error":"#DIV/0!"},{"$error":"#DIV/0!"},{"$error":"#DIV/0!"},{"$error":"#DIV/0!"},{"$error":"#DIV/0!"},{"$error":"#DIV/0!"},{"$error":"#DIV/0!"},{"$error":"#DIV/0!"},{"$error":"#DIV/0!"},{"$error":"#DIV/0!"},"","","","","","","","","","",""]
[null,null,null,null,null,null,null,null,null,null,null,null,null,null,null,null,null,null,null,null,null,null,null,null,null,null,null,null,null,121,{"$f":"VLOOKUP(AF143,$BA$23:$BB$44,2,0)","v":{"$error":"#N/A"}},null,null,null,null,null,null,null,null,null,null,null,null,null,null,null,null,null,null,null,null,null,null,null,null,null,"","","",{"$f":"IFERROR(ISNUMBER(MATCH(AF143,参照表!$S$2:$AA$2,0)),FALSE)","v":false},{"$f":"IFERROR(ISNUMBER(MATCH(AF143,参照表!$S$3:$AA$3,0)),FALSE)","v":false},{"$f":"IFERROR(ISNUMBER(MATCH(AF143,参照表!$S$4:$AA$4,0)),FALSE)","v":false},false,{"$f":"IFERROR(ISNUMBER(MATCH(AF143,参照表!$S$6:$AA$6,0)),FALSE)","v":false},false,false,false,false,false,{"$error":"#DIV/0!"},{"$error":"#DIV/0!"},{"$error":"#DIV/0!"},{"$error":"#DIV/0!"},{"$error":"#DIV/0!"},{"$error":"#DIV/0!"},{"$error":"#DIV/0!"},{"$error":"#DIV/0!"},{"$error":"#DIV/0!"},{"$error":"#DIV/0!"},{"$error":"#DIV/0!"},"","","","","","","","","","",""]
[null,null,null,null,null,null,null,null,null,null,null,null,null,null,null,null,null,null,null,null,null,null,null,null,null,null,null,null,null,122,{"$f":"VLOOKUP(AF144,$BA$23:$BB$44,2,0)","v":{"$error":"#N/A"}},null,null,null,null,null,null,null,null,null,null,null,null,null,null,null,null,null,null,null,null,null,null,null,null,null,"","","",{"$f":"IFERROR(ISNUMBER(MATCH(AF144,参照表!$S$2:$AA$2,0)),FALSE)","v":false},{"$f":"IFERROR(ISNUMBER(MATCH(AF144,参照表!$S$3:$AA$3,0)),FALSE)","v":false},{"$f":"IFERROR(ISNUMBER(MATCH(AF144,参照表!$S$4:$AA$4,0)),FALSE)","v":false},false,{"$f":"IFERROR(ISNUMBER(MATCH(AF144,参照表!$S$6:$AA$6,0)),FALSE)","v":false},false,false,false,false,false,{"$error":"#DIV/0!"},{"$error":"#DIV/0!"},{"$error":"#DIV/0!"},{"$error":"#DIV/0!"},{"$error":"#DIV/0!"},{"$error":"#DIV/0!"},{"$error":"#DIV/0!"},{"$error":"#DIV/0!"},{"$error":"#DIV/0!"},{"$error":"#DIV/0!"},{"$error":"#DIV/0!"},"","","","","","","","","","",""]
[null,null,null,null,null,null,null,null,null,null,null,null,null,null,null,null,null,null,null,null,null,null,null,null,null,null,null,null,null,123,{"$f":"VLOOKUP(AF145,$BA$23:$BB$44,2,0)","v":{"$error":"#N/A"}},null,null,null,null,null,null,null,null,null,null,null,null,null,null,null,null,null,null,null,null,null,null,null,null,null,"","","",{"$f":"IFERROR(ISNUMBER(MATCH(AF145,参照表!$S$2:$AA$2,0)),FALSE)","v":false},{"$f":"IFERROR(ISNUMBER(MATCH(AF145,参照表!$S$3:$AA$3,0)),FALSE)","v":false},{"$f":"IFERROR(ISNUMBER(MATCH(AF145,参照表!$S$4:$AA$4,0)),FALSE)","v":false},false,{"$f":"IFERROR(ISNUMBER(MATCH(AF145,参照表!$S$6:$AA$6,0)),FALSE)","v":false},false,false,false,false,false,{"$error":"#DIV/0!"},{"$error":"#DIV/0!"},{"$error":"#DIV/0!"},{"$error":"#DIV/0!"},{"$error":"#DIV/0!"},{"$error":"#DIV/0!"},{"$error":"#DIV/0!"},{"$error":"#DIV/0!"},{"$error":"#DIV/0!"},{"$error":"#DIV/0!"},{"$error":"#DIV/0!"},"","","","","","","","","","",""]
[null,null,null,null,null,null,null,null,null,null,null,null,null,null,null,null,null,null,null,null,null,null,null,null,null,null,null,null,null,124,{"$f":"VLOOKUP(AF146,$BA$23:$BB$44,2,0)","v":{"$error":"#N/A"}},null,null,null,null,null,null,null,null,null,null,null,null,null,null,null,null,null,null,null,null,null,null,null,null,null,"","","",{"$f":"IFERROR(ISNUMBER(MATCH(AF146,参照表!$S$2:$AA$2,0)),FALSE)","v":false},{"$f":"IFERROR(ISNUMBER(MATCH(AF146,参照表!$S$3:$AA$3,0)),FALSE)","v":false},{"$f":"IFERROR(ISNUMBER(MATCH(AF146,参照表!$S$4:$AA$4,0)),FALSE)","v":false},false,{"$f":"IFERROR(ISNUMBER(MATCH(AF146,参照表!$S$6:$AA$6,0)),FALSE)","v":false},false,false,false,false,false,{"$error":"#DIV/0!"},{"$error":"#DIV/0!"},{"$error":"#DIV/0!"},{"$error":"#DIV/0!"},{"$error":"#DIV/0!"},{"$error":"#DIV/0!"},{"$error":"#DIV/0!"},{"$error":"#DIV/0!"},{"$error":"#DIV/0!"},{"$error":"#DIV/0!"},{"$error":"#DIV/0!"},"","","","","","","","","","",""]
[null,null,null,null,null,null,null,null,null,null,null,null,null,null,null,null,null,null,null,null,null,null,null,null,null,null,null,null,null,125,{"$f":"VLOOKUP(AF147,$BA$23:$BB$44,2,0)","v":{"$error":"#N/A"}},null,null,null,null,null,null,null,null,null,null,null,null,null,null,null,null,null,null,null,null,null,null,null,null,null,"","","",{"$f":"IFERROR(ISNUMBER(MATCH(AF147,参照表!$S$2:$AA$2,0)),FALSE)","v":false},{"$f":"IFERROR(ISNUMBER(MATCH(AF147,参照表!$S$3:$AA$3,0)),FALSE)","v":false},{"$f":"IFERROR(ISNUMBER(MATCH(AF147,参照表!$S$4:$AA$4,0)),FALSE)","v":false},false,{"$f":"IFERROR(ISNUMBER(MATCH(AF147,参照表!$S$6:$AA$6,0)),FALSE)","v":false},false,false,false,false,false,{"$error":"#DIV/0!"},{"$error":"#DIV/0!"},{"$error":"#DIV/0!"},{"$error":"#DIV/0!"},{"$error":"#DIV/0!"},{"$error":"#DIV/0!"},{"$error":"#DIV/0!"},{"$error":"#DIV/0!"},{"$error":"#DIV/0!"},{"$error":"#DIV/0!"},{"$error":"#DIV/0!"},"","","","","","","","","","",""]
[null,null,null,null,null,null,null,null,null,null,null,null,null,null,null,null,null,null,null,null,null,null,null,null,null,null,null,null,null,126,{"$f":"VLOOKUP(AF148,$BA$23:$BB$44,2,0)","v":{"$error":"#N/A"}},null,null,null,null,null,null,null,null,null,null,null,null,null,null,null,null,null,null,null,null,null,null,null,null,null,"","","",{"$f":"IFERROR(ISNUMBER(MATCH(AF148,参照表!$S$2:$AA$2,0)),FALSE)","v":false},{"$f":"IFERROR(ISNUMBER(MATCH(AF148,参照表!$S$3:$AA$3,0)),FALSE)","v":false},{"$f":"IFERROR(ISNUMBER(MATCH(AF148,参照表!$S$4:$AA$4,0)),FALSE)","v":false},false,{"$f":"IFERROR(ISNUMBER(MATCH(AF148,参照表!$S$6:$AA$6,0)),FALSE)","v":false},false,false,false,false,false,{"$error":"#DIV/0!"},{"$error":"#DIV/0!"},{"$error":"#DIV/0!"},{"$error":"#DIV/0!"},{"$error":"#DIV/0!"},{"$error":"#DIV/0!"},{"$error":"#DIV/0!"},{"$error":"#DIV/0!"},{"$error":"#DIV/0!"},{"$error":"#DIV/0!"},{"$error":"#DIV/0!"},"","","","","","","","","","",""]
[null,null,null,null,null,null,null,null,null,null,null,null,null,null,null,null,null,null,null,null,null,null,null,null,null,null,null,null,null,127,{"$f":"VLOOKUP(AF149,$BA$23:$BB$44,2,0)","v":{"$error":"#N/A"}},null,null,null,null,null,null,null,null,null,null,null,null,null,null,null,null,null,null,null,null,null,null,null,null,null,"","","",{"$f":"IFERROR(ISNUMBER(MATCH(AF149,参照表!$S$2:$AA$2,0)),FALSE)","v":false},{"$f":"IFERROR(ISNUMBER(MATCH(AF149,参照表!$S$3:$AA$3,0)),FALSE)","v":false},{"$f":"IFERROR(ISNUMBER(MATCH(AF149,参照表!$S$4:$AA$4,0)),FALSE)","v":false},false,{"$f":"IFERROR(ISNUMBER(MATCH(AF149,参照表!$S$6:$AA$6,0)),FALSE)","v":false},false,false,false,false,false,{"$error":"#DIV/0!"},{"$error":"#DIV/0!"},{"$error":"#DIV/0!"},{"$error":"#DIV/0!"},{"$error":"#DIV/0!"},{"$error":"#DIV/0!"},{"$error":"#DIV/0!"},{"$error":"#DIV/0!"},{"$error":"#DIV/0!"},{"$error":"#DIV/0!"},{"$error":"#DIV/0!"},"","","","","","","","","","",""]
[null,null,null,null,null,null,null,null,null,null,null,null,null,null,null,null,null,null,null,null,null,null,null,null,null,null,null,null,null,128,{"$f":"VLOOKUP(AF150,$BA$23:$BB$44,2,0)","v":{"$error":"#N/A"}},null,null,null,null,null,null,null,null,null,null,null,null,null,null,null,null,null,null,null,null,null,null,null,null,null,"","","",{"$f":"IFERROR(ISNUMBER(MATCH(AF150,参照表!$S$2:$AA$2,0)),FALSE)","v":false},{"$f":"IFERROR(ISNUMBER(MATCH(AF150,参照表!$S$3:$AA$3,0)),FALSE)","v":false},{"$f":"IFERROR(ISNUMBER(MATCH(AF150,参照表!$S$4:$AA$4,0)),FALSE)","v":false},false,{"$f":"IFERROR(ISNUMBER(MATCH(AF150,参照表!$S$6:$AA$6,0)),FALSE)","v":false},false,false,false,false,false,{"$error":"#DIV/0!"},{"$error":"#DIV/0!"},{"$error":"#DIV/0!"},{"$error":"#DIV/0!"},{"$error":"#DIV/0!"},{"$error":"#DIV/0!"},{"$error":"#DIV/0!"},{"$error":"#DIV/0!"},{"$error":"#DIV/0!"},{"$error":"#DIV/0!"},{"$error":"#DIV/0!"},"","","","","","","","","","",""]
[null,null,null,null,null,null,null,null,null,null,null,null,null,null,null,null,null,null,null,null,null,null,null,null,null,null,null,null,null,129,{"$f":"VLOOKUP(AF151,$BA$23:$BB$44,2,0)","v":{"$error":"#N/A"}},null,null,null,null,null,null,null,null,null,null,null,null,null,null,null,null,null,null,null,null,null,null,null,null,null,{"$f":"AF151&AI151","v":""},{"$f":"AF151&AG151","v":""},{"$f":"AF151&AJ151","v":""},{"$f":"IFERROR(ISNUMBER(MATCH(AF151,参照表!$S$2:$AA$2,0)),FALSE)","v":false},{"$f":"IFERROR(ISNUMBER(MATCH(AF151,参照表!$S$3:$AA$3,0)),FALSE)","v":false},{"$f":"IFERROR(ISNUMBER(MATCH(AF151,参照表!$S$4:$AA$4,0)),FALSE)","v":false},false,{"$f":"IFERROR(ISNUMBER(MATCH(AF151,参照表!$S$6:$AA$6,0)),FALSE)","v":false},false,false,false,false,false,{"$f":"IF(OR(AK151=\"○\",AK151>AK$12),AK$12,AK151)","v":{"$error":"#DIV/0!"}},{"$f":"IF(OR(AL151=\"○\",AL151>AL$12),AL$12,AL151)","v":{"$error":"#DIV/0!"}},{"$f":"IF(OR(AM151=\"○\",AM151>AM$12),AM$12,AM151)","v":{"$error":"#DIV/0!"}},{"$f":"IF(OR(AN151=\"○\",AN151>AN$12),AN$12,AN151)","v":{"$error":"#DIV/0!"}},{"$f":"IF(OR(AO151=\"○\",AO151>AO$12),AO$12,AO151)","v":{"$error":"#DIV/0!"}},{"$f":"IF(OR(AP151=\"○\",AP151>AP$12),AP$12,AP151)","v":{"$error":"#DIV/0!"}},{"$f":"IF(OR(AQ151=\"○\",AQ151>AQ$12),AQ$12,AQ151)","v":{"$error":"#DIV/0!"}},{"$f":"IF(OR(AR151=\"○\",AR151>AR$12),AR$12,AR151)","v":{"$error":"#DIV/0!"}},{"$f":"IF(OR(AS151=\"○\",AS151>AS$12),AS$12,AS151)","v":{"$error":"#DIV/0!"}},{"$f":"IF(OR(AT151=\"○\",AT151>AT$12),AT$12,AT151)","v":{"$error":"#DIV/0!"}},{"$f":"IF(OR(AU151=\"○\",AU151>AU$12),AU$12,AU151)","v":{"$error":"#DIV/0!"}},{"$f":"IF(AND(AK151<>\"\",AK151<>0,$AJ151=\"3年以上\"),1,\"\")","v":""},{"$f":"IF(AND(AL151<>\"\",AL151<>0,$AJ151=\"3年以上\"),1,\"\")","v":""},{"$f":"IF(AND(AM151<>\"\",AM151<>0,$AJ151=\"3年以上\"),1,\"\")","v":""},{"$f":"IF(AND(AN151<>\"\",AN151<>0,$AJ151=\"3年以上\"),1,\"\")","v":""},{"$f":"IF(AND(AO151<>\"\",AO151<>0,$AJ151=\"3年以上\"),1,\"\")","v":""},{"$f":"IF(AND(AP151<>\"\",AP151<>0,$AJ151=\"3年以上\"),1,\"\")","v":""},{"$f":"IF(AND(AQ151<>\"\",AQ151<>0,$AJ151=\"3年以上\"),1,\"\")","v":""},{"$f":"IF(AND(AR151<>\"\",AR151<>0,$AJ151=\"3年以上\"),1,\"\")","v":""},{"$f":"IF(AND(AS151<>\"\",AS151<>0,$AJ151=\"3年以上\"),1,\"\")","v":""},{"$f":"IF(AND(AT151<>\"\",AT151<>0,$AJ151=\"3年以上\"),1,\"\")","v":""},{"$f":"IF(AND(AU151<>\"\",AU151<>0,$AJ151=\"3年以上\"),1,\"\")","v":""}]
[null,null,null,null,null,null,null,null,null,null,null,null,null,null,null,null,null,null,null,null,null,null,null,null,null,null,null,null,null,130,{"$f":"VLOOKUP(AF152,$BA$23:$BB$44,2,0)","v":{"$error":"#N/A"}},null,null,null,null,null,null,null,null,null,null,null,null,null,null,null,null,null,null,null,null,null,null,null,null,null,"","","",{"$f":"IFERROR(ISNUMBER(MATCH(AF152,参照表!$S$2:$AA$2,0)),FALSE)","v":false},{"$f":"IFERROR(ISNUMBER(MATCH(AF152,参照表!$S$3:$AA$3,0)),FALSE)","v":false},{"$f":"IFERROR(ISNUMBER(MATCH(AF152,参照表!$S$4:$AA$4,0)),FALSE)","v":false},{"$f":"IF(AF152=\"\",FALSE,TRUE)","v":false},{"$f":"IFERROR(ISNUMBER(MATCH(AF152,参照表!$S$6:$AA$6,0)),FALSE)","v":false},{"$f":"IF($AI152=\"介護福祉士\",TRUE,FALSE)","v":false},{"$f":"IF(OR($AI152=\"介護福祉士\",$AI152=\"実務者研修\",$AI152=\"(旧)介護職員基礎研修\"),TRUE,FALSE)","v":false},{"$f":"IF(OR($AJ152=\"3年以上7年未満\",$AJ152=\"7年以上10年未満\",$AJ152=\"10年以上\"),TRUE,FALSE)","v":false},{"$f":"IF(OR($AJ152=\"7年以上10年未満\",$AJ152=\"10年以上\"),TRUE,FALSE)","v":false},{"$f":"IF($AJ152=\"10年以上\",TRUE,FALSE)","v":false},{"$error":"#DIV/0!"},{"$error":"#DIV/0!"},{"$error":"#DIV/0!"},{"$error":"#DIV/0!"},{"$error":"#DIV/0!"},{"$error":"#DIV/0!"},{"$error":"#DIV/0!"},{"$error":"#DIV/0!"},{"$error":"#DIV/0!"},{"$error":"#DIV/0!"},{"$error":"#DIV/0!"},"","","","","","","","","","",""]
[null,null,null,null,null,null,null,null,null,null,null,null,null,null,null,null,null,null,null,null,null,null,null,null,null,null,null,null,null,131,{"$f":"VLOOKUP(AF153,$BA$23:$BB$44,2,0)","v":{"$error":"#N/A"}},null,null,null,null,null,null,null,null,null,null,null,null,null,null,null,null,null,null,null,null,null,null,null,null,null,"","","",{"$f":"IFERROR(ISNUMBER(MATCH(AF153,参照表!$S$2:$AA$2,0)),FALSE)","v":false},{"$f":"IFERROR(ISNUMBER(MATCH(AF153,参照表!$S$3:$AA$3,0)),FALSE)","v":false},{"$f":"IFERROR(ISNUMBER(MATCH(AF153,参照表!$S$4:$AA$4,0)),FALSE)","v":false},false,{"$f":"IFERROR(ISNUMBER(MATCH(AF153,参照表!$S$6:$AA$6,0)),FALSE)","v":false},false,false,false,false,false,{"$error":"#DIV/0!"},{"$error":"#DIV/0!"},{"$error":"#DIV/0!"},{"$error":"#DIV/0!"},{"$error":"#DIV/0!"},{"$error":"#DIV/0!"},{"$error":"#DIV/0!"},{"$error":"#DIV/0!"},{"$error":"#DIV/0!"},{"$error":"#DIV/0!"},{"$error":"#DIV/0!"},"","","","","","","","","","",""]
[null,null,null,null,null,null,null,null,null,null,null,null,null,null,null,null,null,null,null,null,null,null,null,null,null,null,null,null,null,132,{"$f":"VLOOKUP(AF154,$BA$23:$BB$44,2,0)","v":{"$error":"#N/A"}},null,null,null,null,null,null,null,null,null,null,null,null,null,null,null,null,null,null,null,null,null,null,null,null,null,"","","",{"$f":"IFERROR(ISNUMBER(MATCH(AF154,参照表!$S$2:$AA$2,0)),FALSE)","v":false},{"$f":"IFERROR(ISNUMBER(MATCH(AF154,参照表!$S$3:$AA$3,0)),FALSE)","v":false},{"$f":"IFERROR(ISNUMBER(MATCH(AF154,参照表!$S$4:$AA$4,0)),FALSE)","v":false},false,{"$f":"IFERROR(ISNUMBER(MATCH(AF154,参照表!$S$6:$AA$6,0)),FALSE)","v":false},false,false,false,false,false,{"$error":"#DIV/0!"},{"$error":"#DIV/0!"},{"$error":"#DIV/0!"},{"$error":"#DIV/0!"},{"$error":"#DIV/0!"},{"$error":"#DIV/0!"},{"$error":"#DIV/0!"},{"$error":"#DIV/0!"},{"$error":"#DIV/0!"},{"$error":"#DIV/0!"},{"$error":"#DIV/0!"},"","","","","","","","","","",""]
[null,null,null,null,null,null,null,null,null,null,null,null,null,null,null,null,null,null,null,null,null,null,null,null,null,null,null,null,null,133,{"$f":"VLOOKUP(AF155,$BA$23:$BB$44,2,0)","v":{"$error":"#N/A"}},null,null,null,null,null,null,null,null,null,null,null,null,null,null,null,null,null,null,null,null,null,null,null,null,null,"","","",{"$f":"IFERROR(ISNUMBER(MATCH(AF155,参照表!$S$2:$AA$2,0)),FALSE)","v":false},{"$f":"IFERROR(ISNUMBER(MATCH(AF155,参照表!$S$3:$AA$3,0)),FALSE)","v":false},{"$f":"IFERROR(ISNUMBER(MATCH(AF155,参照表!$S$4:$AA$4,0)),FALSE)","v":false},false,{"$f":"IFERROR(ISNUMBER(MATCH(AF155,参照表!$S$6:$AA$6,0)),FALSE)","v":false},false,false,false,false,false,{"$error":"#DIV/0!"},{"$error":"#DIV/0!"},{"$error":"#DIV/0!"},{"$error":"#DIV/0!"},{"$error":"#DIV/0!"},{"$error":"#DIV/0!"},{"$error":"#DIV/0!"},{"$error":"#DIV/0!"},{"$error":"#DIV/0!"},{"$error":"#DIV/0!"},{"$error":"#DIV/0!"},"","","","","","","","","","",""]
[null,null,null,null,null,null,null,null,null,null,null,null,null,null,null,null,null,null,null,null,null,null,null,null,null,null,null,null,null,134,{"$f":"VLOOKUP(AF156,$BA$23:$BB$44,2,0)","v":{"$error":"#N/A"}},null,null,null,null,null,null,null,null,null,null,null,null,null,null,null,null,null,null,null,null,null,null,null,null,null,"","","",{"$f":"IFERROR(ISNUMBER(MATCH(AF156,参照表!$S$2:$AA$2,0)),FALSE)","v":false},{"$f":"IFERROR(ISNUMBER(MATCH(AF156,参照表!$S$3:$AA$3,0)),FALSE)","v":false},{"$f":"IFERROR(ISNUMBER(MATCH(AF156,参照表!$S$4:$AA$4,0)),FALSE)","v":false},false,{"$f":"IFERROR(ISNUMBER(MATCH(AF156,参照表!$S$6:$AA$6,0)),FALSE)","v":false},false,false,false,false,false,{"$error":"#DIV/0!"},{"$error":"#DIV/0!"},{"$error":"#DIV/0!"},{"$error":"#DIV/0!"},{"$error":"#DIV/0!"},{"$error":"#DIV/0!"},{"$error":"#DIV/0!"},{"$error":"#DIV/0!"},{"$error":"#DIV/0!"},{"$error":"#DIV/0!"},{"$error":"#DIV/0!"},"","","","","","","","","","",""]
[null,null,null,null,null,null,null,null,null,null,null,null,null,null,null,null,null,null,null,null,null,null,null,null,null,null,null,null,null,135,{"$f":"VLOOKUP(AF157,$BA$23:$BB$44,2,0)","v":{"$error":"#N/A"}},null,null,null,null,null,null,null,null,null,null,null,null,null,null,null,null,null,null,null,null,null,null,null,null,null,"","","",{"$f":"IFERROR(ISNUMBER(MATCH(AF157,参照表!$S$2:$AA$2,0)),FALSE)","v":false},{"$f":"IFERROR(ISNUMBER(MATCH(AF157,参照表!$S$3:$AA$3,0)),FALSE)","v":false},{"$f":"IFERROR(ISNUMBER(MATCH(AF157,参照表!$S$4:$AA$4,0)),FALSE)","v":false},false,{"$f":"IFERROR(ISNUMBER(MATCH(AF157,参照表!$S$6:$AA$6,0)),FALSE)","v":false},false,false,false,false,false,{"$error":"#DIV/0!"},{"$error":"#DIV/0!"},{"$error":"#DIV/0!"},{"$error":"#DIV/0!"},{"$error":"#DIV/0!"},{"$error":"#DIV/0!"},{"$error":"#DIV/0!"},{"$error":"#DIV/0!"},{"$error":"#DIV/0!"},{"$error":"#DIV/0!"},{"$error":"#DIV/0!"},"","","","","","","","","","",""]
[null,null,null,null,null,null,null,null,null,null,null,null,null,null,null,null,null,null,null,null,null,null,null,null,null,null,null,null,null,136,{"$f":"VLOOKUP(AF158,$BA$23:$BB$44,2,0)","v":{"$error":"#N/A"}},null,null,null,null,null,null,null,null,null,null,null,null,null,null,null,null,null,null,null,null,null,null,null,null,null,"","","",{"$f":"IFERROR(ISNUMBER(MATCH(AF158,参照表!$S$2:$AA$2,0)),FALSE)","v":false},{"$f":"IFERROR(ISNUMBER(MATCH(AF158,参照表!$S$3:$AA$3,0)),FALSE)","v":false},{"$f":"IFERROR(ISNUMBER(MATCH(AF158,参照表!$S$4:$AA$4,0)),FALSE)","v":false},false,{"$f":"IFERROR(ISNUMBER(MATCH(AF158,参照表!$S$6:$AA$6,0)),FALSE)","v":false},false,false,false,false,false,{"$error":"#DIV/0!"},{"$error":"#DIV/0!"},{"$error":"#DIV/0!"},{"$error":"#DIV/0!"},{"$error":"#DIV/0!"},{"$error":"#DIV/0!"},{"$error":"#DIV/0!"},{"$error":"#DIV/0!"},{"$error":"#DIV/0!"},{"$error":"#DIV/0!"},{"$error":"#DIV/0!"},"","","","","","","","","","",""]
[null,null,null,null,null,null,null,null,null,null,null,null,null,null,null,null,null,null,null,null,null,null,null,null,null,null,null,null,null,137,{"$f":"VLOOKUP(AF159,$BA$23:$BB$44,2,0)","v":{"$error":"#N/A"}},null,null,null,null,null,null,null,null,null,null,null,null,null,null,null,null,null,null,null,null,null,null,null,null,null,"","","",{"$f":"IFERROR(ISNUMBER(MATCH(AF159,参照表!$S$2:$AA$2,0)),FALSE)","v":false},{"$f":"IFERROR(ISNUMBER(MATCH(AF159,参照表!$S$3:$AA$3,0)),FALSE)","v":false},{"$f":"IFERROR(ISNUMBER(MATCH(AF159,参照表!$S$4:$AA$4,0)),FALSE)","v":false},false,{"$f":"IFERROR(ISNUMBER(MATCH(AF159,参照表!$S$6:$AA$6,0)),FALSE)","v":false},false,false,false,false,false,{"$error":"#DIV/0!"},{"$error":"#DIV/0!"},{"$error":"#DIV/0!"},{"$error":"#DIV/0!"},{"$error":"#DIV/0!"},{"$error":"#DIV/0!"},{"$error":"#DIV/0!"},{"$error":"#DIV/0!"},{"$error":"#DIV/0!"},{"$error":"#DIV/0!"},{"$error":"#DIV/0!"},"","","","","","","","","","",""]
[null,null,null,null,null,null,null,null,null,null,null,null,null,null,null,null,null,null,null,null,null,null,null,null,null,null,null,null,null,138,{"$f":"VLOOKUP(AF160,$BA$23:$BB$44,2,0)","v":{"$error":"#N/A"}},null,null,null,null,null,null,null,null,null,null,null,null,null,null,null,null,null,null,null,null,null,null,null,null,null,"","","",{"$f":"IFERROR(ISNUMBER(MATCH(AF160,参照表!$S$2:$AA$2,0)),FALSE)","v":false},{"$f":"IFERROR(ISNUMBER(MATCH(AF160,参照表!$S$3:$AA$3,0)),FALSE)","v":false},{"$f":"IFERROR(ISNUMBER(MATCH(AF160,参照表!$S$4:$AA$4,0)),FALSE)","v":false},false,{"$f":"IFERROR(ISNUMBER(MATCH(AF160,参照表!$S$6:$AA$6,0)),FALSE)","v":false},false,false,false,false,false,{"$error":"#DIV/0!"},{"$error":"#DIV/0!"},{"$error":"#DIV/0!"},{"$error":"#DIV/0!"},{"$error":"#DIV/0!"},{"$error":"#DIV/0!"},{"$error":"#DIV/0!"},{"$error":"#DIV/0!"},{"$error":"#DIV/0!"},{"$error":"#DIV/0!"},{"$error":"#DIV/0!"},"","","","","","","","","","",""]
[null,null,null,null,null,null,null,null,null,null,null,null,null,null,null,null,null,null,null,null,null,null,null,null,null,null,null,null,null,139,{"$f":"VLOOKUP(AF161,$BA$23:$BB$44,2,0)","v":{"$error":"#N/A"}},null,null,null,null,null,null,null,null,null,null,null,null,null,null,null,null,null,null,null,null,null,null,null,null,null,"","","",{"$f":"IFERROR(ISNUMBER(MATCH(AF161,参照表!$S$2:$AA$2,0)),FALSE)","v":false},{"$f":"IFERROR(ISNUMBER(MATCH(AF161,参照表!$S$3:$AA$3,0)),FALSE)","v":false},{"$f":"IFERROR(ISNUMBER(MATCH(AF161,参照表!$S$4:$AA$4,0)),FALSE)","v":false},false,{"$f":"IFERROR(ISNUMBER(MATCH(AF161,参照表!$S$6:$AA$6,0)),FALSE)","v":false},false,false,false,false,false,{"$error":"#DIV/0!"},{"$error":"#DIV/0!"},{"$error":"#DIV/0!"},{"$error":"#DIV/0!"},{"$error":"#DIV/0!"},{"$error":"#DIV/0!"},{"$error":"#DIV/0!"},{"$error":"#DIV/0!"},{"$error":"#DIV/0!"},{"$error":"#DIV/0!"},{"$error":"#DIV/0!"},"","","","","","","","","","",""]
[null,null,null,null,null,null,null,null,null,null,null,null,null,null,null,null,null,null,null,null,null,null,null,null,null,null,null,null,null,140,{"$f":"VLOOKUP(AF162,$BA$23:$BB$44,2,0)","v":{"$error":"#N/A"}},null,null,null,null,null,null,null,null,null,null,null,null,null,null,null,null,null,null,null,null,null,null,null,null,null,"","","",{"$f":"IFERROR(ISNUMBER(MATCH(AF162,参照表!$S$2:$AA$2,0)),FALSE)","v":false},{"$f":"IFERROR(ISNUMBER(MATCH(AF162,参照表!$S$3:$AA$3,0)),FALSE)","v":false},{"$f":"IFERROR(ISNUMBER(MATCH(AF162,参照表!$S$4:$AA$4,0)),FALSE)","v":false},false,{"$f":"IFERROR(ISNUMBER(MATCH(AF162,参照表!$S$6:$AA$6,0)),FALSE)","v":false},false,false,false,false,false,{"$error":"#DIV/0!"},{"$error":"#DIV/0!"},{"$error":"#DIV/0!"},{"$error":"#DIV/0!"},{"$error":"#DIV/0!"},{"$error":"#DIV/0!"},{"$error":"#DIV/0!"},{"$error":"#DIV/0!"},{"$error":"#DIV/0!"},{"$error":"#DIV/0!"},{"$error":"#DIV/0!"},"","","","","","","","","","",""]
[null,null,null,null,null,null,null,null,null,null,null,null,null,null,null,null,null,null,null,null,null,null,null,null,null,null,null,null,null,141,{"$f":"VLOOKUP(AF163,$BA$23:$BB$44,2,0)","v":{"$error":"#N/A"}},null,null,null,null,null,null,null,null,null,null,null,null,null,null,null,null,null,null,null,null,null,null,null,null,null,"","","",{"$f":"IFERROR(ISNUMBER(MATCH(AF163,参照表!$S$2:$AA$2,0)),FALSE)","v":false},{"$f":"IFERROR(ISNUMBER(MATCH(AF163,参照表!$S$3:$AA$3,0)),FALSE)","v":false},{"$f":"IFERROR(ISNUMBER(MATCH(AF163,参照表!$S$4:$AA$4,0)),FALSE)","v":false},false,{"$f":"IFERROR(ISNUMBER(MATCH(AF163,参照表!$S$6:$AA$6,0)),FALSE)","v":false},false,false,false,false,false,{"$error":"#DIV/0!"},{"$error":"#DIV/0!"},{"$error":"#DIV/0!"},{"$error":"#DIV/0!"},{"$error":"#DIV/0!"},{"$error":"#DIV/0!"},{"$error":"#DIV/0!"},{"$error":"#DIV/0!"},{"$error":"#DIV/0!"},{"$error":"#DIV/0!"},{"$error":"#DIV/0!"},"","","","","","","","","","",""]
[null,null,null,null,null,null,null,null,null,null,null,null,null,null,null,null,null,null,null,null,null,null,null,null,null,null,null,null,null,142,{"$f":"VLOOKUP(AF164,$BA$23:$BB$44,2,0)","v":{"$error":"#N/A"}},null,null,null,null,null,null,null,null,null,null,null,null,null,null,null,null,null,null,null,null,null,null,null,null,null,"","","",{"$f":"IFERROR(ISNUMBER(MATCH(AF164,参照表!$S$2:$AA$2,0)),FALSE)","v":false},{"$f":"IFERROR(ISNUMBER(MATCH(AF164,参照表!$S$3:$AA$3,0)),FALSE)","v":false},{"$f":"IFERROR(ISNUMBER(MATCH(AF164,参照表!$S$4:$AA$4,0)),FALSE)","v":false},false,{"$f":"IFERROR(ISNUMBER(MATCH(AF164,参照表!$S$6:$AA$6,0)),FALSE)","v":false},false,false,false,false,false,{"$error":"#DIV/0!"},{"$error":"#DIV/0!"},{"$error":"#DIV/0!"},{"$error":"#DIV/0!"},{"$error":"#DIV/0!"},{"$error":"#DIV/0!"},{"$error":"#DIV/0!"},{"$error":"#DIV/0!"},{"$error":"#DIV/0!"},{"$error":"#DIV/0!"},{"$error":"#DIV/0!"},"","","","","","","","","","",""]
[null,null,null,null,null,null,null,null,null,null,null,null,null,null,null,null,null,null,null,null,null,null,null,null,null,null,null,null,null,143,{"$f":"VLOOKUP(AF165,$BA$23:$BB$44,2,0)","v":{"$error":"#N/A"}},null,null,null,null,null,null,null,null,null,null,null,null,null,null,null,null,null,null,null,null,null,null,null,null,null,"","","",{"$f":"IFERROR(ISNUMBER(MATCH(AF165,参照表!$S$2:$AA$2,0)),FALSE)","v":false},{"$f":"IFERROR(ISNUMBER(MATCH(AF165,参照表!$S$3:$AA$3,0)),FALSE)","v":false},{"$f":"IFERROR(ISNUMBER(MATCH(AF165,参照表!$S$4:$AA$4,0)),FALSE)","v":false},false,{"$f":"IFERROR(ISNUMBER(MATCH(AF165,参照表!$S$6:$AA$6,0)),FALSE)","v":false},false,false,false,false,false,{"$error":"#DIV/0!"},{"$error":"#DIV/0!"},{"$error":"#DIV/0!"},{"$error":"#DIV/0!"},{"$error":"#DIV/0!"},{"$error":"#DIV/0!"},{"$error":"#DIV/0!"},{"$error":"#DIV/0!"},{"$error":"#DIV/0!"},{"$error":"#DIV/0!"},{"$error":"#DIV/0!"},"","","","","","","","","","",""]
[null,null,null,null,null,null,null,null,null,null,null,null,null,null,null,null,null,null,null,null,null,null,null,null,null,null,null,null,null,144,{"$f":"VLOOKUP(AF166,$BA$23:$BB$44,2,0)","v":{"$error":"#N/A"}},null,null,null,null,null,null,null,null,null,null,null,null,null,null,null,null,null,null,null,null,null,null,null,null,null,"","","",{"$f":"IFERROR(ISNUMBER(MATCH(AF166,参照表!$S$2:$AA$2,0)),FALSE)","v":false},{"$f":"IFERROR(ISNUMBER(MATCH(AF166,参照表!$S$3:$AA$3,0)),FALSE)","v":false},{"$f":"IFERROR(ISNUMBER(MATCH(AF166,参照表!$S$4:$AA$4,0)),FALSE)","v":false},false,{"$f":"IFERROR(ISNUMBER(MATCH(AF166,参照表!$S$6:$AA$6,0)),FALSE)","v":false},false,false,false,false,false,{"$error":"#DIV/0!"},{"$error":"#DIV/0!"},{"$error":"#DIV/0!"},{"$error":"#DIV/0!"},{"$error":"#DIV/0!"},{"$error":"#DIV/0!"},{"$error":"#DIV/0!"},{"$error":"#DIV/0!"},{"$error":"#DIV/0!"},{"$error":"#DIV/0!"},{"$error":"#DIV/0!"},"","","","","","","","","","",""]
[null,null,null,null,null,null,null,null,null,null,null,null,null,null,null,null,null,null,null,null,null,null,null,null,null,null,null,null,null,145,{"$f":"VLOOKUP(AF167,$BA$23:$BB$44,2,0)","v":{"$error":"#N/A"}},null,null,null,null,null,null,null,null,null,null,null,null,null,null,null,null,null,null,null,null,null,null,null,null,null,"","","",{"$f":"IFERROR(ISNUMBER(MATCH(AF167,参照表!$S$2:$AA$2,0)),FALSE)","v":false},{"$f":"IFERROR(ISNUMBER(MATCH(AF167,参照表!$S$3:$AA$3,0)),FALSE)","v":false},{"$f":"IFERROR(ISNUMBER(MATCH(AF167,参照表!$S$4:$AA$4,0)),FALSE)","v":false},false,{"$f":"IFERROR(ISNUMBER(MATCH(AF167,参照表!$S$6:$AA$6,0)),FALSE)","v":false},false,false,false,false,false,{"$error":"#DIV/0!"},{"$error":"#DIV/0!"},{"$error":"#DIV/0!"},{"$error":"#DIV/0!"},{"$error":"#DIV/0!"},{"$error":"#DIV/0!"},{"$error":"#DIV/0!"},{"$error":"#DIV/0!"},{"$error":"#DIV/0!"},{"$error":"#DIV/0!"},{"$error":"#DIV/0!"},"","","","","","","","","","",""]
[null,null,null,null,null,null,null,null,null,null,null,null,null,null,null,null,null,null,null,null,null,null,null,null,null,null,null,null,null,146,{"$f":"VLOOKUP(AF168,$BA$23:$BB$44,2,0)","v":{"$error":"#N/A"}},null,null,null,null,null,null,null,null,null,null,null,null,null,null,null,null,null,null,null,null,null,null,null,null,null,"","","",{"$f":"IFERROR(ISNUMBER(MATCH(AF168,参照表!$S$2:$AA$2,0)),FALSE)","v":false},{"$f":"IFERROR(ISNUMBER(MATCH(AF168,参照表!$S$3:$AA$3,0)),FALSE)","v":false},{"$f":"IFERROR(ISNUMBER(MATCH(AF168,参照表!$S$4:$AA$4,0)),FALSE)","v":false},false,{"$f":"IFERROR(ISNUMBER(MATCH(AF168,参照表!$S$6:$AA$6,0)),FALSE)","v":false},false,false,false,false,false,{"$error":"#DIV/0!"},{"$error":"#DIV/0!"},{"$error":"#DIV/0!"},{"$error":"#DIV/0!"},{"$error":"#DIV/0!"},{"$error":"#DIV/0!"},{"$error":"#DIV/0!"},{"$error":"#DIV/0!"},{"$error":"#DIV/0!"},{"$error":"#DIV/0!"},{"$error":"#DIV/0!"},"","","","","","","","","","",""]
[null,null,null,null,null,null,null,null,null,null,null,null,null,null,null,null,null,null,null,null,null,null,null,null,null,null,null,null,null,147,{"$f":"VLOOKUP(AF169,$BA$23:$BB$44,2,0)","v":{"$error":"#N/A"}},null,null,null,null,null,null,null,null,null,null,null,null,null,null,null,null,null,null,null,null,null,null,null,null,null,"","","",{"$f":"IFERROR(ISNUMBER(MATCH(AF169,参照表!$S$2:$AA$2,0)),FALSE)","v":false},{"$f":"IFERROR(ISNUMBER(MATCH(AF169,参照表!$S$3:$AA$3,0)),FALSE)","v":false},{"$f":"IFERROR(ISNUMBER(MATCH(AF169,参照表!$S$4:$AA$4,0)),FALSE)","v":false},false,{"$f":"IFERROR(ISNUMBER(MATCH(AF169,参照表!$S$6:$AA$6,0)),FALSE)","v":false},false,false,false,false,false,{"$error":"#DIV/0!"},{"$error":"#DIV/0!"},{"$error":"#DIV/0!"},{"$error":"#DIV/0!"},{"$error":"#DIV/0!"},{"$error":"#DIV/0!"},{"$error":"#DIV/0!"},{"$error":"#DIV/0!"},{"$error":"#DIV/0!"},{"$error":"#DIV/0!"},{"$error":"#DIV/0!"},"","","","","","","","","","",""]
[null,null,null,null,null,null,null,null,null,null,null,null,null,null,null,null,null,null,null,null,null,null,null,null,null,null,null,null,null,148,{"$f":"VLOOKUP(AF170,$BA$23:$BB$44,2,0)","v":{"$error":"#N/A"}},null,null,null,null,null,null,null,null,null,null,null,null,null,null,null,null,null,null,null,null,null,null,null,null,null,"","","",{"$f":"IFERROR(ISNUMBER(MATCH(AF170,参照表!$S$2:$AA$2,0)),FALSE)","v":false},{"$f":"IFERROR(ISNUMBER(MATCH(AF170,参照表!$S$3:$AA$3,0)),FALSE)","v":false},{"$f":"IFERROR(ISNUMBER(MATCH(AF170,参照表!$S$4:$AA$4,0)),FALSE)","v":false},false,{"$f":"IFERROR(ISNUMBER(MATCH(AF170,参照表!$S$6:$AA$6,0)),FALSE)","v":false},false,false,false,false,false,{"$error":"#DIV/0!"},{"$error":"#DIV/0!"},{"$error":"#DIV/0!"},{"$error":"#DIV/0!"},{"$error":"#DIV/0!"},{"$error":"#DIV/0!"},{"$error":"#DIV/0!"},{"$error":"#DIV/0!"},{"$error":"#DIV/0!"},{"$error":"#DIV/0!"},{"$error":"#DIV/0!"},"","","","","","","","","","",""]
[null,null,null,null,null,null,null,null,null,null,null,null,null,null,null,null,null,null,null,null,null,null,null,null,null,null,null,null,null,149,{"$f":"VLOOKUP(AF171,$BA$23:$BB$44,2,0)","v":{"$error":"#N/A"}},null,null,null,null,null,null,null,null,null,null,null,null,null,null,null,null,null,null,null,null,null,null,null,null,null,"","","",{"$f":"IFERROR(ISNUMBER(MATCH(AF171,参照表!$S$2:$AA$2,0)),FALSE)","v":false},{"$f":"IFERROR(ISNUMBER(MATCH(AF171,参照表!$S$3:$AA$3,0)),FALSE)","v":false},{"$f":"IFERROR(ISNUMBER(MATCH(AF171,参照表!$S$4:$AA$4,0)),FALSE)","v":false},false,{"$f":"IFERROR(ISNUMBER(MATCH(AF171,参照表!$S$6:$AA$6,0)),FALSE)","v":false},false,false,false,false,false,{"$error":"#DIV/0!"},{"$error":"#DIV/0!"},{"$error":"#DIV/0!"},{"$error":"#DIV/0!"},{"$error":"#DIV/0!"},{"$error":"#DIV/0!"},{"$error":"#DIV/0!"},{"$error":"#DIV/0!"},{"$error":"#DIV/0!"},{"$error":"#DIV/0!"},{"$error":"#DIV/0!"},"","","","","","","","","","",""]
[null,null,null,null,null,null,null,null,null,null,null,null,null,null,null,null,null,null,null,null,null,null,null,null,null,null,null,null,null,150,{"$f":"VLOOKUP(AF172,$BA$23:$BB$44,2,0)","v":{"$error":"#N/A"}},null,null,null,null,null,null,null,null,null,null,null,null,null,null,null,null,null,null,null,null,null,null,null,null,null,"","","",{"$f":"IFERROR(ISNUMBER(MATCH(AF172,参照表!$S$2:$AA$2,0)),FALSE)","v":false},{"$f":"IFERROR(ISNUMBER(MATCH(AF172,参照表!$S$3:$AA$3,0)),FALSE)","v":false},{"$f":"IFERROR(ISNUMBER(MATCH(AF172,参照表!$S$4:$AA$4,0)),FALSE)","v":false},false,{"$f":"IFERROR(ISNUMBER(MATCH(AF172,参照表!$S$6:$AA$6,0)),FALSE)","v":false},false,false,false,false,false,{"$error":"#DIV/0!"},{"$error":"#DIV/0!"},{"$error":"#DIV/0!"},{"$error":"#DIV/0!"},{"$error":"#DIV/0!"},{"$error":"#DIV/0!"},{"$error":"#DIV/0!"},{"$error":"#DIV/0!"},{"$error":"#DIV/0!"},{"$error":"#DIV/0!"},{"$error":"#DIV/0!"},"","","","","","","","","","",""]

{"sheet":"参照表","index":1,"n_rows":101,"n_cols":41,"rows_kept":101,"cut":false,"hidden":true,"merged":[[13,9,13,12],[13,13,13,16],[13,17,13,20],[13,21,13,24],[13,25,13,28]]}
[null,{"$f":"MATCH(計算表!E12,参照表!A80:A100,0)","v":{"$error":"#N/A"}},null,{"$f":"MATCH(計算表!M12,参照表!M2:M6,0)","v":{"$error":"#N/A"}}]
["サービス",{"$f":"INDEX($A$80:$A$100,B1)","v":{"$error":"#N/A"}},"区分",{"$f":"IF(D1=0,\"\",INDEX($M$2:$M$6,D1))","v":{"$error":"#N/A"}},"○のうち","○の占める割合が","○%以上である",null,null,"資格","勤続",null,{"$f":"IF(COUNTIFS($A$15:$A$77,$B$2,$B$15:$B$77,\"サービス提供体制強化加算Ⅰ\")=1,\"サービス提供体制強化加算Ⅰ\",\"\")","v":""},null,"介護福祉士",null,null,"介護職員","介護職員","－","－","－","－","－","－","－","－",null,null,"訪問入浴介護",null,"AG2:AI2","管理者","看護職員","介護職員"]
["体制要件1",{"$f":"IF($C$11>0,INDEX($D$11:$H$11,MATCH(1,$D$13:$H$13,0)),\"\")","v":{"$error":"#N/A"}},"人員要件1",{"$f":"IF($I$11>0,INDEX($J$11:$Z$11,MATCH(1,$J$13:$Z$13,0)),\"\")","v":{"$error":"#N/A"}},{"$f":"IFERROR(INDEX($D$11:$AC$11,MATCH($D$3,$C$11:$AC$11,0)),\"\")","v":""},{"$f":"INDEX($D$11:$AC$11,MATCH($D$3,$B$11:$AB$11,0))","v":{"$error":"#N/A"}},{"$f":"IFERROR(INDEX($D$11:$AC$11,MATCH($D$3,$A$11:$AA$11,0)),\"\")","v":""},null,"介護福祉士","計算表!BM23:BM172",null,null,{"$f":"IF(COUNTIFS($A$15:$A$77,$B$2,$B$15:$B$77,\"サービス提供体制強化加算Ⅱ\")=1,\"サービス提供体制強化加算Ⅱ\",\"\")","v":""},null,"実務者研修",null,null,"訪問介護員","訪問介護員",null,null,null,null,null,null,null,null,null,null,"訪問看護",null,"AG3:AI3","管理者","看護職員","OT・PT・ST"]
["体制要件2",{"$f":"IF($C$11>1,INDEX($D$11:$H$11,MATCH(2,$D$13:$H$13,0)),\"\")","v":{"$error":"#N/A"}},"人員要件2",{"$f":"IF($I$11>1,INDEX($J$11:$Z$11,MATCH(2,$J$13:$Z$13,0)),\"\")","v":{"$error":"#N/A"}},{"$f":"IFERROR(INDEX($D$11:$AC$11,MATCH($D$4,$C$11:$AC$11,0)),\"\")","v":""},{"$f":"IF(D4=\"\",\"\",IFERROR(INDEX($D$11:$AC$11,MATCH($D$4,$B$11:$AB$11,0)),\"\"))","v":{"$error":"#N/A"}},{"$f":"IFERROR(IF(D4=\"\",\"\",IFERROR(INDEX($D$11:$AC$11,MATCH($D$4,$A$11:$AA$11,0)),\"\")),\"\")","v":""},null,"勤続10年の介護福祉士","計算表!BM23:BM172",null,null,{"$f":"IF(COUNTIFS($A$15:$A$77,$B$2,$B$15:$B$77,\"サービス提供体制強化加算Ⅲ\")=1,\"サービス提供体制強化加算Ⅲ\",\"\")","v":""},null,"(旧)介護職員基礎研修",null,null,"看護職員及び介護職員","看護職員","介護職員","－","－","－","－","－","－","－",null,null,"通所介護",null,"AG4:AK4","管理者","生活相談員","介護職員","看護職員","機能訓練指導員"]
["体制要件3",{"$f":"IF($C$11>2,INDEX($D$11:$H$11,MATCH(3,$D$13:$H$13,0)),\"\")","v":{"$error":"#N/A"}},"人員要件3",{"$f":"IF($I$11>2,INDEX($J$11:$Z$11,MATCH(3,$J$13:$Z$13,0)),\"\")","v":{"$error":"#N/A"}},{"$f":"IFERROR(IF(D5=\"\",\"\",IFERROR(INDEX($D$11:$AC$11,MATCH($D$5,$C$11:$AC$11,0)),\"\")),\"\")","v":""},{"$f":"IF(D5=\"\",\"\",IFERROR(INDEX($D$11:$AC$11,MATCH($D$5,$B$11:$AB$11,0)),\"\"))","v":{"$error":"#N/A"}},{"$f":"IFERROR(IF(D5=\"\",\"\",IFERROR(INDEX($D$11:$AC$11,MATCH($D$5,$A$11:$AA$11,0)),\"\")),\"\")","v":""},null,"実務者研修修了者等","計算表!BN23:BN172",null,null,{"$f":"IF(COUNTIFS($A$15:$A$77,$B$2,$B$15:$B$77,\"サービス提供体制強化加算Ⅲイ\")=1,\"サービス提供体制強化加算Ⅲイ\",\"\")","v":""},null,"その他",null,null,"従業者","－","－","－","－","－","－","－","－","－",null,null,"通所リハビリテーション",null,"AG5:AK5","医師","OT・PT・ST","看護職員","介護職員","柔道整復師等"]
[null,null,"人員要件4",{"$f":"IF($I$11>3,INDEX($J$11:$Z$11,MATCH(4,$J$13:$Z$13,0)),\"\")","v":{"$error":"#N/A"}},{"$f":"IFERROR(IF(D6=\"\",\"\",IFERROR(INDEX($D$11:$AC$11,MATCH($D$6,$C$11:$AC$11,0)),\"\")),\"\")","v":""},{"$f":"IF(D6=\"\",\"\",IFERROR(INDEX($D$11:$AC$11,MATCH($D$6,$B$11:$AB$11,0)),\"\"))","v":{"$error":"#N/A"}},{"$f":"IFERROR(IF(D6=\"\",\"\",IFERROR(INDEX($D$11:$AC$11,MATCH($D$6,$A$11:$AA$11,0)),\"\")),\"\")","v":""},null,"常勤の者",null,null,null,{"$f":"IF(COUNTIFS($A$15:$A$77,$B$2,$B$15:$B$77,\"サービス提供体制強化加算Ⅲロ\")=1,\"サービス提供体制強化加算Ⅲロ\",\"\")","v":""},null,null,null,null,"直接サービスを提供する職員","生活相談員","介護職員","看護職員","機能訓練指導員","OT・PT・ST","柔道整復師等","支援相談員","訪問介護員","訪問看護員",null,null,"短期入所生活介護",null,"AG6:AM6","医師","生活相談員","介護職員","看護職員","栄養士","機能訓練指導員","調理員その他"]
[null,null,null,null,{"$f":"E3","v":""},null,null,null,"勤続3年以上の者",null,null,null,null,null,null,null,null,null,null,null,null,null,null,null,null,null,null,null,null,"短期入所療養介護",null,"AG7:AO7","医師","薬剤師","看護職員","介護職員","支援相談員","OT・PT・ST","栄養士","介護支援専門員","調理員・事務員その他"]
[null,null,null,null,{"$f":"IF(COUNTIF($E$3:$E$6,E7)=I11,\"\",IF($E$3=$E$4,IF($E$3=$E$5,$E$6,$E$5),$E$4))","v":{"$error":"#N/A"}},null,null,null,"勤続7年以上の者",null,null,null,null,null,null,null,null,null,null,null,null,null,null,null,null,null,null,null,null,"特定施設入居者生活介護",null,"AG8:AL8","管理者","生活相談員","介護職員","看護職員","機能訓練指導員","計画作成担当者"]
[null,null,null,null,{"$f":"IF(COUNTIF($E$3:$E$6,E7)+COUNTIF($E$3:$E$6,E8)=I11,\"\",IF(E7=E4,E6,IF(E8=E5,E6,E5)))","v":{"$error":"#N/A"}},null,null,null,null,null,null,null,null,null,null,null,null,null,null,null,null,null,null,null,null,null,null,null,null,"定期巡回・随時対応型訪問介護看護",null,"AG9:AL9","管理者","オペレーター","計画作成担当者","訪問介護員","訪問看護員","OT・PT・ST"]
[null,null,null,null,null,null,null,null,null,null,null,null,null,null,null,null,null,null,null,null,null,null,null,null,null,null,null,null,null,"夜間対応型訪問介護",null,"AG10:AJ10","管理者","オペレーター","面接相談員","訪問介護員"]
[null,null,{"$f":"INDEX(C15:C77,MATCH($B$2&$D$2,$A$15:$A$77&$B$15:$B$77,0))","v":{"$error":"#N/A"}},{"$f":"INDEX(D15:D77,MATCH($B$2&$D$2,$A$15:$A$77&$B$15:$B$77,0))","v":{"$error":"#N/A"}},{"$f":"INDEX(E15:E77,MATCH($B$2&$D$2,$A$15:$A$77&$B$15:$B$77,0))","v":{"$error":"#N/A"}},{"$f":"INDEX(F15:F77,MATCH($B$2&$D$2,$A$15:$A$77&$B$15:$B$77,0))","v":{"$error":"#N/A"}},{"$f":"INDEX(G15:G77,MATCH($B$2&$D$2,$A$15:$A$77&$B$15:$B$77,0))","v":{"$error":"#N/A"}},{"$f":"INDEX(H15:H77,MATCH($B$2&$D$2,$A$15:$A$77&$B$15:$B$77,0))","v":{"$error":"#N/A"}},{"$f":"INDEX(I15:I77,MATCH($B$2&$D$2,$A$15:$A$77&$B$15:$B$77,0))","v":{"$error":"#N/A"}},{"$f":"INDEX(J15:J77,MATCH($B$2&$D$2,$A$15:$A$77&$B$15:$B$77,0))","v":{"$error":"#N/A"}},{"$f":"INDEX(K15:K77,MATCH($B$2&$D$2,$A$15:$A$77&$B$15:$B$77,0))","v":{"$error":"#N/A"}},{"$f":"INDEX(L15:L77,MATCH($B$2&$D$2,$A$15:$A$77&$B$15:$B$77,0))","v":{"$error":"#N/A"}},{"$f":"INDEX(M15:M77,MATCH($B$2&$D$2,$A$15:$A$77&$B$15:$B$77,0))","v":{"$error":"#N/A"}},{"$f":"INDEX(N15:N77,MATCH($B$2&$D$2,$A$15:$A$77&$B$15:$B$77,0))","v":{"$error":"#N/A"}},{"$f":"INDEX(O15:O77,MATCH($B$2&$D$2,$A$15:$A$77&$B$15:$B$77,0))","v":{"$error":"#N/A"}},{"$f":"INDEX(P15:P77,MATCH($B$2&$D$2,$A$15:$A$77&$B$15:$B$77,0))","v":{"$error":"#N/A"}},{"$f":"INDEX(Q15:Q77,MATCH($B$2&$D$2,$A$15:$A$77&$B$15:$B$77,0))","v":{"$error":"#N/A"}},{"$f":"INDEX(R15:R77,MATCH($B$2&$D$2,$A$15:$A$77&$B$15:$B$77,0))","v":{"$error":"#N/A"}},{"$f":"INDEX(S15:S77,MATCH($B$2&$D$2,$A$15:$A$77&$B$15:$B$77,0))","v":{"$error":"#N/A"}},{"$f":"INDEX(T15:T77,MATCH($B$2&$D$2,$A$15:$A$77&$B$15:$B$77,0))","v":{"$error":"#N/A"}},{"$f":"INDEX(U15:U77,MATCH($B$2&$D$2,$A$15:$A$77&$B$15:$B$77,0))","v":{"$error":"#N/A"}},{"$f":"INDEX(V15:V77,MATCH($B$2&$D$2,$A$15:$A$77&$B$15:$B$77,0))","v":{"$error":"#N/A"}},{"$f":"INDEX(W15:W77,MATCH($B$2&$D$2,$A$15:$A$77&$B$15:$B$77,0))","v":{"$error":"#N/A"}},{"$f":"INDEX(X15:X77,MATCH($B$2&$D$2,$A$15:$A$77&$B$15:$B$77,0))","v":{"$error":"#N/A"}},{"$f":"INDEX(Y15:Y77,MATCH($B$2&$D$2,$A$15:$A$77&$B$15:$B$77,0))","v":{"$error":"#N/A"}},{"$f":"INDEX(Z15:Z77,MATCH($B$2&$D$2,$A$15:$A$77&$B$15:$B$77,0))","v":{"$error":"#N/A"}},{"$f":"INDEX(AA15:AA77,MATCH($B$2&$D$2,$A$15:$A$77&$B$15:$B$77,0))","v":{"$error":"#N/A"}},{"$f":"INDEX(AB15:AB77,MATCH($B$2&$D$2,$A$15:$A$77&$B$15:$B$77,0))","v":{"$error":"#N/A"}},{"$f":"INDEX(AC15:AC77,MATCH($B$2&$D$2,$A$15:$A$77&$B$15:$B$77,0))","v":{"$error":"#N/A"}},"地域密着型通所介護",null,"AG11:AK11","管理者","生活相談員","介護職員","看護職員","機能訓練指導員"]
[null,null,null,{"$f":"IF(D11=\"－\",0,1)","v":{"$error":"#N/A"}},{"$f":"IF(E11=\"－\",0,1)","v":{"$error":"#N/A"}},{"$f":"IF(F11=\"－\",0,1)","v":{"$error":"#N/A"}},{"$f":"IF(G11=\"－\",0,1)","v":{"$error":"#N/A"}},{"$f":"IF(H11=\"－\",0,1)","v":{"$error":"#N/A"}},null,{"$f":"IF(J11=\"－\",0,1)","v":{"$error":"#N/A"}},null,null,null,{"$f":"IF(N11=\"－\",0,1)","v":{"$error":"#N/A"}},null,null,null,{"$f":"IF(R11=\"－\",0,1)","v":{"$error":"#N/A"}},null,null,null,{"$f":"IF(V11=\"－\",0,1)","v":{"$error":"#N/A"}},null,null,null,{"$f":"IF(Z11=\"－\",0,1)","v":{"$error":"#N/A"}},null,null,null,"療養通所介護",null,"AG12:AK12","管理者","生活相談員","介護職員","看護職員","機能訓練指導員"]
[null,null,null,{"$f":"SUM($D$12:D12)","v":{"$error":"#N/A"}},{"$f":"SUM($D$12:E12)","v":{"$error":"#N/A"}},{"$f":"SUM($D$12:F12)","v":{"$error":"#N/A"}},{"$f":"SUM($D$12:G12)","v":{"$error":"#N/A"}},{"$f":"SUM($D$12:H12)","v":{"$error":"#N/A"}},null,{"$f":"SUM($J$12:J12)","v":{"$error":"#N/A"}},null,null,null,{"$f":"SUM($J$12:N12)","v":{"$error":"#N/A"}},null,null,null,{"$f":"SUM($J$12:R12)","v":{"$error":"#N/A"}},null,null,null,{"$f":"SUM($J$12:V12)","v":{"$error":"#N/A"}},null,null,null,{"$f":"SUM($J$12:Z12)","v":{"$error":"#N/A"}},null,null,null,"認知症対応型通所介護",null,"AG13:AK13","管理者","生活相談員","介護職員","看護職員","機能訓練指導員"]
["サービス","区分","体制要件","研修","伝達","健康","質","基準","人員要件","介福",null,null,null,"介福＋勤続",null,null,null,"介福等",null,null,null,"常勤",null,null,null,"勤続",null,null,null,"小規模多機能型居宅介護",null,"AG14:AJ14","管理者","介護支援専門員","介護職員","看護職員"]
["訪問入浴介護","サービス提供体制強化加算Ⅰ",{"$f":"5-COUNTIF(D15:H15,\"－\")","v":3},"全ての従業者に対し、従業者ごとに研修計画を策定し、研修の実施をしている又は実施することが予定されている。","留意事項の伝達や従業者の技術指導を目的とした会議を定期的に開催している。","全ての従業者に対し、健康診断等の定期的に実施している。","－","－",{"$f":"5-COUNTIF(J15:Z15,\"－\")","v":2},"介護職員のうち、介護福祉士の占める割合が60%以上である","介護職員","介護福祉士",{"$f":"IF(K15=\"\",\"\",VALUE(MID(J15,FIND(\"%\",J15)-2,2)))","v":60},"介護職員のうち、勤続10年以上の介護福祉士の占める割合が25%以上である","介護職員","勤続10年以上の介護福祉士",{"$f":"IF(O15=\"\",\"\",VALUE(MID(N15,FIND(\"%\",N15)-2,2)))","v":25},"－",null,null,null,"－",null,null,null,"－",null,null,null,"認知症対応型共同生活介護",null,"AG15:AJ15","管理者","計画作成担当者","介護職員","看護職員"]
["訪問入浴介護","サービス提供体制強化加算Ⅱ",3,"全ての従業者に対し、従業者ごとに研修計画を策定し、研修の実施をしている又は実施することが予定されている。","留意事項の伝達や従業者の技術指導を目的とした会議を定期的に開催している。","全ての従業者に対し、健康診断等の定期的に実施している。","－","－",2,"介護職員のうち、介護福祉士の占める割合が40%以上である","介護職員",{"$f":"IF(K16=\"\",\"\",$L$15)","v":"介護福祉士"},40,"－",null,{"$f":"IF(O16=\"\",\"\",$P$15)","v":""},"","介護職員のうち、介護福祉士、実務者研修修了者及び介護職員基礎研修修了者の占める割合が60%以上である","介護職員","実務者研修修了者等",{"$f":"IF(S16=\"\",\"\",VALUE(MID(R16,FIND(\"%\",R16)-2,2)))","v":60},"－",null,null,null,"－",null,null,null,"地域密着型特定施設入居者生活介護",null,"AG16:AL16","管理者","生活相談員","介護職員","看護職員","機能訓練指導員","計画作成担当者"]
["訪問入浴介護","サービス提供体制強化加算Ⅲ",3,"全ての従業者に対し、従業者ごとに研修計画を策定し、研修の実施をしている又は実施することが予定されている。","留意事項の伝達や従業者の技術指導を目的とした会議を定期的に開催している。","全ての従業者に対し、健康診断等の定期的に実施している。","－","－",{"$f":"5-COUNTIF(J17:Z17,\"－\")","v":3},"介護職員のうち、介護福祉士の占める割合が30%以上である","介護職員",{"$f":"IF(K17=\"\",\"\",$L$15)","v":"介護福祉士"},30,"－",null,{"$f":"IF(O17=\"\",\"\",$P$15)","v":""},"","介護職員のうち、介護福祉士、実務者研修修了者及び介護職員基礎研修修了者の占める割合が50%以上である","介護職員","実務者研修修了者等",{"$f":"IF(S17=\"\",\"\",VALUE(MID(R17,FIND(\"%\",R17)-2,2)))","v":50},"－",null,null,null,"従業者のうち、勤続7年以上の者の占める割合が30%以上である",{"$f":"IF(Z17=$Z$16,\"\",LEFT(Z17,FIND(\"のうち\",Z17)-1))","v":"従業者"},{"$f":"IF(AA17=\"\",\"\",\"勤続\"&VALUE(MID(Z17,FIND(\"勤続\",Z17)+2,FIND(\"年\",Z17)-FIND(\"勤続\",Z17)-2))&\"年以上の者\")","v":"勤続7年以上の者"},{"$f":"IF(AA17=\"\",\"\",VALUE(MID(Z17,FIND(\"%\",Z17)-2,2)))","v":30},"地域密着型介護老人福祉施設",null,"AG17:AM17","医師","生活相談員","介護職員","看護職員","栄養士","機能訓練指導員","介護支援専門員"]
["訪問看護","サービス提供体制強化加算Ⅰ",3,"全ての従業者に対し、従業者ごとに研修計画を策定し、研修の実施をしている又は実施することが予定されている。","留意事項の伝達や従業者の技術指導を目的とした会議を定期的に開催している。","全ての従業者に対し、健康診断等の定期的に実施している。","－","－",1,"－",null,"","","－",null,"","","－",null,null,null,"－",null,null,null,"従業者のうち、勤続7年以上の者の占める割合が30%以上である",{"$f":"IF(Z18=$Z$16,\"\",LEFT(Z18,FIND(\"のうち\",Z18)-1))","v":"従業者"},{"$f":"IF(AA18=\"\",\"\",\"勤続\"&VALUE(MID(Z18,FIND(\"勤続\",Z18)+2,FIND(\"年\",Z18)-FIND(\"勤続\",Z18)-2))&\"年以上の者\")","v":"勤続7年以上の者"},30,"看護小規模多機能型居宅介護",null,"AG18:AJ18","管理者","介護支援専門員","介護職員","看護職員"]
["訪問看護","サービス提供体制強化加算Ⅱ",3,"全ての従業者に対し、従業者ごとに研修計画を策定し、研修の実施をしている又は実施することが予定されている。","留意事項の伝達や従業者の技術指導を目的とした会議を定期的に開催している。","全ての従業者に対し、健康診断等の定期的に実施している。","－","－",1,"－",null,"","","－",null,"","","－",null,null,null,"－",null,null,null,"従業者のうち、勤続3年以上の者の占める割合が30%以上である","従業者","勤続3年以上の者",30,"介護老人福祉施設",null,"AG19:AN19","施設長","医師","生活相談員","介護職員","看護職員","栄養士","機能訓練指導員","調理員・事務員その他"]
["訪問リハビリテーション","サービス提供体制強化加算Ⅰ",0,"－","－","－","－","－",1,"－",null,"","","－",null,"","","－",null,null,null,"－",null,null,null,"直接サービスを提供する理学療法士、作業療法士又は言語聴覚士のうち、勤続7年以上の者がいる","直接サービスを提供するPT、OT又はST","勤続7年以上の者",null,"介護老人保健施設",null,"AG20:AO20","医師","薬剤師","看護職員","介護職員","支援相談員","OT・PT・ST","栄養士","介護支援専門員","調理員・事務員その他"]
["訪問リハビリテーション","サービス提供体制強化加算Ⅱ",0,"－","－","－","－","－",1,"－",null,"","","－",null,"","","－",null,null,null,"－",null,null,null,"直接サービスを提供する理学療法士、作業療法士又は言語聴覚士のうち、勤続3年以上の者がいる","直接サービスを提供するPT、OT又はST","勤続3年以上の者",null,"介護療養型医療施設",null,"AG21:AN21","医師","薬剤師","栄養士","看護職員","介護職員","OT・PT","精神保健福祉士","介護支援専門員"]
["通所介護","サービス提供体制強化加算Ⅰ",1,"－","－","－","－","人員欠如減算及び定員超過減算に該当していない",2,"介護職員のうち、介護福祉士の占める割合が70%以上である","介護職員","介護福祉士",70,"介護職員のうち、勤続10年以上の介護福祉士の占める割合が25%以上である","介護職員","勤続10年以上の介護福祉士",25,"－",null,null,null,"－",null,null,null,"－",null,null,null,"介護医療院",null,"AG22:AN22","医師","薬剤師","栄養士","看護職員","介護職員","OT・PT","精神保健福祉士","介護支援専門員"]
["通所介護","サービス提供体制強化加算Ⅱ",1,"－","－","－","－","人員欠如減算及び定員超過減算に該当していない",1,"介護職員のうち、介護福祉士の占める割合が50%以上である","介護職員","介護福祉士",50,"－",null,null,null,"－",null,null,null,"－",null,null,null,"－"]
["通所介護","サービス提供体制強化加算Ⅲ",1,"－","－","－","－","人員欠如減算及び定員超過減算に該当していない",2,"介護職員のうち、介護福祉士の占める割合が40%以上である","介護職員","介護福祉士",40,"－",null,null,null,"－",null,null,null,"－",null,null,null,"直接サービスを提供する職員のうち、勤続7年以上の者の占める割合が30%以上である","直接サービスを提供する職員","勤続7年以上の者",30]
["通所リハビリテーション","サービス提供体制強化加算Ⅰ",1,"－","－","－","－","人員欠如減算及び定員超過減算に該当していない",2,"介護職員のうち、介護福祉士の占める割合が70%以上である","介護職員","介護福祉士",70,"介護職員のうち、勤続10年以上の介護福祉士の占める割合が25%以上である","介護職員","勤続10年以上の介護福祉士",25,"－",null,null,null,"－",null,null,null,"－"]
["通所リハビリテーション","サービス提供体制強化加算Ⅱ",1,"－","－","－","－","人員欠如減算及び定員超過減算に該当していない",1,"介護職員のうち、介護福祉士の占める割合が50%以上である","介護職員","介護福祉士",50,"－",null,null,null,"－",null,null,null,"－",null,null,null,"－"]
["通所リハビリテーション","サービス提供体制強化加算Ⅲ",1,"－","－","－","－","人員欠如減算及び定員超過減算に該当していない",2,"介護職員のうち、介護福祉士の占める割合が40%以上である","介護職員","介護福祉士",40,"－",null,null,null,"－",null,null,null,"－",null,null,null,"直接サービスを提供する職員のうち、勤続7年以上の者の占める割合が30%以上である","直接サービスを提供する職員","勤続7年以上の者",30]
["短期入所生活介護","サービス提供体制強化加算Ⅰ",1,"－","－","－","－","人員欠如減算及び定員超過減算に該当していない",2,"介護職員のうち、介護福祉士の占める割合が80%以上である","介護職員","介護福祉士",80,"介護職員のうち、勤続10年以上の介護福祉士の占める割合が35%以上である","介護職員","勤続10年以上の介護福祉士",35,"－",null,null,null,"－",null,null,null,"－"]
["短期入所生活介護","サービス提供体制強化加算Ⅱ",1,"－","－","－","－","人員欠如減算及び定員超過減算に該当していない",1,"介護職員のうち、介護福祉士の占める割合が60%以上である","介護職員","介護福祉士",60,"－",null,null,null,"－",null,null,null,"－",null,null,null,"－"]
["短期入所生活介護","サービス提供体制強化加算Ⅲ",1,"－","－","－","－","人員欠如減算及び定員超過減算に該当していない",3,"介護職員のうち、介護福祉士の占める割合が50%以上である","介護職員","介護福祉士",50,"－",null,null,null,"－",null,null,null,"看護職員及び介護職員のうち、常勤の者の占める割合が75%以上である","看護職員及び介護職員","常勤の者",{"$f":"IF(W30=\"\",\"\",VALUE(MID(V30,FIND(\"%\",V30)-2,2)))","v":75},"直接サービスを提供する職員のうち、勤続7年以上の者の占める割合が30%以上である","直接サービスを提供する職員","勤続7年以上の者",30]
["短期入所療養介護","サービス提供体制強化加算Ⅰ",1,"－","－","－","－","人員欠如減算及び定員超過減算に該当していない",2,"介護職員のうち、介護福祉士の占める割合が80%以上である","介護職員","介護福祉士",80,"介護職員のうち、勤続10年以上の介護福祉士の占める割合が35%以上である","介護職員","勤続10年以上の介護福祉士",35,"－",null,null,null,"－",null,null,null,"－"]
["短期入所療養介護","サービス提供体制強化加算Ⅱ",1,"－","－","－","－","人員欠如減算及び定員超過減算に該当していない",1,"介護職員のうち、介護福祉士の占める割合が60%以上である","介護職員","介護福祉士",60,"－",null,"","","－",null,null,null,"－",null,null,null,"－"]
["短期入所療養介護","サービス提供体制強化加算Ⅲ",1,"－","－","－","－","人員欠如減算及び定員超過減算に該当していない",3,"介護職員のうち、介護福祉士の占める割合が50%以上である","介護職員","介護福祉士",50,"－",null,"","","－",null,null,null,"看護職員及び介護職員のうち、常勤の者の占める割合が75%以上である","看護職員及び介護職員",{"$f":"IF(W33=\"\",\"\",$X$30)","v":"常勤の者"},75,"直接サービスを提供する職員のうち、勤続7年以上の者の占める割合が30%以上である","直接サービスを提供する職員","勤続7年以上の者",30]
["特定施設入居者生活介護","サービス提供体制強化加算Ⅰ",2,"－","－","－","サービスの質の向上に資する取り組みを実施している。","人員欠如減算及び定員超過減算に該当していない",2,"介護職員のうち、介護福祉士の占める割合が70%以上である","介護職員","介護福祉士",70,"介護職員のうち、勤続10年以上の介護福祉士の占める割合が25%以上である","介護職員","勤続10年以上の介護福祉士",25,"－",null,null,null,"－",null,null,null,"－"]
["特定施設入居者生活介護","サービス提供体制強化加算Ⅱ",1,"－","－","－","－","人員欠如減算及び定員超過減算に該当していない",1,"介護職員のうち、介護福祉士の占める割合が60%以上である","介護職員","介護福祉士",60,"－",null,"","","－",null,null,null,"－",null,null,null,"－"]
["特定施設入居者生活介護","サービス提供体制強化加算Ⅲ",1,"－","－","－","－","人員欠如減算及び定員超過減算に該当していない",3,"介護職員のうち、介護福祉士の占める割合が50%以上である","介護職員","介護福祉士",50,"－",null,"","","－",null,null,null,"看護職員及び介護職員のうち、常勤の者の占める割合が75%以上である","看護職員及び介護職員","常勤の者",75,"直接サービスを提供する職員のうち、勤続7年以上の者の占める割合が30%以上である","直接サービスを提供する職員","勤続7年以上の者",30]
["定期巡回・随時対応型訪問介護看護","サービス提供体制強化加算Ⅰ",3,"全ての従業者に対し、従業者ごとに研修計画を策定し、研修の実施をしている又は実施することが予定されている。","留意事項の伝達や従業者の技術指導を目的とした会議を定期的に開催している。","全ての従業者に対し、健康診断等の定期的に実施している。","－","－",2,"訪問介護員のうち、介護福祉士の占める割合が60%以上である","訪問介護員","介護福祉士",60,"訪問介護員のうち、勤続10年以上の介護福祉士の占める割合が25%以上である","訪問介護員","勤続10年以上の介護福祉士",25,"－",null,null,null,"－",null,null,null,"－"]
["定期巡回・随時対応型訪問介護看護","サービス提供体制強化加算Ⅱ",3,"全ての従業者に対し、従業者ごとに研修計画を策定し、研修の実施をしている又は実施することが予定されている。","留意事項の伝達や従業者の技術指導を目的とした会議を定期的に開催している。","全ての従業者に対し、健康診断等の定期的に実施している。","－","－",2,"訪問介護員のうち、介護福祉士の占める割合が40%以上である","訪問介護員","介護福祉士",40,"－",null,"","","訪問介護員のうち、介護福祉士、実務者研修修了者及び介護職員基礎研修修了者の占める割合が60%以上である","訪問介護員","実務者研修修了者等",{"$f":"IF(S38=\"\",\"\",VALUE(MID(R38,FIND(\"%\",R38)-2,2)))","v":60},"－",null,null,null,"－"]
["定期巡回・随時対応型訪問介護看護","サービス提供体制強化加算Ⅲ",3,"全ての従業者に対し、従業者ごとに研修計画を策定し、研修の実施をしている又は実施することが予定されている。","留意事項の伝達や従業者の技術指導を目的とした会議を定期的に開催している。","全ての従業者に対し、健康診断等の定期的に実施している。","－","－",4,"訪問介護員のうち、介護福祉士の占める割合が30%以上である","訪問介護員","介護福祉士",30,"－",null,"","","訪問介護員のうち、介護福祉士、実務者研修修了者及び介護職員基礎研修修了者の占める割合が50%以上である","訪問介護員","実務者研修修了者等",50,"従業者のうち、常勤の者の占める割合が60%以上である","従業者","常勤の者",60,"従業者のうち、勤続7年以上の者の占める割合が30%以上である","従業者","勤続7年以上の者",30]
["夜間対応型訪問介護","サービス提供体制強化加算Ⅰ",3,"全ての従業者に対し、従業者ごとに研修計画を策定し、研修の実施をしている又は実施することが予定されている。","留意事項の伝達や従業者の技術指導を目的とした会議を定期的に開催している。","全ての従業者に対し、健康診断等の定期的に実施している。","－","－",2,"訪問介護員のうち、介護福祉士の占める割合が60%以上である","訪問介護員","介護福祉士",60,"訪問介護員のうち、勤続10年以上の介護福祉士の占める割合が25%以上である","訪問介護員","勤続10年以上の介護福祉士",25,"－",null,null,null,"－",null,null,null,"－"]
["夜間対応型訪問介護","サービス提供体制強化加算Ⅱ",3,"全ての従業者に対し、従業者ごとに研修計画を策定し、研修の実施をしている又は実施することが予定されている。","留意事項の伝達や従業者の技術指導を目的とした会議を定期的に開催している。","全ての従業者に対し、健康診断等の定期的に実施している。","－","－",2,"訪問介護員のうち、介護福祉士の占める割合が40%以上である","訪問介護員","介護福祉士",40,"－",null,"","","訪問介護員のうち、介護福祉士、実務者研修修了者及び介護職員基礎研修修了者の占める割合が60%以上である","訪問介護員","実務者研修修了者等",60,"－",null,null,null,"－"]
["夜間対応型訪問介護","サービス提供体制強化加算Ⅲ",3,"全ての従業者に対し、従業者ごとに研修計画を策定し、研修の実施をしている又は実施することが予定されている。","留意事項の伝達や従業者の技術指導を目的とした会議を定期的に開催している。","全ての従業者に対し、健康診断等の定期的に実施している。","－","－",3,"訪問介護員のうち、介護福祉士の占める割合が30%以上である","訪問介護員","介護福祉士",30,"－",null,"","","訪問介護員のうち、介護福祉士、実務者研修修了者及び介護職員基礎研修修了者の占める割合が50%以上である","訪問介護員","実務者研修修了者等",50,"－",null,null,null,"従業者のうち、勤続7年以上の者の占める割合が30%以上である","従業者","勤続7年以上の者",30]
["地域密着型通所介護","サービス提供体制強化加算Ⅰ",1,"－","－","－","－","人員欠如減算及び定員超過減算に該当していない",2,"介護職員のうち、介護福祉士の占める割合が70%以上である","介護職員","介護福祉士",70,"介護職員のうち、勤続10年以上の介護福祉士の占める割合が25%以上である","介護職員","勤続10年以上の介護福祉士",25,"－",null,null,null,"－",null,null,null,"－"]
["地域密着型通所介護","サービス提供体制強化加算Ⅱ",1,"－","－","－","－","人員欠如減算及び定員超過減算に該当していない",1,"介護職員のうち、介護福祉士の占める割合が50%以上である","介護職員","介護福祉士",50,"－",null,"","","－",null,null,null,"－",null,null,null,"－"]
["地域密着型通所介護","サービス提供体制強化加算Ⅲ",1,"－","－","－","－","人員欠如減算及び定員超過減算に該当していない",2,"介護職員のうち、介護福祉士の占める割合が40%以上である","介護職員","介護福祉士",40,"－",null,"","","－",null,null,null,"－",null,null,null,"直接サービスを提供する職員のうち、勤続7年以上の者の占める割合が30%以上である","直接サービスを提供する職員","勤続7年以上の者",30]
["療養通所介護","サービス提供体制強化加算Ⅲイ",1,"－","－","－","－","人員欠如減算及び定員超過減算に該当していない",1,"－",null,"","","－",null,"","","－",null,null,null,"－",null,null,null,"直接サービスを提供する職員のうち、勤続7年以上の者の占める割合が30%以上である","直接サービスを提供する職員","勤続7年以上の者",30]
["療養通所介護","サービス提供体制強化加算Ⅲロ",1,"－","－","－","－","人員欠如減算及び定員超過減算に該当していない",1,"－",null,"","","－",null,"","","－",null,null,null,"－",null,null,null,"直接サービスを提供する職員のうち、勤続3年以上の者の占める割合が30%以上である","直接サービスを提供する職員","勤続3年以上の者",30]
["認知症対応型通所介護","サービス提供体制強化加算Ⅰ",1,"－","－","－","－","人員欠如減算及び定員超過減算に該当していない",2,"介護職員のうち、介護福祉士の占める割合が70%以上である","介護職員","介護福祉士",70,"介護職員のうち、勤続10年以上の介護福祉士の占める割合が25%以上である","介護職員","勤続10年以上の介護福祉士",25,"－",null,null,null,"－",null,null,null,"－"]
["認知症対応型通所介護","サービス提供体制強化加算Ⅱ",1,"－","－","－","－","人員欠如減算及び定員超過減算に該当していない",1,"介護職員のうち、介護福祉士の占める割合が50%以上である","介護職員","介護福祉士",50,"－",null,"","","－",null,null,null,"－",null,null,null,"－"]
["認知症対応型通所介護","サービス提供体制強化加算Ⅲ",1,"－","－","－","－","人員欠如減算及び定員超過減算に該当していない",2,"介護職員のうち、介護福祉士の占める割合が40%以上である","介護職員","介護福祉士",40,"－",null,"","","－",null,null,null,"－",null,null,null,"直接サービスを提供する職員のうち、勤続7年以上の者の占める割合が30%以上である","直接サービスを提供する職員","勤続7年以上の者",30]
["小規模多機能型居宅介護","サービス提供体制強化加算Ⅰ",3,"全ての従業者に対し、従業者ごとに研修計画を策定し、研修の実施をしている又は実施することが予定されている。","留意事項の伝達や従業者の技術指導を目的とした会議を定期的に開催している。","－","－","人員欠如減算及び定員超過減算に該当していない",2,"介護職員のうち、介護福祉士の占める割合が70%以上である","介護職員","介護福祉士",70,"介護職員のうち、勤続10年以上の介護福祉士の占める割合が25%以上である","介護職員","勤続10年以上の介護福祉士",25,"－",null,null,null,"－",null,null,null,"－"]
["小規模多機能型居宅介護","サービス提供体制強化加算Ⅱ",3,"全ての従業者に対し、従業者ごとに研修計画を策定し、研修の実施をしている又は実施することが予定されている。","留意事項の伝達や従業者の技術指導を目的とした会議を定期的に開催している。","－","－","人員欠如減算及び定員超過減算に該当していない",1,"介護職員のうち、介護福祉士の占める割合が50%以上である","介護職員","介護福祉士",50,"－",null,"","","－",null,null,null,"－",null,null,null,"－"]
["小規模多機能型居宅介護","サービス提供体制強化加算Ⅲ",3,"全ての従業者に対し、従業者ごとに研修計画を策定し、研修の実施をしている又は実施することが予定されている。","留意事項の伝達や従業者の技術指導を目的とした会議を定期的に開催している。","－","－","人員欠如減算及び定員超過減算に該当していない",3,"介護職員のうち、介護福祉士の占める割合が40%以上である","介護職員","介護福祉士",40,"－",null,"","","－",null,null,null,"従業者のうち、常勤の者の占める割合が60%以上である","従業者","常勤の者",60,"従業者のうち、勤続7年以上の者の占める割合が30%以上である","従業者","勤続7年以上の者",30]
["認知症対応型共同生活介護","サービス提供体制強化加算Ⅰ",1,"－","－","－","－","人員欠如減算及び定員超過減算に該当していない",2,"介護職員のうち、介護福祉士の占める割合が70%以上である","介護職員","介護福祉士",70,"介護職員のうち、勤続10年以上の介護福祉士の占める割合が25%以上である","介護職員","勤続10年以上の介護福祉士",25,"－",null,null,null,"－",null,null,null,"－"]
["認知症対応型共同生活介護","サービス提供体制強化加算Ⅱ",1,"－","－","－","－","人員欠如減算及び定員超過減算に該当していない",1,"介護職員のうち、介護福祉士の占める割合が60%以上である","介護職員","介護福祉士",60,"－",null,"","","－",null,null,null,"－",null,null,null,"－"]
["認知症対応型共同生活介護","サービス提供体制強化加算Ⅲ",1,"－","－","－","－","人員欠如減算及び定員超過減算に該当していない",3,"介護職員のうち、介護福祉士の占める割合が50%以上である","介護職員","介護福祉士",50,"－",null,"","","－",null,null,null,"看護職員及び介護職員のうち、常勤の者の占める割合が75%以上である","看護職員及び介護職員","常勤の者",75,"直接サービスを提供する職員のうち、勤続7年以上の者の占める割合が30%以上である","直接サービスを提供する職員","勤続7年以上の者",30]
["地域密着型特定施設入居者生活介護","サービス提供体制強化加算Ⅰ",2,"－","－","－","サービスの質の向上に資する取り組みを実施している。","人員欠如減算及び定員超過減算に該当していない",2,"介護職員のうち、介護福祉士の占める割合が70%以上である","介護職員","介護福祉士",70,"介護職員のうち、勤続10年以上の介護福祉士の占める割合が25%以上である","介護職員","勤続10年以上の介護福祉士",25,"－",null,null,null,"－",null,null,null,"－"]
["地域密着型特定施設入居者生活介護","サービス提供体制強化加算Ⅱ",1,"－","－","－","－","人員欠如減算及び定員超過減算に該当していない",1,"介護職員のうち、介護福祉士の占める割合が60%以上である","介護職員","介護福祉士",60,"－",null,"","","－",null,null,null,"－",null,null,null,"－"]
["地域密着型特定施設入居者生活介護","サービス提供体制強化加算Ⅲ",1,"－","－","－","－","人員欠如減算及び定員超過減算に該当していない",3,"介護職員のうち、介護福祉士の占める割合が50%以上である","介護職員","介護福祉士",50,"－",null,"","","－",null,null,null,"看護職員及び介護職員のうち、常勤の者の占める割合が75%以上である","看護職員及び介護職員","常勤の者",75,"直接サービスを提供する職員のうち、勤続7年以上の者の占める割合が30%以上である","直接サービスを提供する職員","勤続7年以上の者",30]
["地域密着型介護老人福祉施設","サービス提供体制強化加算Ⅰ",2,"－","－","－","サービスの質の向上に資する取り組みを実施している。","人員欠如減算及び定員超過減算に該当していない",2,"介護職員のうち、介護福祉士の占める割合が80%以上である","介護職員","介護福祉士",80,"介護職員のうち、勤続10年以上の介護福祉士の占める割合が35%以上である","介護職員","勤続10年以上の介護福祉士",35,"－",null,null,null,"－",null,null,null,"－"]
["地域密着型介護老人福祉施設","サービス提供体制強化加算Ⅱ",1,"－","－","－","－","人員欠如減算及び定員超過減算に該当していない",1,"介護職員のうち、介護福祉士の占める割合が60%以上である","介護職員","介護福祉士",60,"－",null,"","","－",null,null,null,"－",null,null,null,"－"]
["地域密着型介護老人福祉施設","サービス提供体制強化加算Ⅲ",1,"－","－","－","－","人員欠如減算及び定員超過減算に該当していない",3,"介護職員のうち、介護福祉士の占める割合が50%以上である","介護職員","介護福祉士",50,"－",null,"","","－",null,null,null,"看護職員及び介護職員のうち、常勤の者の占める割合が75%以上である","看護職員及び介護職員","常勤の者",75,"直接サービスを提供する職員のうち、勤続7年以上の者の占める割合が30%以上である","直接サービスを提供する職員","勤続7年以上の者",30]
["看護小規模多機能型居宅介護","サービス提供体制強化加算Ⅰ",3,"全ての従業者に対し、従業者ごとに研修計画を策定し、研修の実施をしている又は実施することが予定されている。","留意事項の伝達や従業者の技術指導を目的とした会議を定期的に開催している。","－","－","人員欠如減算及び定員超過減算に該当していない",2,"介護職員のうち、介護福祉士の占める割合が70%以上である","介護職員","介護福祉士",70,"介護職員のうち、勤続10年以上の介護福祉士の占める割合が25%以上である","介護職員","勤続10年以上の介護福祉士",25,"－",null,null,null,"－",null,null,null,"－"]
["看護小規模多機能型居宅介護","サービス提供体制強化加算Ⅱ",3,"全ての従業者に対し、従業者ごとに研修計画を策定し、研修の実施をしている又は実施することが予定されている。","留意事項の伝達や従業者の技術指導を目的とした会議を定期的に開催している。","－","－","人員欠如減算及び定員超過減算に該当していない",1,"介護職員のうち、介護福祉士の占める割合が50%以上である","介護職員","介護福祉士",50,"－",null,"","","－",null,null,null,"－",null,null,null,"－"]
["看護小規模多機能型居宅介護","サービス提供体制強化加算Ⅲ",3,"全ての従業者に対し、従業者ごとに研修計画を策定し、研修の実施をしている又は実施することが予定されている。","留意事項の伝達や従業者の技術指導を目的とした会議を定期的に開催している。","－","－","人員欠如減算及び定員超過減算に該当していない",3,"介護職員のうち、介護福祉士の占める割合が40%以上である","介護職員","介護福祉士",40,"－",null,"","","－",null,null,null,"従業者のうち、常勤の者の占める割合が60%以上である","従業者","常勤の者",60,"従業者のうち、勤続7年以上の者の占める割合が30%以上である","従業者","勤続7年以上の者",30]
["介護老人福祉施設","サービス提供体制強化加算Ⅰ",2,"－","－","－","サービスの質の向上に資する取り組みを実施している。","人員欠如減算及び定員超過減算に該当していない",2,"介護職員のうち、介護福祉士の占める割合が80%以上である","介護職員","介護福祉士",80,"介護職員のうち、勤続10年以上の介護福祉士の占める割合が35%以上である","介護職員","勤続10年以上の介護福祉士",35,"－",null,null,null,"－",null,null,null,"－"]
["介護老人福祉施設","サービス提供体制強化加算Ⅱ",1,"－","－","－","－","人員欠如減算及び定員超過減算に該当していない",1,"介護職員のうち、介護福祉士の占める割合が60%以上である","介護職員","介護福祉士",60,"－",null,"","","－",null,null,null,"－",null,null,null,"－"]
["介護老人福祉施設","サービス提供体制強化加算Ⅲ",1,"－","－","－","－","人員欠如減算及び定員超過減算に該当していない",3,"介護職員のうち、介護福祉士の占める割合が50%以上である","介護職員","介護福祉士",50,"－",null,"","","－",null,null,null,"看護職員及び介護職員のうち、常勤の者の占める割合が75%以上である","看護職員及び介護職員","常勤の者",75,"直接サービスを提供する職員のうち、勤続7年以上の者の占める割合が30%以上である","直接サービスを提供する職員","勤続7年以上の者",30]
["介護老人保健施設・介護療養型医療施設","サービス提供体制強化加算Ⅰ",2,"－","－","－","サービスの質の向上に資する取り組みを実施している。","人員欠如減算及び定員超過減算に該当していない",2,"介護職員のうち、介護福祉士の占める割合が80%以上である","介護職員","介護福祉士",80,"介護職員のうち、勤続10年以上の介護福祉士の占める割合が35%以上である","介護職員","勤続10年以上の介護福祉士",35,"－",null,null,null,"－",null,null,null,"－"]
["介護老人保健施設・介護療養型医療施設","サービス提供体制強化加算Ⅱ",1,"－","－","－","－","人員欠如減算及び定員超過減算に該当していない",1,"介護職員のうち、介護福祉士の占める割合が60%以上である","介護職員","介護福祉士",60,"－",null,"","","－",null,null,null,"－",null,null,null,"－"]
["介護老人保健施設・介護療養型医療施設","サービス提供体制強化加算Ⅲ",1,"－","－","－","－","人員欠如減算及び定員超過減算に該当していない",3,"介護職員のうち、介護福祉士の占める割合が50%以上である","介護職員","介護福祉士",50,"－",null,"","","－",null,null,null,"看護職員及び介護職員のうち、常勤の者の占める割合が75%以上である","看護職員及び介護職員",{"$f":"IF(W71=\"\",\"\",$X$30)","v":"常勤の者"},{"$f":"IF(W71=\"\",\"\",VALUE(MID(V71,FIND(\"%\",V71)-2,2)))","v":75},"直接サービスを提供する職員のうち、勤続7年以上の者の占める割合が30%以上である",{"$f":"IF(Z71=$Z$16,\"\",LEFT(Z71,FIND(\"のうち\",Z71)-1))","v":"直接サービスを提供する職員"},{"$f":"IF(AA71=\"\",\"\",\"勤続\"&VALUE(MID(Z71,FIND(\"勤続\",Z71)+2,FIND(\"年\",Z71)-FIND(\"勤続\",Z71)-2))&\"年以上の者\")","v":"勤続7年以上の者"},{"$f":"IF(AA71=\"\",\"\",VALUE(MID(Z71,FIND(\"%\",Z71)-2,2)))","v":30}]
["介護療養型医療施設","サービス提供体制強化加算Ⅰ",2,"－","－","－","サービスの質の向上に資する取り組みを実施している。","人員欠如減算及び定員超過減算に該当していない",2,"介護職員のうち、介護福祉士の占める割合が80%以上である","介護職員","介護福祉士",80,"介護職員のうち、勤続10年以上の介護福祉士の占める割合が35%以上である","介護職員","勤続10年以上の介護福祉士",35,"－",null,null,null,"－",null,null,null,"－"]
["介護療養型医療施設","サービス提供体制強化加算Ⅱ",1,"－","－","－","－","人員欠如減算及び定員超過減算に該当していない",1,"介護職員のうち、介護福祉士の占める割合が60%以上である","介護職員","介護福祉士",60,"－",null,"","","－",null,null,null,"－",null,null,null,"－"]
["介護療養型医療施設","サービス提供体制強化加算Ⅲ",1,"－","－","－","－","人員欠如減算及び定員超過減算に該当していない",3,"介護職員のうち、介護福祉士の占める割合が50%以上である","介護職員","介護福祉士",50,"－",null,"","","－",null,null,null,"看護職員及び介護職員のうち、常勤の者の占める割合が75%以上である","看護職員及び介護職員","常勤の者",75,"直接サービスを提供する職員のうち、勤続7年以上の者の占める割合が30%以上である","直接サービスを提供する職員","勤続7年以上の者",30]
["介護医療院","サービス提供体制強化加算Ⅰ",2,"－","－","－","サービスの質の向上に資する取り組みを実施している。","人員欠如減算及び定員超過減算に該当していない",2,"介護職員のうち、介護福祉士の占める割合が80%以上である","介護職員","介護福祉士",80,"介護職員のうち、勤続10年以上の介護福祉士の占める割合が35%以上である","介護職員","勤続10年以上の介護福祉士",35,"－",null,null,null,"－",null,null,null,"－"]
["介護医療院","サービス提供体制強化加算Ⅱ",1,"－","－","－","－","人員欠如減算及び定員超過減算に該当していない",1,"介護職員のうち、介護福祉士の占める割合が60%以上である","介護職員","介護福祉士",60,"－",null,"","","－",null,null,null,"－",null,null,null,"－"]
["介護医療院","サービス提供体制強化加算Ⅲ",1,"－","－","－","－","人員欠如減算及び定員超過減算に該当していない",3,"介護職員のうち、介護福祉士の占める割合が50%以上である","介護職員","介護福祉士",50,"－",null,"","","－",null,null,null,"看護職員及び介護職員のうち、常勤の者の占める割合が75%以上である","看護職員及び介護職員","常勤の者",75,"直接サービスを提供する職員のうち、勤続7年以上の者の占める割合が30%以上である","直接サービスを提供する職員","勤続7年以上の者",30]
[]
[null,null,null,null,4,5,6,7,8,9,10,11,12,1,2,4,5,6,7,8,9,10,11,12,1,2]
["訪問入浴介護",3,null,"介護職員のうち、介護福祉士の占める割合が30%以上である",{"$f":"SUMIF(計算表!$BH$23:$BH$172,TRUE,計算表!BR$23:BR$172)","v":0},{"$f":"SUMIF(計算表!$BH$23:$BH$172,TRUE,計算表!BS$23:BS$172)","v":0},{"$f":"SUMIF(計算表!$BH$23:$BH$172,TRUE,計算表!BT$23:BT$172)","v":0},{"$f":"SUMIF(計算表!$BH$23:$BH$172,TRUE,計算表!BU$23:BU$172)","v":0},{"$f":"SUMIF(計算表!$BH$23:$BH$172,TRUE,計算表!BV$23:BV$172)","v":0},{"$f":"SUMIF(計算表!$BH$23:$BH$172,TRUE,計算表!BW$23:BW$172)","v":0},{"$f":"SUMIF(計算表!$BH$23:$BH$172,TRUE,計算表!BX$23:BX$172)","v":0},{"$f":"SUMIF(計算表!$BH$23:$BH$172,TRUE,計算表!BY$23:BY$172)","v":0},{"$f":"SUMIF(計算表!$BH$23:$BH$172,TRUE,計算表!BZ$23:BZ$172)","v":0},{"$f":"SUMIF(計算表!$BH$23:$BH$172,TRUE,計算表!CA$23:CA$172)","v":0},{"$f":"SUMIF(計算表!$BH$23:$BH$172,TRUE,計算表!CB$23:CB$172)","v":0},{"$f":"SUMIFS(計算表!BR$23:BR$172,計算表!$BH$23:$BH$172,TRUE,計算表!$BM$23:$BM$172,TRUE)","v":0},{"$f":"SUMIFS(計算表!BS$23:BS$172,計算表!$BH$23:$BH$172,TRUE,計算表!$BM$23:$BM$172,TRUE)","v":0},{"$f":"SUMIFS(計算表!BT$23:BT$172,計算表!$BH$23:$BH$172,TRUE,計算表!$BM$23:$BM$172,TRUE)","v":0},{"$f":"SUMIFS(計算表!BU$23:BU$172,計算表!$BH$23:$BH$172,TRUE,計算表!$BM$23:$BM$172,TRUE)","v":0},{"$f":"SUMIFS(計算表!BV$23:BV$172,計算表!$BH$23:$BH$172,TRUE,計算表!$BM$23:$BM$172,TRUE)","v":0},{"$f":"SUMIFS(計算表!BW$23:BW$172,計算表!$BH$23:$BH$172,TRUE,計算表!$BM$23:$BM$172,TRUE)","v":0},{"$f":"SUMIFS(計算表!BX$23:BX$172,計算表!$BH$23:$BH$172,TRUE,計算表!$BM$23:$BM$172,TRUE)","v":0},{"$f":"SUMIFS(計算表!BY$23:BY$172,計算表!$BH$23:$BH$172,TRUE,計算表!$BM$23:$BM$172,TRUE)","v":0},{"$f":"SUMIFS(計算表!BZ$23:BZ$172,計算表!$BH$23:$BH$172,TRUE,計算表!$BM$23:$BM$172,TRUE)","v":0},{"$f":"SUMIFS(計算表!CA$23:CA$172,計算表!$BH$23:$BH$172,TRUE,計算表!$BM$23:$BM$172,TRUE)","v":0},{"$f":"SUMIFS(計算表!CB$23:CB$172,計算表!$BH$23:$BH$172,TRUE,計算表!$BM$23:$BM$172,TRUE)","v":0}]
["訪問看護",2,null,"介護職員のうち、介護福祉士の占める割合が40%以上である",{"$f":"SUMIF(計算表!$BH$23:$BH$172,TRUE,計算表!BR$23:BR$172)","v":0},{"$f":"SUMIF(計算表!$BH$23:$BH$172,TRUE,計算表!BS$23:BS$172)","v":0},{"$f":"SUMIF(計算表!$BH$23:$BH$172,TRUE,計算表!BT$23:BT$172)","v":0},{"$f":"SUMIF(計算表!$BH$23:$BH$172,TRUE,計算表!BU$23:BU$172)","v":0},{"$f":"SUMIF(計算表!$BH$23:$BH$172,TRUE,計算表!BV$23:BV$172)","v":0},{"$f":"SUMIF(計算表!$BH$23:$BH$172,TRUE,計算表!BW$23:BW$172)","v":0},{"$f":"SUMIF(計算表!$BH$23:$BH$172,TRUE,計算表!BX$23:BX$172)","v":0},{"$f":"SUMIF(計算表!$BH$23:$BH$172,TRUE,計算表!BY$23:BY$172)","v":0},{"$f":"SUMIF(計算表!$BH$23:$BH$172,TRUE,計算表!BZ$23:BZ$172)","v":0},{"$f":"SUMIF(計算表!$BH$23:$BH$172,TRUE,計算表!CA$23:CA$172)","v":0},{"$f":"SUMIF(計算表!$BH$23:$BH$172,TRUE,計算表!CB$23:CB$172)","v":0},{"$f":"SUMIFS(計算表!BR$23:BR$172,計算表!$BH$23:$BH$172,TRUE,計算表!$BM$23:$BM$172,TRUE)","v":0},{"$f":"SUMIFS(計算表!BS$23:BS$172,計算表!$BH$23:$BH$172,TRUE,計算表!$BM$23:$BM$172,TRUE)","v":0},{"$f":"SUMIFS(計算表!BT$23:BT$172,計算表!$BH$23:$BH$172,TRUE,計算表!$BM$23:$BM$172,TRUE)","v":0},{"$f":"SUMIFS(計算表!BU$23:BU$172,計算表!$BH$23:$BH$172,TRUE,計算表!$BM$23:$BM$172,TRUE)","v":0},{"$f":"SUMIFS(計算表!BV$23:BV$172,計算表!$BH$23:$BH$172,TRUE,計算表!$BM$23:$BM$172,TRUE)","v":0},{"$f":"SUMIFS(計算表!BW$23:BW$172,計算表!$BH$23:$BH$172,TRUE,計算表!$BM$23:$BM$172,TRUE)","v":0},{"$f":"SUMIFS(計算表!BX$23:BX$172,計算表!$BH$23:$BH$172,TRUE,計算表!$BM$23:$BM$172,TRUE)","v":0},{"$f":"SUMIFS(計算表!BY$23:BY$172,計算表!$BH$23:$BH$172,TRUE,計算表!$BM$23:$BM$172,TRUE)","v":0},{"$f":"SUMIFS(計算表!BZ$23:BZ$172,計算表!$BH$23:$BH$172,TRUE,計算表!$BM$23:$BM$172,TRUE)","v":0},{"$f":"SUMIFS(計算表!CA$23:CA$172,計算表!$BH$23:$BH$172,TRUE,計算表!$BM$23:$BM$172,TRUE)","v":0},{"$f":"SUMIFS(計算表!CB$23:CB$172,計算表!$BH$23:$BH$172,TRUE,計算表!$BM$23:$BM$172,TRUE)","v":0}]
["通所介護",3,null,"介護職員のうち、介護福祉士の占める割合が50%以上である",{"$f":"SUMIF(計算表!$BH$23:$BH$172,TRUE,計算表!BR$23:BR$172)","v":0},{"$f":"SUMIF(計算表!$BH$23:$BH$172,TRUE,計算表!BS$23:BS$172)","v":0},{"$f":"SUMIF(計算表!$BH$23:$BH$172,TRUE,計算表!BT$23:BT$172)","v":0},{"$f":"SUMIF(計算表!$BH$23:$BH$172,TRUE,計算表!BU$23:BU$172)","v":0},{"$f":"SUMIF(計算表!$BH$23:$BH$172,TRUE,計算表!BV$23:BV$172)","v":0},{"$f":"SUMIF(計算表!$BH$23:$BH$172,TRUE,計算表!BW$23:BW$172)","v":0},{"$f":"SUMIF(計算表!$BH$23:$BH$172,TRUE,計算表!BX$23:BX$172)","v":0},{"$f":"SUMIF(計算表!$BH$23:$BH$172,TRUE,計算表!BY$23:BY$172)","v":0},{"$f":"SUMIF(計算表!$BH$23:$BH$172,TRUE,計算表!BZ$23:BZ$172)","v":0},{"$f":"SUMIF(計算表!$BH$23:$BH$172,TRUE,計算表!CA$23:CA$172)","v":0},{"$f":"SUMIF(計算表!$BH$23:$BH$172,TRUE,計算表!CB$23:CB$172)","v":0},{"$f":"SUMIFS(計算表!BR$23:BR$172,計算表!$BH$23:$BH$172,TRUE,計算表!$BM$23:$BM$172,TRUE)","v":0},{"$f":"SUMIFS(計算表!BS$23:BS$172,計算表!$BH$23:$BH$172,TRUE,計算表!$BM$23:$BM$172,TRUE)","v":0},{"$f":"SUMIFS(計算表!BT$23:BT$172,計算表!$BH$23:$BH$172,TRUE,計算表!$BM$23:$BM$172,TRUE)","v":0},{"$f":"SUMIFS(計算表!BU$23:BU$172,計算表!$BH$23:$BH$172,TRUE,計算表!$BM$23:$BM$172,TRUE)","v":0},{"$f":"SUMIFS(計算表!BV$23:BV$172,計算表!$BH$23:$BH$172,TRUE,計算表!$BM$23:$BM$172,TRUE)","v":0},{"$f":"SUMIFS(計算表!BW$23:BW$172,計算表!$BH$23:$BH$172,TRUE,計算表!$BM$23:$BM$172,TRUE)","v":0},{"$f":"SUMIFS(計算表!BX$23:BX$172,計算表!$BH$23:$BH$172,TRUE,計算表!$BM$23:$BM$172,TRUE)","v":0},{"$f":"SUMIFS(計算表!BY$23:BY$172,計算表!$BH$23:$BH$172,TRUE,計算表!$BM$23:$BM$172,TRUE)","v":0},{"$f":"SUMIFS(計算表!BZ$23:BZ$172,計算表!$BH$23:$BH$172,TRUE,計算表!$BM$23:$BM$172,TRUE)","v":0},{"$f":"SUMIFS(計算表!CA$23:CA$172,計算表!$BH$23:$BH$172,TRUE,計算表!$BM$23:$BM$172,TRUE)","v":0},{"$f":"SUMIFS(計算表!CB$23:CB$172,計算表!$BH$23:$BH$172,TRUE,計算表!$BM$23:$BM$172,TRUE)","v":0}]
["通所リハビリテーション",3,null,"介護職員のうち、介護福祉士の占める割合が60%以上である",{"$f":"SUMIF(計算表!$BH$23:$BH$172,TRUE,計算表!BR$23:BR$172)","v":0},{"$f":"SUMIF(計算表!$BH$23:$BH$172,TRUE,計算表!BS$23:BS$172)","v":0},{"$f":"SUMIF(計算表!$BH$23:$BH$172,TRUE,計算表!BT$23:BT$172)","v":0},{"$f":"SUMIF(計算表!$BH$23:$BH$172,TRUE,計算表!BU$23:BU$172)","v":0},{"$f":"SUMIF(計算表!$BH$23:$BH$172,TRUE,計算表!BV$23:BV$172)","v":0},{"$f":"SUMIF(計算表!$BH$23:$BH$172,TRUE,計算表!BW$23:BW$172)","v":0},{"$f":"SUMIF(計算表!$BH$23:$BH$172,TRUE,計算表!BX$23:BX$172)","v":0},{"$f":"SUMIF(計算表!$BH$23:$BH$172,TRUE,計算表!BY$23:BY$172)","v":0},{"$f":"SUMIF(計算表!$BH$23:$BH$172,TRUE,計算表!BZ$23:BZ$172)","v":0},{"$f":"SUMIF(計算表!$BH$23:$BH$172,TRUE,計算表!CA$23:CA$172)","v":0},{"$f":"SUMIF(計算表!$BH$23:$BH$172,TRUE,計算表!CB$23:CB$172)","v":0},{"$f":"SUMIFS(計算表!BR$23:BR$172,計算表!$BH$23:$BH$172,TRUE,計算表!$BM$23:$BM$172,TRUE)","v":0},{"$f":"SUMIFS(計算表!BS$23:BS$172,計算表!$BH$23:$BH$172,TRUE,計算表!$BM$23:$BM$172,TRUE)","v":0},{"$f":"SUMIFS(計算表!BT$23:BT$172,計算表!$BH$23:$BH$172,TRUE,計算表!$BM$23:$BM$172,TRUE)","v":0},{"$f":"SUMIFS(計算表!BU$23:BU$172,計算表!$BH$23:$BH$172,TRUE,計算表!$BM$23:$BM$172,TRUE)","v":0},{"$f":"SUMIFS(計算表!BV$23:BV$172,計算表!$BH$23:$BH$172,TRUE,計算表!$BM$23:$BM$172,TRUE)","v":0},{"$f":"SUMIFS(計算表!BW$23:BW$172,計算表!$BH$23:$BH$172,TRUE,計算表!$BM$23:$BM$172,TRUE)","v":0},{"$f":"SUMIFS(計算表!BX$23:BX$172,計算表!$BH$23:$BH$172,TRUE,計算表!$BM$23:$BM$172,TRUE)","v":0},{"$f":"SUMIFS(計算表!BY$23:BY$172,計算表!$BH$23:$BH$172,TRUE,計算表!$BM$23:$BM$172,TRUE)","v":0},{"$f":"SUMIFS(計算表!BZ$23:BZ$172,計算表!$BH$23:$BH$172,TRUE,計算表!$BM$23:$BM$172,TRUE)","v":0},{"$f":"SUMIFS(計算表!CA$23:CA$172,計算表!$BH$23:$BH$172,TRUE,計算表!$BM$23:$BM$172,TRUE)","v":0},{"$f":"SUMIFS(計算表!CB$23:CB$172,計算表!$BH$23:$BH$172,TRUE,計算表!$BM$23:$BM$172,TRUE)","v":0}]
["短期入所生活介護",3,null,"介護職員のうち、介護福祉士の占める割合が70%以上である",{"$f":"SUMIF(計算表!$BH$23:$BH$172,TRUE,計算表!BR$23:BR$172)","v":0},{"$f":"SUMIF(計算表!$BH$23:$BH$172,TRUE,計算表!BS$23:BS$172)","v":0},{"$f":"SUMIF(計算表!$BH$23:$BH$172,TRUE,計算表!BT$23:BT$172)","v":0},{"$f":"SUMIF(計算表!$BH$23:$BH$172,TRUE,計算表!BU$23:BU$172)","v":0},{"$f":"SUMIF(計算表!$BH$23:$BH$172,TRUE,計算表!BV$23:BV$172)","v":0},{"$f":"SUMIF(計算表!$BH$23:$BH$172,TRUE,計算表!BW$23:BW$172)","v":0},{"$f":"SUMIF(計算表!$BH$23:$BH$172,TRUE,計算表!BX$23:BX$172)","v":0},{"$f":"SUMIF(計算表!$BH$23:$BH$172,TRUE,計算表!BY$23:BY$172)","v":0},{"$f":"SUMIF(計算表!$BH$23:$BH$172,TRUE,計算表!BZ$23:BZ$172)","v":0},{"$f":"SUMIF(計算表!$BH$23:$BH$172,TRUE,計算表!CA$23:CA$172)","v":0},{"$f":"SUMIF(計算表!$BH$23:$BH$172,TRUE,計算表!CB$23:CB$172)","v":0},{"$f":"SUMIFS(計算表!BR$23:BR$172,計算表!$BH$23:$BH$172,TRUE,計算表!$BM$23:$BM$172,TRUE)","v":0},{"$f":"SUMIFS(計算表!BS$23:BS$172,計算表!$BH$23:$BH$172,TRUE,計算表!$BM$23:$BM$172,TRUE)","v":0},{"$f":"SUMIFS(計算表!BT$23:BT$172,計算表!$BH$23:$BH$172,TRUE,計算表!$BM$23:$BM$172,TRUE)","v":0},{"$f":"SUMIFS(計算表!BU$23:BU$172,計算表!$BH$23:$BH$172,TRUE,計算表!$BM$23:$BM$172,TRUE)","v":0},{"$f":"SUMIFS(計算表!BV$23:BV$172,計算表!$BH$23:$BH$172,TRUE,計算表!$BM$23:$BM$172,TRUE)","v":0},{"$f":"SUMIFS(計算表!BW$23:BW$172,計算表!$BH$23:$BH$172,TRUE,計算表!$BM$23:$BM$172,TRUE)","v":0},{"$f":"SUMIFS(計算表!BX$23:BX$172,計算表!$BH$23:$BH$172,TRUE,計算表!$BM$23:$BM$172,TRUE)","v":0},{"$f":"SUMIFS(計算表!BY$23:BY$172,計算表!$BH$23:$BH$172,TRUE,計算表!$BM$23:$BM$172,TRUE)","v":0},{"$f":"SUMIFS(計算表!BZ$23:BZ$172,計算表!$BH$23:$BH$172,TRUE,計算表!$BM$23:$BM$172,TRUE)","v":0},{"$f":"SUMIFS(計算表!CA$23:CA$172,計算表!$BH$23:$BH$172,TRUE,計算表!$BM$23:$BM$172,TRUE)","v":0},{"$f":"SUMIFS(計算表!CB$23:CB$172,計算表!$BH$23:$BH$172,TRUE,計算表!$BM$23:$BM$172,TRUE)","v":0}]
["短期入所療養介護",3,null,"介護職員のうち、介護福祉士の占める割合が80%以上である",{"$f":"SUMIF(計算表!$BH$23:$BH$172,TRUE,計算表!BR$23:BR$172)","v":0},{"$f":"SUMIF(計算表!$BH$23:$BH$172,TRUE,計算表!BS$23:BS$172)","v":0},{"$f":"SUMIF(計算表!$BH$23:$BH$172,TRUE,計算表!BT$23:BT$172)","v":0},{"$f":"SUMIF(計算表!$BH$23:$BH$172,TRUE,計算表!BU$23:BU$172)","v":0},{"$f":"SUMIF(計算表!$BH$23:$BH$172,TRUE,計算表!BV$23:BV$172)","v":0},{"$f":"SUMIF(計算表!$BH$23:$BH$172,TRUE,計算表!BW$23:BW$172)","v":0},{"$f":"SUMIF(計算表!$BH$23:$BH$172,TRUE,計算表!BX$23:BX$172)","v":0},{"$f":"SUMIF(計算表!$BH$23:$BH$172,TRUE,計算表!BY$23:BY$172)","v":0},{"$f":"SUMIF(計算表!$BH$23:$BH$172,TRUE,計算表!BZ$23:BZ$172)","v":0},{"$f":"SUMIF(計算表!$BH$23:$BH$172,TRUE,計算表!CA$23:CA$172)","v":0},{"$f":"SUMIF(計算表!$BH$23:$BH$172,TRUE,計算表!CB$23:CB$172)","v":0},{"$f":"SUMIFS(計算表!BR$23:BR$172,計算表!$BH$23:$BH$172,TRUE,計算表!$BM$23:$BM$172,TRUE)","v":0},{"$f":"SUMIFS(計算表!BS$23:BS$172,計算表!$BH$23:$BH$172,TRUE,計算表!$BM$23:$BM$172,TRUE)","v":0},{"$f":"SUMIFS(計算表!BT$23:BT$172,計算表!$BH$23:$BH$172,TRUE,計算表!$BM$23:$BM$172,TRUE)","v":0},{"$f":"SUMIFS(計算表!BU$23:BU$172,計算表!$BH$23:$BH$172,TRUE,計算表!$BM$23:$BM$172,TRUE)","v":0},{"$f":"SUMIFS(計算表!BV$23:BV$172,計算表!$BH$23:$BH$172,TRUE,計算表!$BM$23:$BM$172,TRUE)","v":0},{"$f":"SUMIFS(計算表!BW$23:BW$172,計算表!$BH$23:$BH$172,TRUE,計算表!$BM$23:$BM$172,TRUE)","v":0},{"$f":"SUMIFS(計算表!BX$23:BX$172,計算表!$BH$23:$BH$172,TRUE,計算表!$BM$23:$BM$172,TRUE)","v":0},{"$f":"SUMIFS(計算表!BY$23:BY$172,計算表!$BH$23:$BH$172,TRUE,計算表!$BM$23:$BM$172,TRUE)","v":0},{"$f":"SUMIFS(計算表!BZ$23:BZ$172,計算表!$BH$23:$BH$172,TRUE,計算表!$BM$23:$BM$172,TRUE)","v":0},{"$f":"SUMIFS(計算表!CA$23:CA$172,計算表!$BH$23:$BH$172,TRUE,計算表!$BM$23:$BM$172,TRUE)","v":0},{"$f":"SUMIFS(計算表!CB$23:CB$172,計算表!$BH$23:$BH$172,TRUE,計算表!$BM$23:$BM$172,TRUE)","v":0}]
["特定施設入居者生活介護",3,null,"訪問介護員のうち、介護福祉士の占める割合が30%以上である",{"$f":"SUMIF(計算表!$BI$23:$BI$178,TRUE,計算表!BR$23:BR$172)","v":0},{"$f":"SUMIF(計算表!$BI$23:$BI$178,TRUE,計算表!BS$23:BS$172)","v":0},{"$f":"SUMIF(計算表!$BI$23:$BI$178,TRUE,計算表!BT$23:BT$172)","v":0},{"$f":"SUMIF(計算表!$BI$23:$BI$178,TRUE,計算表!BU$23:BU$172)","v":0},{"$f":"SUMIF(計算表!$BI$23:$BI$178,TRUE,計算表!BV$23:BV$172)","v":0},{"$f":"SUMIF(計算表!$BI$23:$BI$178,TRUE,計算表!BW$23:BW$172)","v":0},{"$f":"SUMIF(計算表!$BI$23:$BI$178,TRUE,計算表!BX$23:BX$172)","v":0},{"$f":"SUMIF(計算表!$BI$23:$BI$178,TRUE,計算表!BY$23:BY$172)","v":0},{"$f":"SUMIF(計算表!$BI$23:$BI$178,TRUE,計算表!BZ$23:BZ$172)","v":0},{"$f":"SUMIF(計算表!$BI$23:$BI$178,TRUE,計算表!CA$23:CA$172)","v":0},{"$f":"SUMIF(計算表!$BI$23:$BI$178,TRUE,計算表!CB$23:CB$172)","v":0},{"$f":"SUMIFS(計算表!BR$23:BR$172,計算表!$BI$23:$BI$172,TRUE,計算表!$BM$23:$BM$172,TRUE)","v":0},{"$f":"SUMIFS(計算表!BS$23:BS$172,計算表!$BI$23:$BI$172,TRUE,計算表!$BM$23:$BM$172,TRUE)","v":0},{"$f":"SUMIFS(計算表!BT$23:BT$172,計算表!$BI$23:$BI$172,TRUE,計算表!$BM$23:$BM$172,TRUE)","v":0},{"$f":"SUMIFS(計算表!BU$23:BU$172,計算表!$BI$23:$BI$172,TRUE,計算表!$BM$23:$BM$172,TRUE)","v":0},{"$f":"SUMIFS(計算表!BV$23:BV$172,計算表!$BI$23:$BI$172,TRUE,計算表!$BM$23:$BM$172,TRUE)","v":0},{"$f":"SUMIFS(計算表!BW$23:BW$172,計算表!$BI$23:$BI$172,TRUE,計算表!$BM$23:$BM$172,TRUE)","v":0},{"$f":"SUMIFS(計算表!BX$23:BX$172,計算表!$BI$23:$BI$172,TRUE,計算表!$BM$23:$BM$172,TRUE)","v":0},{"$f":"SUMIFS(計算表!BY$23:BY$172,計算表!$BI$23:$BI$172,TRUE,計算表!$BM$23:$BM$172,TRUE)","v":0},{"$f":"SUMIFS(計算表!BZ$23:BZ$172,計算表!$BI$23:$BI$172,TRUE,計算表!$BM$23:$BM$172,TRUE)","v":0},{"$f":"SUMIFS(計算表!CA$23:CA$172,計算表!$BI$23:$BI$172,TRUE,計算表!$BM$23:$BM$172,TRUE)","v":0},{"$f":"SUMIFS(計算表!CB$23:CB$172,計算表!$BI$23:$BI$172,TRUE,計算表!$BM$23:$BM$172,TRUE)","v":0}]
["定期巡回・随時対応型訪問介護看護",3,null,"訪問介護員のうち、介護福祉士の占める割合が40%以上である",{"$f":"SUMIF(計算表!$BI$23:$BI$178,TRUE,計算表!BR$23:BR$172)","v":0},{"$f":"SUMIF(計算表!$BI$23:$BI$178,TRUE,計算表!BS$23:BS$172)","v":0},{"$f":"SUMIF(計算表!$BI$23:$BI$178,TRUE,計算表!BT$23:BT$172)","v":0},{"$f":"SUMIF(計算表!$BI$23:$BI$178,TRUE,計算表!BU$23:BU$172)","v":0},{"$f":"SUMIF(計算表!$BI$23:$BI$178,TRUE,計算表!BV$23:BV$172)","v":0},{"$f":"SUMIF(計算表!$BI$23:$BI$178,TRUE,計算表!BW$23:BW$172)","v":0},{"$f":"SUMIF(計算表!$BI$23:$BI$178,TRUE,計算表!BX$23:BX$172)","v":0},{"$f":"SUMIF(計算表!$BI$23:$BI$178,TRUE,計算表!BY$23:BY$172)","v":0},{"$f":"SUMIF(計算表!$BI$23:$BI$178,TRUE,計算表!BZ$23:BZ$172)","v":0},{"$f":"SUMIF(計算表!$BI$23:$BI$178,TRUE,計算表!CA$23:CA$172)","v":0},{"$f":"SUMIF(計算表!$BI$23:$BI$178,TRUE,計算表!CB$23:CB$172)","v":0},{"$f":"SUMIFS(計算表!BR$23:BR$172,計算表!$BI$23:$BI$172,TRUE,計算表!$BM$23:$BM$172,TRUE)","v":0},{"$f":"SUMIFS(計算表!BS$23:BS$172,計算表!$BI$23:$BI$172,TRUE,計算表!$BM$23:$BM$172,TRUE)","v":0},{"$f":"SUMIFS(計算表!BT$23:BT$172,計算表!$BI$23:$BI$172,TRUE,計算表!$BM$23:$BM$172,TRUE)","v":0},{"$f":"SUMIFS(計算表!BU$23:BU$172,計算表!$BI$23:$BI$172,TRUE,計算表!$BM$23:$BM$172,TRUE)","v":0},{"$f":"SUMIFS(計算表!BV$23:BV$172,計算表!$BI$23:$BI$172,TRUE,計算表!$BM$23:$BM$172,TRUE)","v":0},{"$f":"SUMIFS(計算表!BW$23:BW$172,計算表!$BI$23:$BI$172,TRUE,計算表!$BM$23:$BM$172,TRUE)","v":0},{"$f":"SUMIFS(計算表!BX$23:BX$172,計算表!$BI$23:$BI$172,TRUE,計算表!$BM$23:$BM$172,TRUE)","v":0},{"$f":"SUMIFS(計算表!BY$23:BY$172,計算表!$BI$23:$BI$172,TRUE,計算表!$BM$23:$BM$172,TRUE)","v":0},{"$f":"SUMIFS(計算表!BZ$23:BZ$172,計算表!$BI$23:$BI$172,TRUE,計算表!$BM$23:$BM$172,TRUE)","v":0},{"$f":"SUMIFS(計算表!CA$23:CA$172,計算表!$BI$23:$BI$172,TRUE,計算表!$BM$23:$BM$172,TRUE)","v":0},{"$f":"SUMIFS(計算表!CB$23:CB$172,計算表!$BI$23:$BI$172,TRUE,計算表!$BM$23:$BM$172,TRUE)","v":0}]
["夜間対応型訪問介護",3,null,"訪問介護員のうち、介護福祉士の占める割合が60%以上である",{"$f":"SUMIF(計算表!$BI$23:$BI$178,TRUE,計算表!BR$23:BR$172)","v":0},{"$f":"SUMIF(計算表!$BI$23:$BI$178,TRUE,計算表!BS$23:BS$172)","v":0},{"$f":"SUMIF(計算表!$BI$23:$BI$178,TRUE,計算表!BT$23:BT$172)","v":0},{"$f":"SUMIF(計算表!$BI$23:$BI$178,TRUE,計算表!BU$23:BU$172)","v":0},{"$f":"SUMIF(計算表!$BI$23:$BI$178,TRUE,計算表!BV$23:BV$172)","v":0},{"$f":"SUMIF(計算表!$BI$23:$BI$178,TRUE,計算表!BW$23:BW$172)","v":0},{"$f":"SUMIF(計算表!$BI$23:$BI$178,TRUE,計算表!BX$23:BX$172)","v":0},{"$f":"SUMIF(計算表!$BI$23:$BI$178,TRUE,計算表!BY$23:BY$172)","v":0},{"$f":"SUMIF(計算表!$BI$23:$BI$178,TRUE,計算表!BZ$23:BZ$172)","v":0},{"$f":"SUMIF(計算表!$BI$23:$BI$178,TRUE,計算表!CA$23:CA$172)","v":0},{"$f":"SUMIF(計算表!$BI$23:$BI$178,TRUE,計算表!CB$23:CB$172)","v":0},{"$f":"SUMIFS(計算表!BR$23:BR$172,計算表!$BI$23:$BI$172,TRUE,計算表!$BM$23:$BM$172,TRUE)","v":0},{"$f":"SUMIFS(計算表!BS$23:BS$172,計算表!$BI$23:$BI$172,TRUE,計算表!$BM$23:$BM$172,TRUE)","v":0},{"$f":"SUMIFS(計算表!BT$23:BT$172,計算表!$BI$23:$BI$172,TRUE,計算表!$BM$23:$BM$172,TRUE)","v":0},{"$f":"SUMIFS(計算表!BU$23:BU$172,計算表!$BI$23:$BI$172,TRUE,計算表!$BM$23:$BM$172,TRUE)","v":0},{"$f":"SUMIFS(計算表!BV$23:BV$172,計算表!$BI$23:$BI$172,TRUE,計算表!$BM$23:$BM$172,TRUE)","v":0},{"$f":"SUMIFS(計算表!BW$23:BW$172,計算表!$BI$23:$BI$172,TRUE,計算表!$BM$23:$BM$172,TRUE)","v":0},{"$f":"SUMIFS(計算表!BX$23:BX$172,計算表!$BI$23:$BI$172,TRUE,計算表!$BM$23:$BM$172,TRUE)","v":0},{"$f":"SUMIFS(計算表!BY$23:BY$172,計算表!$BI$23:$BI$172,TRUE,計算表!$BM$23:$BM$172,TRUE)","v":0},{"$f":"SUMIFS(計算表!BZ$23:BZ$172,計算表!$BI$23:$BI$172,TRUE,計算表!$BM$23:$BM$172,TRUE)","v":0},{"$f":"SUMIFS(計算表!CA$23:CA$172,計算表!$BI$23:$BI$172,TRUE,計算表!$BM$23:$BM$172,TRUE)","v":0},{"$f":"SUMIFS(計算表!CB$23:CB$172,計算表!$BI$23:$BI$172,TRUE,計算表!$BM$23:$BM$172,TRUE)","v":0}]
["地域密着型通所介護",3,null,"介護職員のうち、勤続10年以上の介護福祉士の占める割合が25%以上である",{"$f":"SUMIF(計算表!$BH$23:$BH$172,TRUE,計算表!BR$23:BR$172)","v":0},{"$f":"SUMIF(計算表!$BH$23:$BH$172,TRUE,計算表!BS$23:BS$172)","v":0},{"$f":"SUMIF(計算表!$BH$23:$BH$172,TRUE,計算表!BT$23:BT$172)","v":0},{"$f":"SUMIF(計算表!$BH$23:$BH$172,TRUE,計算表!BU$23:BU$172)","v":0},{"$f":"SUMIF(計算表!$BH$23:$BH$172,TRUE,計算表!BV$23:BV$172)","v":0},{"$f":"SUMIF(計算表!$BH$23:$BH$172,TRUE,計算表!BW$23:BW$172)","v":0},{"$f":"SUMIF(計算表!$BH$23:$BH$172,TRUE,計算表!BX$23:BX$172)","v":0},{"$f":"SUMIF(計算表!$BH$23:$BH$172,TRUE,計算表!BY$23:BY$172)","v":0},{"$f":"SUMIF(計算表!$BH$23:$BH$172,TRUE,計算表!BZ$23:BZ$172)","v":0},{"$f":"SUMIF(計算表!$BH$23:$BH$172,TRUE,計算表!CA$23:CA$172)","v":0},{"$f":"SUMIF(計算表!$BH$23:$BH$172,TRUE,計算表!CB$23:CB$172)","v":0},{"$f":"SUMIFS(計算表!BR$23:BR$172,計算表!$BH$23:$BH$172,TRUE,計算表!$BM$23:$BM$172,TRUE,計算表!$BQ$23:$BQ$172,TRUE)","v":0},{"$f":"SUMIFS(計算表!BS$23:BS$172,計算表!$BH$23:$BH$172,TRUE,計算表!$BM$23:$BM$172,TRUE,計算表!$BQ$23:$BQ$172,TRUE)","v":0},{"$f":"SUMIFS(計算表!BT$23:BT$172,計算表!$BH$23:$BH$172,TRUE,計算表!$BM$23:$BM$172,TRUE,計算表!$BQ$23:$BQ$172,TRUE)","v":0},{"$f":"SUMIFS(計算表!BU$23:BU$172,計算表!$BH$23:$BH$172,TRUE,計算表!$BM$23:$BM$172,TRUE,計算表!$BQ$23:$BQ$172,TRUE)","v":0},{"$f":"SUMIFS(計算表!BV$23:BV$172,計算表!$BH$23:$BH$172,TRUE,計算表!$BM$23:$BM$172,TRUE,計算表!$BQ$23:$BQ$172,TRUE)","v":0},{"$f":"SUMIFS(計算表!BW$23:BW$172,計算表!$BH$23:$BH$172,TRUE,計算表!$BM$23:$BM$172,TRUE,計算表!$BQ$23:$BQ$172,TRUE)","v":0},{"$f":"SUMIFS(計算表!BX$23:BX$172,計算表!$BH$23:$BH$172,TRUE,計算表!$BM$23:$BM$172,TRUE,計算表!$BQ$23:$BQ$172,TRUE)","v":0},{"$f":"SUMIFS(計算表!BY$23:BY$172,計算表!$BH$23:$BH$172,TRUE,計算表!$BM$23:$BM$172,TRUE,計算表!$BQ$23:$BQ$172,TRUE)","v":0},{"$f":"SUMIFS(計算表!BZ$23:BZ$172,計算表!$BH$23:$BH$172,TRUE,計算表!$BM$23:$BM$172,TRUE,計算表!$BQ$23:$BQ$172,TRUE)","v":0},{"$f":"SUMIFS(計算表!CA$23:CA$172,計算表!$BH$23:$BH$172,TRUE,計算表!$BM$23:$BM$172,TRUE,計算表!$BQ$23:$BQ$172,TRUE)","v":0},{"$f":"SUMIFS(計算表!CB$23:CB$172,計算表!$BH$23:$BH$172,TRUE,計算表!$BM$23:$BM$172,TRUE,計算表!$BQ$23:$BQ$172,TRUE)","v":0}]
["療養通所介護",2,null,"介護職員のうち、勤続10年以上の介護福祉士の占める割合が35%以上である",{"$f":"SUMIF(計算表!$BH$23:$BH$172,TRUE,計算表!BR$23:BR$172)","v":0},{"$f":"SUMIF(計算表!$BH$23:$BH$172,TRUE,計算表!BS$23:BS$172)","v":0},{"$f":"SUMIF(計算表!$BH$23:$BH$172,TRUE,計算表!BT$23:BT$172)","v":0},{"$f":"SUMIF(計算表!$BH$23:$BH$172,TRUE,計算表!BU$23:BU$172)","v":0},{"$f":"SUMIF(計算表!$BH$23:$BH$172,TRUE,計算表!BV$23:BV$172)","v":0},{"$f":"SUMIF(計算表!$BH$23:$BH$172,TRUE,計算表!BW$23:BW$172)","v":0},{"$f":"SUMIF(計算表!$BH$23:$BH$172,TRUE,計算表!BX$23:BX$172)","v":0},{"$f":"SUMIF(計算表!$BH$23:$BH$172,TRUE,計算表!BY$23:BY$172)","v":0},{"$f":"SUMIF(計算表!$BH$23:$BH$172,TRUE,計算表!BZ$23:BZ$172)","v":0},{"$f":"SUMIF(計算表!$BH$23:$BH$172,TRUE,計算表!CA$23:CA$172)","v":0},{"$f":"SUMIF(計算表!$BH$23:$BH$172,TRUE,計算表!CB$23:CB$172)","v":0},{"$f":"SUMIFS(計算表!BR$23:BR$172,計算表!$BH$23:$BH$172,TRUE,計算表!$BM$23:$BM$172,TRUE,計算表!$BQ$23:$BQ$172,TRUE)","v":0},{"$f":"SUMIFS(計算表!BS$23:BS$172,計算表!$BH$23:$BH$172,TRUE,計算表!$BM$23:$BM$172,TRUE,計算表!$BQ$23:$BQ$172,TRUE)","v":0},{"$f":"SUMIFS(計算表!BT$23:BT$172,計算表!$BH$23:$BH$172,TRUE,計算表!$BM$23:$BM$172,TRUE,計算表!$BQ$23:$BQ$172,TRUE)","v":0},{"$f":"SUMIFS(計算表!BU$23:BU$172,計算表!$BH$23:$BH$172,TRUE,計算表!$BM$23:$BM$172,TRUE,計算表!$BQ$23:$BQ$172,TRUE)","v":0},{"$f":"SUMIFS(計算表!BV$23:BV$172,計算表!$BH$23:$BH$172,TRUE,計算表!$BM$23:$BM$172,TRUE,計算表!$BQ$23:$BQ$172,TRUE)","v":0},{"$f":"SUMIFS(計算表!BW$23:BW$172,計算表!$BH$23:$BH$172,TRUE,計算表!$BM$23:$BM$172,TRUE,計算表!$BQ$23:$BQ$172,TRUE)","v":0},{"$f":"SUMIFS(計算表!BX$23:BX$172,計算表!$BH$23:$BH$172,TRUE,計算表!$BM$23:$BM$172,TRUE,計算表!$BQ$23:$BQ$172,TRUE)","v":0},{"$f":"SUMIFS(計算表!BY$23:BY$172,計算表!$BH$23:$BH$172,TRUE,計算表!$BM$23:$BM$172,TRUE,計算表!$BQ$23:$BQ$172,TRUE)","v":0},{"$f":"SUMIFS(計算表!BZ$23:BZ$172,計算表!$BH$23:$BH$172,TRUE,計算表!$BM$23:$BM$172,TRUE,計算表!$BQ$23:$BQ$172,TRUE)","v":0},{"$f":"SUMIFS(計算表!CA$23:CA$172,計算表!$BH$23:$BH$172,TRUE,計算表!$BM$23:$BM$172,TRUE,計算表!$BQ$23:$BQ$172,TRUE)","v":0},{"$f":"SUMIFS(計算表!CB$23:CB$172,計算表!$BH$23:$BH$172,TRUE,計算表!$BM$23:$BM$172,TRUE,計算表!$BQ$23:$BQ$172,TRUE)","v":0}]
["認知症対応型通所介護",3,null,"訪問介護員のうち、勤続10年以上の介護福祉士の占める割合が25%以上である",{"$f":"SUMIF(計算表!$BI$23:$BI$178,TRUE,計算表!BR$23:BR$172)","v":0},{"$f":"SUMIF(計算表!$BI$23:$BI$178,TRUE,計算表!BS$23:BS$172)","v":0},{"$f":"SUMIF(計算表!$BI$23:$BI$178,TRUE,計算表!BT$23:BT$172)","v":0},{"$f":"SUMIF(計算表!$BI$23:$BI$178,TRUE,計算表!BU$23:BU$172)","v":0},{"$f":"SUMIF(計算表!$BI$23:$BI$178,TRUE,計算表!BV$23:BV$172)","v":0},{"$f":"SUMIF(計算表!$BI$23:$BI$178,TRUE,計算表!BW$23:BW$172)","v":0},{"$f":"SUMIF(計算表!$BI$23:$BI$178,TRUE,計算表!BX$23:BX$172)","v":0},{"$f":"SUMIF(計算表!$BI$23:$BI$178,TRUE,計算表!BY$23:BY$172)","v":0},{"$f":"SUMIF(計算表!$BI$23:$BI$178,TRUE,計算表!BZ$23:BZ$172)","v":0},{"$f":"SUMIF(計算表!$BI$23:$BI$178,TRUE,計算表!CA$23:CA$172)","v":0},{"$f":"SUMIF(計算表!$BI$23:$BI$178,TRUE,計算表!CB$23:CB$172)","v":0},{"$f":"SUMIFS(計算表!BR$23:BR$172,計算表!$BI$23:$BI$172,TRUE,計算表!$BM$23:$BM$172,TRUE,計算表!$BQ$23:$BQ$172,TRUE)","v":0},{"$f":"SUMIFS(計算表!BS$23:BS$172,計算表!$BI$23:$BI$172,TRUE,計算表!$BM$23:$BM$172,TRUE,計算表!$BQ$23:$BQ$172,TRUE)","v":0},{"$f":"SUMIFS(計算表!BT$23:BT$172,計算表!$BI$23:$BI$172,TRUE,計算表!$BM$23:$BM$172,TRUE,計算表!$BQ$23:$BQ$172,TRUE)","v":0},{"$f":"SUMIFS(計算表!BU$23:BU$172,計算表!$BI$23:$BI$172,TRUE,計算表!$BM$23:$BM$172,TRUE,計算表!$BQ$23:$BQ$172,TRUE)","v":0},{"$f":"SUMIFS(計算表!BV$23:BV$172,計算表!$BI$23:$BI$172,TRUE,計算表!$BM$23:$BM$172,TRUE,計算表!$BQ$23:$BQ$172,TRUE)","v":0},{"$f":"SUMIFS(計算表!BW$23:BW$172,計算表!$BI$23:$BI$172,TRUE,計算表!$BM$23:$BM$172,TRUE,計算表!$BQ$23:$BQ$172,TRUE)","v":0},{"$f":"SUMIFS(計算表!BX$23:BX$172,計算表!$BI$23:$BI$172,TRUE,計算表!$BM$23:$BM$172,TRUE,計算表!$BQ$23:$BQ$172,TRUE)","v":0},{"$f":"SUMIFS(計算表!BY$23:BY$172,計算表!$BI$23:$BI$172,TRUE,計算表!$BM$23:$BM$172,TRUE,計算表!$BQ$23:$BQ$172,TRUE)","v":0},{"$f":"SUMIFS(計算表!BZ$23:BZ$172,計算表!$BI$23:$BI$172,TRUE,計算表!$BM$23:$BM$172,TRUE,計算表!$BQ$23:$BQ$172,TRUE)","v":0},{"$f":"SUMIFS(計算表!CA$23:CA$172,計算表!$BI$23:$BI$172,TRUE,計算表!$BM$23:$BM$172,TRUE,計算表!$BQ$23:$BQ$172,TRUE)","v":0},{"$f":"SUMIFS(計算表!CB$23:CB$172,計算表!$BI$23:$BI$172,TRUE,計算表!$BM$23:$BM$172,TRUE,計算表!$BQ$23:$BQ$172,TRUE)","v":0}]
["小規模多機能型居宅介護",3,null,"介護職員のうち、介護福祉士、実務者研修修了者及び介護職員基礎研修修了者の占める割合が50%以上である",{"$f":"SUMIF(計算表!$BH$23:$BH$172,TRUE,計算表!BR$23:BR$172)","v":0},{"$f":"SUMIF(計算表!$BH$23:$BH$172,TRUE,計算表!BS$23:BS$172)","v":0},{"$f":"SUMIF(計算表!$BH$23:$BH$172,TRUE,計算表!BT$23:BT$172)","v":0},{"$f":"SUMIF(計算表!$BH$23:$BH$172,TRUE,計算表!BU$23:BU$172)","v":0},{"$f":"SUMIF(計算表!$BH$23:$BH$172,TRUE,計算表!BV$23:BV$172)","v":0},{"$f":"SUMIF(計算表!$BH$23:$BH$172,TRUE,計算表!BW$23:BW$172)","v":0},{"$f":"SUMIF(計算表!$BH$23:$BH$172,TRUE,計算表!BX$23:BX$172)","v":0},{"$f":"SUMIF(計算表!$BH$23:$BH$172,TRUE,計算表!BY$23:BY$172)","v":0},{"$f":"SUMIF(計算表!$BH$23:$BH$172,TRUE,計算表!BZ$23:BZ$172)","v":0},{"$f":"SUMIF(計算表!$BH$23:$BH$172,TRUE,計算表!CA$23:CA$172)","v":0},{"$f":"SUMIF(計算表!$BH$23:$BH$172,TRUE,計算表!CB$23:CB$172)","v":0},{"$f":"SUMIFS(計算表!BR$23:BR$172,計算表!$BH$23:$BH$172,TRUE,計算表!$BN$23:$BN$172,TRUE)","v":0},{"$f":"SUMIFS(計算表!BS$23:BS$172,計算表!$BH$23:$BH$172,TRUE,計算表!$BN$23:$BN$172,TRUE)","v":0},{"$f":"SUMIFS(計算表!BT$23:BT$172,計算表!$BH$23:$BH$172,TRUE,計算表!$BN$23:$BN$172,TRUE)","v":0},{"$f":"SUMIFS(計算表!BU$23:BU$172,計算表!$BH$23:$BH$172,TRUE,計算表!$BN$23:$BN$172,TRUE)","v":0},{"$f":"SUMIFS(計算表!BV$23:BV$172,計算表!$BH$23:$BH$172,TRUE,計算表!$BN$23:$BN$172,TRUE)","v":0},{"$f":"SUMIFS(計算表!BW$23:BW$172,計算表!$BH$23:$BH$172,TRUE,計算表!$BN$23:$BN$172,TRUE)","v":0},{"$f":"SUMIFS(計算表!BX$23:BX$172,計算表!$BH$23:$BH$172,TRUE,計算表!$BN$23:$BN$172,TRUE)","v":0},{"$f":"SUMIFS(計算表!BY$23:BY$172,計算表!$BH$23:$BH$172,TRUE,計算表!$BN$23:$BN$172,TRUE)","v":0},{"$f":"SUMIFS(計算表!BZ$23:BZ$172,計算表!$BH$23:$BH$172,TRUE,計算表!$BN$23:$BN$172,TRUE)","v":0},{"$f":"SUMIFS(計算表!CA$23:CA$172,計算表!$BH$23:$BH$172,TRUE,計算表!$BN$23:$BN$172,TRUE)","v":0},{"$f":"SUMIFS(計算表!CB$23:CB$172,計算表!$BH$23:$BH$172,TRUE,計算表!$BN$23:$BN$172,TRUE)","v":0}]
["認知症対応型共同生活介護",3,null,"介護職員のうち、介護福祉士、実務者研修修了者及び介護職員基礎研修修了者の占める割合が60%以上である",{"$f":"SUMIF(計算表!$BH$23:$BH$172,TRUE,計算表!BR$23:BR$172)","v":0},{"$f":"SUMIF(計算表!$BH$23:$BH$172,TRUE,計算表!BS$23:BS$172)","v":0},{"$f":"SUMIF(計算表!$BH$23:$BH$172,TRUE,計算表!BT$23:BT$172)","v":0},{"$f":"SUMIF(計算表!$BH$23:$BH$172,TRUE,計算表!BU$23:BU$172)","v":0},{"$f":"SUMIF(計算表!$BH$23:$BH$172,TRUE,計算表!BV$23:BV$172)","v":0},{"$f":"SUMIF(計算表!$BH$23:$BH$172,TRUE,計算表!BW$23:BW$172)","v":0},{"$f":"SUMIF(計算表!$BH$23:$BH$172,TRUE,計算表!BX$23:BX$172)","v":0},{"$f":"SUMIF(計算表!$BH$23:$BH$172,TRUE,計算表!BY$23:BY$172)","v":0},{"$f":"SUMIF(計算表!$BH$23:$BH$172,TRUE,計算表!BZ$23:BZ$172)","v":0},{"$f":"SUMIF(計算表!$BH$23:$BH$172,TRUE,計算表!CA$23:CA$172)","v":0},{"$f":"SUMIF(計算表!$BH$23:$BH$172,TRUE,計算表!CB$23:CB$172)","v":0},{"$f":"SUMIFS(計算表!BR$23:BR$172,計算表!$BH$23:$BH$172,TRUE,計算表!$BN$23:$BN$172,TRUE)","v":0},{"$f":"SUMIFS(計算表!BS$23:BS$172,計算表!$BH$23:$BH$172,TRUE,計算表!$BN$23:$BN$172,TRUE)","v":0},{"$f":"SUMIFS(計算表!BT$23:BT$172,計算表!$BH$23:$BH$172,TRUE,計算表!$BN$23:$BN$172,TRUE)","v":0},{"$f":"SUMIFS(計算表!BU$23:BU$172,計算表!$BH$23:$BH$172,TRUE,計算表!$BN$23:$BN$172,TRUE)","v":0},{"$f":"SUMIFS(計算表!BV$23:BV$172,計算表!$BH$23:$BH$172,TRUE,計算表!$BN$23:$BN$172,TRUE)","v":0},{"$f":"SUMIFS(計算表!BW$23:BW$172,計算表!$BH$23:$BH$172,TRUE,計算表!$BN$23:$BN$172,TRUE)","v":0},{"$f":"SUMIFS(計算表!BX$23:BX$172,計算表!$BH$23:$BH$172,TRUE,計算表!$BN$23:$BN$172,TRUE)","v":0},{"$f":"SUMIFS(計算表!BY$23:BY$172,計算表!$BH$23:$BH$172,TRUE,計算表!$BN$23:$BN$172,TRUE)","v":0},{"$f":"SUMIFS(計算表!BZ$23:BZ$172,計算表!$BH$23:$BH$172,TRUE,計算表!$BN$23:$BN$172,TRUE)","v":0},{"$f":"SUMIFS(計算表!CA$23:CA$172,計算表!$BH$23:$BH$172,TRUE,計算表!$BN$23:$BN$172,TRUE)","v":0},{"$f":"SUMIFS(計算表!CB$23:CB$172,計算表!$BH$23:$BH$172,TRUE,計算表!$BN$23:$BN$172,TRUE)","v":0}]
["地域密着型特定施設入居者生活介護",3,null,"訪問介護員のうち、介護福祉士、実務者研修修了者及び介護職員基礎研修修了者の占める割合が50%以上である",{"$f":"SUMIF(計算表!$BI$23:$BI$178,TRUE,計算表!BR$23:BR$172)","v":0},{"$f":"SUMIF(計算表!$BI$23:$BI$178,TRUE,計算表!BS$23:BS$172)","v":0},{"$f":"SUMIF(計算表!$BI$23:$BI$178,TRUE,計算表!BT$23:BT$172)","v":0},{"$f":"SUMIF(計算表!$BI$23:$BI$178,TRUE,計算表!BU$23:BU$172)","v":0},{"$f":"SUMIF(計算表!$BI$23:$BI$178,TRUE,計算表!BV$23:BV$172)","v":0},{"$f":"SUMIF(計算表!$BI$23:$BI$178,TRUE,計算表!BW$23:BW$172)","v":0},{"$f":"SUMIF(計算表!$BI$23:$BI$178,TRUE,計算表!BX$23:BX$172)","v":0},{"$f":"SUMIF(計算表!$BI$23:$BI$178,TRUE,計算表!BY$23:BY$172)","v":0},{"$f":"SUMIF(計算表!$BI$23:$BI$178,TRUE,計算表!BZ$23:BZ$172)","v":0},{"$f":"SUMIF(計算表!$BI$23:$BI$178,TRUE,計算表!CA$23:CA$172)","v":0},{"$f":"SUMIF(計算表!$BI$23:$BI$178,TRUE,計算表!CB$23:CB$172)","v":0},{"$f":"SUMIFS(計算表!BR$23:BR$172,計算表!$BI$23:$BI$172,TRUE,計算表!$BN$23:$BN$172,TRUE)","v":0},{"$f":"SUMIFS(計算表!BS$23:BS$172,計算表!$BI$23:$BI$172,TRUE,計算表!$BN$23:$BN$172,TRUE)","v":0},{"$f":"SUMIFS(計算表!BT$23:BT$172,計算表!$BI$23:$BI$172,TRUE,計算表!$BN$23:$BN$172,TRUE)","v":0},{"$f":"SUMIFS(計算表!BU$23:BU$172,計算表!$BI$23:$BI$172,TRUE,計算表!$BN$23:$BN$172,TRUE)","v":0},{"$f":"SUMIFS(計算表!BV$23:BV$172,計算表!$BI$23:$BI$172,TRUE,計算表!$BN$23:$BN$172,TRUE)","v":0},{"$f":"SUMIFS(計算表!BW$23:BW$172,計算表!$BI$23:$BI$172,TRUE,計算表!$BN$23:$BN$172,TRUE)","v":0},{"$f":"SUMIFS(計算表!BX$23:BX$172,計算表!$BI$23:$BI$172,TRUE,計算表!$BN$23:$BN$172,TRUE)","v":0},{"$f":"SUMIFS(計算表!BY$23:BY$172,計算表!$BI$23:$BI$172,TRUE,計算表!$BN$23:$BN$172,TRUE)","v":0},{"$f":"SUMIFS(計算表!BZ$23:BZ$172,計算表!$BI$23:$BI$172,TRUE,計算表!$BN$23:$BN$172,TRUE)","v":0},{"$f":"SUMIFS(計算表!CA$23:CA$172,計算表!$BI$23:$BI$172,TRUE,計算表!$BN$23:$BN$172,TRUE)","v":0},{"$f":"SUMIFS(計算表!CB$23:CB$172,計算表!$BI$23:$BI$172,TRUE,計算表!$BN$23:$BN$172,TRUE)","v":0}]
["地域密着型介護老人福祉施設",3,null,"訪問介護員のうち、介護福祉士、実務者研修修了者及び介護職員基礎研修修了者の占める割合が60%以上である",{"$f":"SUMIF(計算表!$BI$23:$BI$178,TRUE,計算表!BR$23:BR$172)","v":0},{"$f":"SUMIF(計算表!$BI$23:$BI$178,TRUE,計算表!BS$23:BS$172)","v":0},{"$f":"SUMIF(計算表!$BI$23:$BI$178,TRUE,計算表!BT$23:BT$172)","v":0},{"$f":"SUMIF(計算表!$BI$23:$BI$178,TRUE,計算表!BU$23:BU$172)","v":0},{"$f":"SUMIF(計算表!$BI$23:$BI$178,TRUE,計算表!BV$23:BV$172)","v":0},{"$f":"SUMIF(計算表!$BI$23:$BI$178,TRUE,計算表!BW$23:BW$172)","v":0},{"$f":"SUMIF(計算表!$BI$23:$BI$178,TRUE,計算表!BX$23:BX$172)","v":0},{"$f":"SUMIF(計算表!$BI$23:$BI$178,TRUE,計算表!BY$23:BY$172)","v":0},{"$f":"SUMIF(計算表!$BI$23:$BI$178,TRUE,計算表!BZ$23:BZ$172)","v":0},{"$f":"SUMIF(計算表!$BI$23:$BI$178,TRUE,計算表!CA$23:CA$172)","v":0},{"$f":"SUMIF(計算表!$BI$23:$BI$178,TRUE,計算表!CB$23:CB$172)","v":0},{"$f":"SUMIFS(計算表!BR$23:BR$172,計算表!$BI$23:$BI$172,TRUE,計算表!$BN$23:$BN$172,TRUE)","v":0},{"$f":"SUMIFS(計算表!BS$23:BS$172,計算表!$BI$23:$BI$172,TRUE,計算表!$BN$23:$BN$172,TRUE)","v":0},{"$f":"SUMIFS(計算表!BT$23:BT$172,計算表!$BI$23:$BI$172,TRUE,計算表!$BN$23:$BN$172,TRUE)","v":0},{"$f":"SUMIFS(計算表!BU$23:BU$172,計算表!$BI$23:$BI$172,TRUE,計算表!$BN$23:$BN$172,TRUE)","v":0},{"$f":"SUMIFS(計算表!BV$23:BV$172,計算表!$BI$23:$BI$172,TRUE,計算表!$BN$23:$BN$172,TRUE)","v":0},{"$f":"SUMIFS(計算表!BW$23:BW$172,計算表!$BI$23:$BI$172,TRUE,計算表!$BN$23:$BN$172,TRUE)","v":0},{"$f":"SUMIFS(計算表!BX$23:BX$172,計算表!$BI$23:$BI$172,TRUE,計算表!$BN$23:$BN$172,TRUE)","v":0},{"$f":"SUMIFS(計算表!BY$23:BY$172,計算表!$BI$23:$BI$172,TRUE,計算表!$BN$23:$BN$172,TRUE)","v":0},{"$f":"SUMIFS(計算表!BZ$23:BZ$172,計算表!$BI$23:$BI$172,TRUE,計算表!$BN$23:$BN$172,TRUE)","v":0},{"$f":"SUMIFS(計算表!CA$23:CA$172,計算表!$BI$23:$BI$172,TRUE,計算表!$BN$23:$BN$172,TRUE)","v":0},{"$f":"SUMIFS(計算表!CB$23:CB$172,計算表!$BI$23:$BI$172,TRUE,計算表!$BN$23:$BN$172,TRUE)","v":0}]
["看護小規模多機能型居宅介護",3,null,"従業者のうち、常勤の者の占める割合が60%以上である",{"$f":"SUMIF(計算表!$BK$23:$BK$172,TRUE,計算表!BR$23:BR$172)","v":0},{"$f":"SUMIF(計算表!$BK$23:$BK$172,TRUE,計算表!BS$23:BS$172)","v":0},{"$f":"SUMIF(計算表!$BK$23:$BK$172,TRUE,計算表!BT$23:BT$172)","v":0},{"$f":"SUMIF(計算表!$BK$23:$BK$172,TRUE,計算表!BU$23:BU$172)","v":0},{"$f":"SUMIF(計算表!$BK$23:$BK$172,TRUE,計算表!BV$23:BV$172)","v":0},{"$f":"SUMIF(計算表!$BK$23:$BK$172,TRUE,計算表!BW$23:BW$172)","v":0},{"$f":"SUMIF(計算表!$BK$23:$BK$172,TRUE,計算表!BX$23:BX$172)","v":0},{"$f":"SUMIF(計算表!$BK$23:$BK$172,TRUE,計算表!BY$23:BY$172)","v":0},{"$f":"SUMIF(計算表!$BK$23:$BK$172,TRUE,計算表!BZ$23:BZ$172)","v":0},{"$f":"SUMIF(計算表!$BK$23:$BK$172,TRUE,計算表!CA$23:CA$172)","v":0},{"$f":"SUMIF(計算表!$BK$23:$BK$172,TRUE,計算表!CB$23:CB$172)","v":0},{"$f":"SUMIF(計算表!$AG$23:$AG$172,\"A\",計算表!BR$23:BR$172)+SUMIF(計算表!$AG$23:$AG$172,\"B\",計算表!BR$23:BR$172)","v":0},{"$f":"SUMIF(計算表!$AG$23:$AG$172,\"A\",計算表!BS$23:BS$172)+SUMIF(計算表!$AG$23:$AG$172,\"B\",計算表!BS$23:BS$172)","v":0},{"$f":"SUMIF(計算表!$AG$23:$AG$172,\"A\",計算表!BT$23:BT$172)+SUMIF(計算表!$AG$23:$AG$172,\"B\",計算表!BT$23:BT$172)","v":0},{"$f":"SUMIF(計算表!$AG$23:$AG$172,\"A\",計算表!BU$23:BU$172)+SUMIF(計算表!$AG$23:$AG$172,\"B\",計算表!BU$23:BU$172)","v":0},{"$f":"SUMIF(計算表!$AG$23:$AG$172,\"A\",計算表!BV$23:BV$172)+SUMIF(計算表!$AG$23:$AG$172,\"B\",計算表!BV$23:BV$172)","v":0},{"$f":"SUMIF(計算表!$AG$23:$AG$172,\"A\",計算表!BW$23:BW$172)+SUMIF(計算表!$AG$23:$AG$172,\"B\",計算表!BW$23:BW$172)","v":0},{"$f":"SUMIF(計算表!$AG$23:$AG$172,\"A\",計算表!BX$23:BX$172)+SUMIF(計算表!$AG$23:$AG$172,\"B\",計算表!BX$23:BX$172)","v":0},{"$f":"SUMIF(計算表!$AG$23:$AG$172,\"A\",計算表!BY$23:BY$172)+SUMIF(計算表!$AG$23:$AG$172,\"B\",計算表!BY$23:BY$172)","v":0},{"$f":"SUMIF(計算表!$AG$23:$AG$172,\"A\",計算表!BZ$23:BZ$172)+SUMIF(計算表!$AG$23:$AG$172,\"B\",計算表!BZ$23:BZ$172)","v":0},{"$f":"SUMIF(計算表!$AG$23:$AG$172,\"A\",計算表!CA$23:CA$172)+SUMIF(計算表!$AG$23:$AG$172,\"B\",計算表!CA$23:CA$172)","v":0},{"$f":"SUMIF(計算表!$AG$23:$AG$172,\"A\",計算表!CB$23:CB$172)+SUMIF(計算表!$AG$23:$AG$172,\"B\",計算表!CB$23:CB$172)","v":0}]
["介護老人福祉施設",3,null,"看護職員及び介護職員のうち、常勤の者の占める割合が75%以上である",{"$f":"SUMIF(計算表!$BJ$23:$BJ$172,TRUE,計算表!BR$23:BR$172)","v":0},{"$f":"SUMIF(計算表!$BJ$23:$BJ$172,TRUE,計算表!BS$23:BS$172)","v":0},{"$f":"SUMIF(計算表!$BJ$23:$BJ$172,TRUE,計算表!BT$23:BT$172)","v":0},{"$f":"SUMIF(計算表!$BJ$23:$BJ$172,TRUE,計算表!BU$23:BU$172)","v":0},{"$f":"SUMIF(計算表!$BJ$23:$BJ$172,TRUE,計算表!BV$23:BV$172)","v":0},{"$f":"SUMIF(計算表!$BJ$23:$BJ$172,TRUE,計算表!BW$23:BW$172)","v":0},{"$f":"SUMIF(計算表!$BJ$23:$BJ$172,TRUE,計算表!BX$23:BX$172)","v":0},{"$f":"SUMIF(計算表!$BJ$23:$BJ$172,TRUE,計算表!BY$23:BY$172)","v":0},{"$f":"SUMIF(計算表!$BJ$23:$BJ$172,TRUE,計算表!BZ$23:BZ$172)","v":0},{"$f":"SUMIF(計算表!$BJ$23:$BJ$172,TRUE,計算表!CA$23:CA$172)","v":0},{"$f":"SUMIF(計算表!$BJ$23:$BJ$172,TRUE,計算表!CB$23:CB$172)","v":0},{"$f":"SUMIFS(計算表!BR$23:BR$172,計算表!$AG$23:$AG$172,\"A\",計算表!$BJ$23:$BJ$172,TRUE)+SUMIFS(計算表!BR$23:BR$172,計算表!$AG$23:$AG$172,\"B\",計算表!$BJ$23:$BJ$172,TRUE)","v":0},{"$f":"SUMIFS(計算表!BS$23:BS$172,計算表!$AG$23:$AG$172,\"A\",計算表!$BJ$23:$BJ$172,TRUE)+SUMIFS(計算表!BS$23:BS$172,計算表!$AG$23:$AG$172,\"B\",計算表!$BJ$23:$BJ$172,TRUE)","v":0},{"$f":"SUMIFS(計算表!BT$23:BT$172,計算表!$AG$23:$AG$172,\"A\",計算表!$BJ$23:$BJ$172,TRUE)+SUMIFS(計算表!BT$23:BT$172,計算表!$AG$23:$AG$172,\"B\",計算表!$BJ$23:$BJ$172,TRUE)","v":0},{"$f":"SUMIFS(計算表!BU$23:BU$172,計算表!$AG$23:$AG$172,\"A\",計算表!$BJ$23:$BJ$172,TRUE)+SUMIFS(計算表!BU$23:BU$172,計算表!$AG$23:$AG$172,\"B\",計算表!$BJ$23:$BJ$172,TRUE)","v":0},{"$f":"SUMIFS(計算表!BV$23:BV$172,計算表!$AG$23:$AG$172,\"A\",計算表!$BJ$23:$BJ$172,TRUE)+SUMIFS(計算表!BV$23:BV$172,計算表!$AG$23:$AG$172,\"B\",計算表!$BJ$23:$BJ$172,TRUE)","v":0},{"$f":"SUMIFS(計算表!BW$23:BW$172,計算表!$AG$23:$AG$172,\"A\",計算表!$BJ$23:$BJ$172,TRUE)+SUMIFS(計算表!BW$23:BW$172,計算表!$AG$23:$AG$172,\"B\",計算表!$BJ$23:$BJ$172,TRUE)","v":0},{"$f":"SUMIFS(計算表!BX$23:BX$172,計算表!$AG$23:$AG$172,\"A\",計算表!$BJ$23:$BJ$172,TRUE)+SUMIFS(計算表!BX$23:BX$172,計算表!$AG$23:$AG$172,\"B\",計算表!$BJ$23:$BJ$172,TRUE)","v":0},{"$f":"SUMIFS(計算表!BY$23:BY$172,計算表!$AG$23:$AG$172,\"A\",計算表!$BJ$23:$BJ$172,TRUE)+SUMIFS(計算表!BY$23:BY$172,計算表!$AG$23:$AG$172,\"B\",計算表!$BJ$23:$BJ$172,TRUE)","v":0},{"$f":"SUMIFS(計算表!BZ$23:BZ$172,計算表!$AG$23:$AG$172,\"A\",計算表!$BJ$23:$BJ$172,TRUE)+SUMIFS(計算表!BZ$23:BZ$172,計算表!$AG$23:$AG$172,\"B\",計算表!$BJ$23:$BJ$172,TRUE)","v":0},{"$f":"SUMIFS(計算表!CA$23:CA$172,計算表!$AG$23:$AG$172,\"A\",計算表!$BJ$23:$BJ$172,TRUE)+SUMIFS(計算表!CA$23:CA$172,計算表!$AG$23:$AG$172,\"B\",計算表!$BJ$23:$BJ$172,TRUE)","v":0},{"$f":"SUMIFS(計算表!CB$23:CB$172,計算表!$AG$23:$AG$172,\"A\",計算表!$BJ$23:$BJ$172,TRUE)+SUMIFS(計算表!CB$23:CB$172,計算表!$AG$23:$AG$172,\"B\",計算表!$BJ$23:$BJ$172,TRUE)","v":0}]
["介護老人保健施設・介護療養型医療施設",3,null,"直接サービスを提供する職員のうち、勤続3年以上の者の占める割合が30%以上である",{"$f":"SUMIF(計算表!$BL$23:$BL$172,TRUE,計算表!BR$23:BR$172)","v":0},{"$f":"SUMIF(計算表!$BL$23:$BL$172,TRUE,計算表!BS$23:BS$172)","v":0},{"$f":"SUMIF(計算表!$BL$23:$BL$172,TRUE,計算表!BT$23:BT$172)","v":0},{"$f":"SUMIF(計算表!$BL$23:$BL$172,TRUE,計算表!BU$23:BU$172)","v":0},{"$f":"SUMIF(計算表!$BL$23:$BL$172,TRUE,計算表!BV$23:BV$172)","v":0},{"$f":"SUMIF(計算表!$BL$23:$BL$172,TRUE,計算表!BW$23:BW$172)","v":0},{"$f":"SUMIF(計算表!$BL$23:$BL$172,TRUE,計算表!BX$23:BX$172)","v":0},{"$f":"SUMIF(計算表!$BL$23:$BL$172,TRUE,計算表!BY$23:BY$172)","v":0},{"$f":"SUMIF(計算表!$BL$23:$BL$172,TRUE,計算表!BZ$23:BZ$172)","v":0},{"$f":"SUMIF(計算表!$BL$23:$BL$172,TRUE,計算表!CA$23:CA$172)","v":0},{"$f":"SUMIF(計算表!$BL$23:$BL$172,TRUE,計算表!CB$23:CB$172)","v":0},{"$f":"SUMIFS(計算表!BR$23:BR$172,計算表!$BL$23:$BL$172,TRUE,計算表!$BO$23:$BO$172,TRUE)","v":0},{"$f":"SUMIFS(計算表!BS$23:BS$172,計算表!$BL$23:$BL$172,TRUE,計算表!$BO$23:$BO$172,TRUE)","v":0},{"$f":"SUMIFS(計算表!BT$23:BT$172,計算表!$BL$23:$BL$172,TRUE,計算表!$BO$23:$BO$172,TRUE)","v":0},{"$f":"SUMIFS(計算表!BU$23:BU$172,計算表!$BL$23:$BL$172,TRUE,計算表!$BO$23:$BO$172,TRUE)","v":0},{"$f":"SUMIFS(計算表!BV$23:BV$172,計算表!$BL$23:$BL$172,TRUE,計算表!$BO$23:$BO$172,TRUE)","v":0},{"$f":"SUMIFS(計算表!BW$23:BW$172,計算表!$BL$23:$BL$172,TRUE,計算表!$BO$23:$BO$172,TRUE)","v":0},{"$f":"SUMIFS(計算表!BX$23:BX$172,計算表!$BL$23:$BL$172,TRUE,計算表!$BO$23:$BO$172,TRUE)","v":0},{"$f":"SUMIFS(計算表!BY$23:BY$172,計算表!$BL$23:$BL$172,TRUE,計算表!$BO$23:$BO$172,TRUE)","v":0},{"$f":"SUMIFS(計算表!BZ$23:BZ$172,計算表!$BL$23:$BL$172,TRUE,計算表!$BO$23:$BO$172,TRUE)","v":0},{"$f":"SUMIFS(計算表!CA$23:CA$172,計算表!$BL$23:$BL$172,TRUE,計算表!$BO$23:$BO$172,TRUE)","v":0},{"$f":"SUMIFS(計算表!CB$23:CB$172,計算表!$BL$23:$BL$172,TRUE,計算表!$BO$23:$BO$172,TRUE)","v":0}]
["介護療養型医療施設",3,null,"直接サービスを提供する職員のうち、勤続7年以上の者の占める割合が30%以上である",{"$f":"SUMIF(計算表!$BL$23:$BL$172,TRUE,計算表!BR$23:BR$172)","v":0},{"$f":"SUMIF(計算表!$BL$23:$BL$172,TRUE,計算表!BS$23:BS$172)","v":0},{"$f":"SUMIF(計算表!$BL$23:$BL$172,TRUE,計算表!BT$23:BT$172)","v":0},{"$f":"SUMIF(計算表!$BL$23:$BL$172,TRUE,計算表!BU$23:BU$172)","v":0},{"$f":"SUMIF(計算表!$BL$23:$BL$172,TRUE,計算表!BV$23:BV$172)","v":0},{"$f":"SUMIF(計算表!$BL$23:$BL$172,TRUE,計算表!BW$23:BW$172)","v":0},{"$f":"SUMIF(計算表!$BL$23:$BL$172,TRUE,計算表!BX$23:BX$172)","v":0},{"$f":"SUMIF(計算表!$BL$23:$BL$172,TRUE,計算表!BY$23:BY$172)","v":0},{"$f":"SUMIF(計算表!$BL$23:$BL$172,TRUE,計算表!BZ$23:BZ$172)","v":0},{"$f":"SUMIF(計算表!$BL$23:$BL$172,TRUE,計算表!CA$23:CA$172)","v":0},{"$f":"SUMIF(計算表!$BL$23:$BL$172,TRUE,計算表!CB$23:CB$172)","v":0},{"$f":"SUMIFS(計算表!BR$23:BR$172,計算表!$BL$23:$BL$172,TRUE,計算表!$BP$23:$BP$172,TRUE)","v":0},{"$f":"SUMIFS(計算表!BS$23:BS$172,計算表!$BL$23:$BL$172,TRUE,計算表!$BP$23:$BP$172,TRUE)","v":0},{"$f":"SUMIFS(計算表!BT$23:BT$172,計算表!$BL$23:$BL$172,TRUE,計算表!$BP$23:$BP$172,TRUE)","v":0},{"$f":"SUMIFS(計算表!BU$23:BU$172,計算表!$BL$23:$BL$172,TRUE,計算表!$BP$23:$BP$172,TRUE)","v":0},{"$f":"SUMIFS(計算表!BV$23:BV$172,計算表!$BL$23:$BL$172,TRUE,計算表!$BP$23:$BP$172,TRUE)","v":0},{"$f":"SUMIFS(計算表!BW$23:BW$172,計算表!$BL$23:$BL$172,TRUE,計算表!$BP$23:$BP$172,TRUE)","v":0},{"$f":"SUMIFS(計算表!BX$23:BX$172,計算表!$BL$23:$BL$172,TRUE,計算表!$BP$23:$BP$172,TRUE)","v":0},{"$f":"SUMIFS(計算表!BY$23:BY$172,計算表!$BL$23:$BL$172,TRUE,計算表!$BP$23:$BP$172,TRUE)","v":0},{"$f":"SUMIFS(計算表!BZ$23:BZ$172,計算表!$BL$23:$BL$172,TRUE,計算表!$BP$23:$BP$172,TRUE)","v":0},{"$f":"SUMIFS(計算表!CA$23:CA$172,計算表!$BL$23:$BL$172,TRUE,計算表!$BP$23:$BP$172,TRUE)","v":0},{"$f":"SUMIFS(計算表!CB$23:CB$172,計算表!$BL$23:$BL$172,TRUE,計算表!$BP$23:$BP$172,TRUE)","v":0}]
["介護医療院",3,null,"従業者のうち、勤続3年以上の者の占める割合が30%以上である",{"$f":"SUMIF(計算表!$BK$23:$BK$172,TRUE,計算表!BR$23:BR$172)","v":0},{"$f":"SUMIF(計算表!$BK$23:$BK$172,TRUE,計算表!BS$23:BS$172)","v":0},{"$f":"SUMIF(計算表!$BK$23:$BK$172,TRUE,計算表!BT$23:BT$172)","v":0},{"$f":"SUMIF(計算表!$BK$23:$BK$172,TRUE,計算表!BU$23:BU$172)","v":0},{"$f":"SUMIF(計算表!$BK$23:$BK$172,TRUE,計算表!BV$23:BV$172)","v":0},{"$f":"SUMIF(計算表!$BK$23:$BK$172,TRUE,計算表!BW$23:BW$172)","v":0},{"$f":"SUMIF(計算表!$BK$23:$BK$172,TRUE,計算表!BX$23:BX$172)","v":0},{"$f":"SUMIF(計算表!$BK$23:$BK$172,TRUE,計算表!BY$23:BY$172)","v":0},{"$f":"SUMIF(計算表!$BK$23:$BK$172,TRUE,計算表!BZ$23:BZ$172)","v":0},{"$f":"SUMIF(計算表!$BK$23:$BK$172,TRUE,計算表!CA$23:CA$172)","v":0},{"$f":"SUMIF(計算表!$BK$23:$BK$172,TRUE,計算表!CB$23:CB$172)","v":0},{"$f":"SUMIFS(計算表!BR$23:BR$172,計算表!$BK$23:$BK$172,TRUE,計算表!$BO$23:$BO$172,TRUE)","v":0},{"$f":"SUMIFS(計算表!BS$23:BS$172,計算表!$BK$23:$BK$172,TRUE,計算表!$BO$23:$BO$172,TRUE)","v":0},{"$f":"SUMIFS(計算表!BT$23:BT$172,計算表!$BK$23:$BK$172,TRUE,計算表!$BO$23:$BO$172,TRUE)","v":0},{"$f":"SUMIFS(計算表!BU$23:BU$172,計算表!$BK$23:$BK$172,TRUE,計算表!$BO$23:$BO$172,TRUE)","v":0},{"$f":"SUMIFS(計算表!BV$23:BV$172,計算表!$BK$23:$BK$172,TRUE,計算表!$BO$23:$BO$172,TRUE)","v":0},{"$f":"SUMIFS(計算表!BW$23:BW$172,計算表!$BK$23:$BK$172,TRUE,計算表!$BO$23:$BO$172,TRUE)","v":0},{"$f":"SUMIFS(計算表!BX$23:BX$172,計算表!$BK$23:$BK$172,TRUE,計算表!$BO$23:$BO$172,TRUE)","v":0},{"$f":"SUMIFS(計算表!BY$23:BY$172,計算表!$BK$23:$BK$172,TRUE,計算表!$BO$23:$BO$172,TRUE)","v":0},{"$f":"SUMIFS(計算表!BZ$23:BZ$172,計算表!$BK$23:$BK$172,TRUE,計算表!$BO$23:$BO$172,TRUE)","v":0},{"$f":"SUMIFS(計算表!CA$23:CA$172,計算表!$BK$23:$BK$172,TRUE,計算表!$BO$23:$BO$172,TRUE)","v":0},{"$f":"SUMIFS(計算表!CB$23:CB$172,計算表!$BK$23:$BK$172,TRUE,計算表!$BO$23:$BO$172,TRUE)","v":0}]
[null,null,null,"従業者のうち、勤続7年以上の者の占める割合が30%以上である",{"$f":"SUMIF(計算表!$BK$23:$BK$172,TRUE,計算表!BR$23:BR$172)","v":0},{"$f":"SUMIF(計算表!$BK$23:$BK$172,TRUE,計算表!BS$23:BS$172)","v":0},{"$f":"SUMIF(計算表!$BK$23:$BK$172,TRUE,計算表!BT$23:BT$172)","v":0},{"$f":"SUMIF(計算表!$BK$23:$BK$172,TRUE,計算表!BU$23:BU$172)","v":0},{"$f":"SUMIF(計算表!$BK$23:$BK$172,TRUE,計算表!BV$23:BV$172)","v":0},{"$f":"SUMIF(計算表!$BK$23:$BK$172,TRUE,計算表!BW$23:BW$172)","v":0},{"$f":"SUMIF(計算表!$BK$23:$BK$172,TRUE,計算表!BX$23:BX$172)","v":0},{"$f":"SUMIF(計算表!$BK$23:$BK$172,TRUE,計算表!BY$23:BY$172)","v":0},{"$f":"SUMIF(計算表!$BK$23:$BK$172,TRUE,計算表!BZ$23:BZ$172)","v":0},{"$f":"SUMIF(計算表!$BK$23:$BK$172,TRUE,計算表!CA$23:CA$172)","v":0},{"$f":"SUMIF(計算表!$BK$23:$BK$172,TRUE,計算表!CB$23:CB$172)","v":0},{"$f":"SUMIFS(計算表!BR$23:BR$172,計算表!$BK$23:$BK$172,TRUE,計算表!$BP$23:$BP$172,TRUE)","v":0},{"$f":"SUMIFS(計算表!BS$23:BS$172,計算表!$BK$23:$BK$172,TRUE,計算表!$BP$23:$BP$172,TRUE)","v":0},{"$f":"SUMIFS(計算表!BT$23:BT$172,計算表!$BK$23:$BK$172,TRUE,計算表!$BP$23:$BP$172,TRUE)","v":0},{"$f":"SUMIFS(計算表!BU$23:BU$172,計算表!$BK$23:$BK$172,TRUE,計算表!$BP$23:$BP$172,TRUE)","v":0},{"$f":"SUMIFS(計算表!BV$23:BV$172,計算表!$BK$23:$BK$172,TRUE,計算表!$BP$23:$BP$172,TRUE)","v":0},{"$f":"SUMIFS(計算表!BW$23:BW$172,計算表!$BK$23:$BK$172,TRUE,計算表!$BP$23:$BP$172,TRUE)","v":0},{"$f":"SUMIFS(計算表!BX$23:BX$172,計算表!$BK$23:$BK$172,TRUE,計算表!$BP$23:$BP$172,TRUE)","v":0},{"$f":"SUMIFS(計算表!BY$23:BY$172,計算表!$BK$23:$BK$172,TRUE,計算表!$BP$23:$BP$172,TRUE)","v":0},{"$f":"SUMIFS(計算表!BZ$23:BZ$172,計算表!$BK$23:$BK$172,TRUE,計算表!$BP$23:$BP$172,TRUE)","v":0},{"$f":"SUMIFS(計算表!CA$23:CA$172,計算表!$BK$23:$BK$172,TRUE,計算表!$BP$23:$BP$172,TRUE)","v":0},{"$f":"SUMIFS(計算表!CB$23:CB$172,計算表!$BK$23:$BK$172,TRUE,計算表!$BP$23:$BP$172,TRUE)","v":0}]